Body,Body Name,Date,Transaction Number,Amount,Invoice Number,Supplier Name,Supplier ID,Vat Registration Number,Expense Area,Expense Type,Expense Code,BVACOP,Proclass,Extended Description,Expenditure Type
http://statistics.data.gov.uk/doc/local-authority/33,Norfolk County Council,1-Mar-2011,2526460,      4800.00,,Neopost Finance Ltd,72380,,Children's Services,Postage & Postal Services,43050,,,,Revenue
http://statistics.data.gov.uk/doc/local-authority/33,Norfolk County Council,1-Mar-2011,2739810,      4351.17,,Redacted - Personal Data,Redacted,,Children's Services,Care Leavers Rent & Accommodation,54160,,,,Revenue
http://statistics.data.gov.uk/doc/local-authority/33,Norfolk County Council,1-Mar-2011,2740898,      2070.00,,Redacted - Personal Data,Redacted,,Children's Services,Care Leavers Rent & Accommodation,54160,,,,Revenue
http://statistics.data.gov.uk/doc/local-authority/33,Norfolk County Council,1-Mar-2011,2797814,      1875.00,,Redacted - Personal Data,Redacted,,Children's Services,Care Leavers Rent & Accommodation,54160,,,,Revenue
http://statistics.data.gov.uk/doc/local-authority/33,Norfolk County Council,1-Mar-2011,2810141,      2300.00,,Prolet Property Services,164324,,Children's Services,Accreditation,45160,,,,Revenue
http://statistics.data.gov.uk/doc/local-authority/33,Norfolk County Council,1-Mar-2011,2906635,    -12666.50,,Audit Commission,80763,,Resources,Audit Fees - Accounts,72500,,,,Revenue
http://statistics.data.gov.uk/doc/local-authority/33,Norfolk County Council,1-Mar-2011,2907356,       930.00,,Great Yarmouth College,83141,,Community Services,Grants To Other Bodies,49130,,,,Revenue
http://statistics.data.gov.uk/doc/local-authority/33,Norfolk County Council,1-Mar-2011,2908810,      4500.00,,TopBox Media Ltd,191955,,Resources,Fees & Charges,44500,,,,Revenue
http://statistics.data.gov.uk/doc/local-authority/33,Norfolk County Council,1-Mar-2011,2910347,     24260.52,,Norfolk Env Waste Services Ltd,72492,,Environment Transport & Development,Landfill Leachate Costs,22920,,,,Revenue
http://statistics.data.gov.uk/doc/local-authority/33,Norfolk County Council,1-Mar-2011,2914044,        33.00,,RSP Ltd,86341,,Other inc Agency,Staff Public Transport Costs,35420,,,,Revenue
http://statistics.data.gov.uk/doc/local-authority/33,Norfolk County Council,1-Mar-2011,2914044,        82.00,,RSP Ltd,86341,,Resources,Staff Public Transport Costs,35420,,,,Revenue
http://statistics.data.gov.uk/doc/local-authority/33,Norfolk County Council,1-Mar-2011,2914044,        30.60,,RSP Ltd,86341,,Resources,Staff Public Transport Costs,35420,,,,Revenue
http://statistics.data.gov.uk/doc/local-authority/33,Norfolk County Council,1-Mar-2011,2914044,       391.70,,RSP Ltd,86341,,Resources,Staff Public Transport Costs,35420,,,,Revenue
http://statistics.data.gov.uk/doc/local-authority/33,Norfolk County Council,1-Mar-2011,2914044,        76.40,,RSP Ltd,86341,,Resources,Staff Public Transport Costs,35420,,,,Revenue
http://statistics.data.gov.uk/doc/local-authority/33,Norfolk County Council,1-Mar-2011,2914044,        82.40,,RSP Ltd,86341,,Resources,Staff Public Transport Costs,35420,,,,Revenue
http://statistics.data.gov.uk/doc/local-authority/33,Norfolk County Council,1-Mar-2011,2914044,        51.00,,RSP Ltd,86341,,Resources,Staff Public Transport Costs,35420,,,,Revenue
http://statistics.data.gov.uk/doc/local-authority/33,Norfolk County Council,1-Mar-2011,2914044,        96.30,,RSP Ltd,86341,,Resources,Staff Public Transport Costs,35420,,,,Revenue
http://statistics.data.gov.uk/doc/local-authority/33,Norfolk County Council,1-Mar-2011,2914044,        30.60,,RSP Ltd,86341,,Resources,Staff Public Transport Costs,35420,,,,Revenue
http://statistics.data.gov.uk/doc/local-authority/33,Norfolk County Council,1-Mar-2011,2914044,       557.00,,RSP Ltd,86341,,Resources,Staff Public Transport Costs,35420,,,,Revenue
http://statistics.data.gov.uk/doc/local-authority/33,Norfolk County Council,1-Mar-2011,2914044,       315.40,,RSP Ltd,86341,,Resources,Staff Public Transport Costs,35420,,,,Revenue
http://statistics.data.gov.uk/doc/local-authority/33,Norfolk County Council,1-Mar-2011,2914044,        58.00,,RSP Ltd,86341,,Resources,Staff Public Transport Costs,35420,,,,Revenue
http://statistics.data.gov.uk/doc/local-authority/33,Norfolk County Council,1-Mar-2011,2914044,       242.00,,RSP Ltd,86341,,Resources,Staff Public Transport Costs,35420,,,,Revenue
http://statistics.data.gov.uk/doc/local-authority/33,Norfolk County Council,1-Mar-2011,2914044,       -94.70,,RSP Ltd,86341,,Resources,Staff Public Transport Costs,35420,,,,Revenue
http://statistics.data.gov.uk/doc/local-authority/33,Norfolk County Council,1-Mar-2011,2914044,        30.60,,RSP Ltd,86341,,Resources,Staff Public Transport Costs,35420,,,,Revenue
http://statistics.data.gov.uk/doc/local-authority/33,Norfolk County Council,1-Mar-2011,2914044,       170.70,,RSP Ltd,86341,,Resources,Staff Public Transport Costs,35420,,,,Revenue
http://statistics.data.gov.uk/doc/local-authority/33,Norfolk County Council,1-Mar-2011,2914044,        89.00,,RSP Ltd,86341,,Resources,Staff Public Transport Costs,35420,,,,Revenue
http://statistics.data.gov.uk/doc/local-authority/33,Norfolk County Council,1-Mar-2011,2914044,       683.80,,RSP Ltd,86341,,Resources,Staff Public Transport Costs,35420,,,,Revenue
http://statistics.data.gov.uk/doc/local-authority/33,Norfolk County Council,1-Mar-2011,2914044,        10.00,,RSP Ltd,86341,,Resources,Staff Public Transport Costs,35420,,,,Revenue
http://statistics.data.gov.uk/doc/local-authority/33,Norfolk County Council,1-Mar-2011,2917172,      5038.90,,RSP Ltd,86341,,Community Services,Staff Public Transport Costs,35420,,,,Revenue
http://statistics.data.gov.uk/doc/local-authority/33,Norfolk County Council,1-Mar-2011,2919582,      3750.00,,Audit Commission,80763,,Resources,Other Hired & Contracted Services,44810,,,,Revenue
http://statistics.data.gov.uk/doc/local-authority/33,Norfolk County Council,1-Mar-2011,2922174,       168.00,,RSP Ltd,86341,,Children's Services,Staff Public Transport Costs,35420,,,,Revenue
http://statistics.data.gov.uk/doc/local-authority/33,Norfolk County Council,1-Mar-2011,2922174,        74.80,,RSP Ltd,86341,,Children's Services,Staff Public Transport Costs,35420,,,,Revenue
http://statistics.data.gov.uk/doc/local-authority/33,Norfolk County Council,1-Mar-2011,2922174,       100.90,,RSP Ltd,86341,,Children's Services,Staff Public Transport Costs,35420,,,,Revenue
http://statistics.data.gov.uk/doc/local-authority/33,Norfolk County Council,1-Mar-2011,2922174,        99.90,,RSP Ltd,86341,,Children's Services,Staff Public Transport Costs,35420,,,,Revenue
http://statistics.data.gov.uk/doc/local-authority/33,Norfolk County Council,1-Mar-2011,2922174,        69.00,,RSP Ltd,86341,,Children's Services,Staff Public Transport Costs,35420,,,,Revenue
http://statistics.data.gov.uk/doc/local-authority/33,Norfolk County Council,1-Mar-2011,2922174,        99.10,,RSP Ltd,86341,,Children's Services,Staff Public Transport Costs,35420,,,,Revenue
http://statistics.data.gov.uk/doc/local-authority/33,Norfolk County Council,1-Mar-2011,2922174,        99.10,,RSP Ltd,86341,,Children's Services,Staff Public Transport Costs,35420,,,,Revenue
http://statistics.data.gov.uk/doc/local-authority/33,Norfolk County Council,1-Mar-2011,2922174,       129.50,,RSP Ltd,86341,,Children's Services,Staff Public Transport Costs,35420,,,,Revenue
http://statistics.data.gov.uk/doc/local-authority/33,Norfolk County Council,1-Mar-2011,2922174,        58.80,,RSP Ltd,86341,,Children's Services,Staff Public Transport Costs,35420,,,,Revenue
http://statistics.data.gov.uk/doc/local-authority/33,Norfolk County Council,1-Mar-2011,2922174,        99.10,,RSP Ltd,86341,,Children's Services,Staff Public Transport Costs,35420,,,,Revenue
http://statistics.data.gov.uk/doc/local-authority/33,Norfolk County Council,1-Mar-2011,2922174,       277.50,,RSP Ltd,86341,,Children's Services,Staff Public Transport Costs,35420,,,,Revenue
http://statistics.data.gov.uk/doc/local-authority/33,Norfolk County Council,1-Mar-2011,2922174,       100.90,,RSP Ltd,86341,,Children's Services,Staff Public Transport Costs,35420,,,,Revenue
http://statistics.data.gov.uk/doc/local-authority/33,Norfolk County Council,1-Mar-2011,2922174,        99.10,,RSP Ltd,86341,,Children's Services,Staff Public Transport Costs,35420,,,,Revenue
http://statistics.data.gov.uk/doc/local-authority/33,Norfolk County Council,1-Mar-2011,2922174,        86.40,,RSP Ltd,86341,,Children's Services,Staff Public Transport Costs,35420,,,,Revenue
http://statistics.data.gov.uk/doc/local-authority/33,Norfolk County Council,1-Mar-2011,2922174,        60.00,,RSP Ltd,86341,,Children's Services,Staff Public Transport Costs,35420,,,,Revenue
http://statistics.data.gov.uk/doc/local-authority/33,Norfolk County Council,1-Mar-2011,2922174,        37.65,,RSP Ltd,86341,,Children's Services,Staff Public Transport Costs,35420,,,,Revenue
http://statistics.data.gov.uk/doc/local-authority/33,Norfolk County Council,1-Mar-2011,2922182,       183.80,,RSP Ltd,86341,,Children's Services,Staff Public Transport Costs,35420,,,,Revenue
http://statistics.data.gov.uk/doc/local-authority/33,Norfolk County Council,1-Mar-2011,2922182,        14.30,,RSP Ltd,86341,,Children's Services,Staff Public Transport Costs,35420,,,,Revenue
http://statistics.data.gov.uk/doc/local-authority/33,Norfolk County Council,1-Mar-2011,2922182,        89.60,,RSP Ltd,86341,,Children's Services,Staff Public Transport Costs,35420,,,,Revenue
http://statistics.data.gov.uk/doc/local-authority/33,Norfolk County Council,1-Mar-2011,2922182,        73.00,,RSP Ltd,86341,,Children's Services,Staff Public Transport Costs,35420,,,,Revenue
http://statistics.data.gov.uk/doc/local-authority/33,Norfolk County Council,1-Mar-2011,2922182,        14.30,,RSP Ltd,86341,,Children's Services,Staff Public Transport Costs,35420,,,,Revenue
http://statistics.data.gov.uk/doc/local-authority/33,Norfolk County Council,1-Mar-2011,2922182,        54.00,,RSP Ltd,86341,,Children's Services,Staff Public Transport Costs,35420,,,,Revenue
http://statistics.data.gov.uk/doc/local-authority/33,Norfolk County Council,1-Mar-2011,2922182,       113.10,,RSP Ltd,86341,,Children's Services,Staff Public Transport Costs,35420,,,,Revenue
http://statistics.data.gov.uk/doc/local-authority/33,Norfolk County Council,1-Mar-2011,2922182,       184.30,,RSP Ltd,86341,,Children's Services,Staff Public Transport Costs,35420,,,,Revenue
http://statistics.data.gov.uk/doc/local-authority/33,Norfolk County Council,1-Mar-2011,2922182,        28.60,,RSP Ltd,86341,,Children's Services,Staff Public Transport Costs,35420,,,,Revenue
http://statistics.data.gov.uk/doc/local-authority/33,Norfolk County Council,1-Mar-2011,2922182,       104.00,,RSP Ltd,86341,,Children's Services,Staff Public Transport Costs,35420,,,,Revenue
http://statistics.data.gov.uk/doc/local-authority/33,Norfolk County Council,1-Mar-2011,2922182,       417.30,,RSP Ltd,86341,,Children's Services,Staff Public Transport Costs,35420,,,,Revenue
http://statistics.data.gov.uk/doc/local-authority/33,Norfolk County Council,1-Mar-2011,2922182,       111.20,,RSP Ltd,86341,,Children's Services,Staff Public Transport Costs,35420,,,,Revenue
http://statistics.data.gov.uk/doc/local-authority/33,Norfolk County Council,1-Mar-2011,2922182,        71.70,,RSP Ltd,86341,,Children's Services,Staff Public Transport Costs,35420,,,,Revenue
http://statistics.data.gov.uk/doc/local-authority/33,Norfolk County Council,1-Mar-2011,2922182,       143.00,,RSP Ltd,86341,,Children's Services,Staff Public Transport Costs,35420,,,,Revenue
http://statistics.data.gov.uk/doc/local-authority/33,Norfolk County Council,1-Mar-2011,2922182,       178.80,,RSP Ltd,86341,,Children's Services,Staff Public Transport Costs,35420,,,,Revenue
http://statistics.data.gov.uk/doc/local-authority/33,Norfolk County Council,1-Mar-2011,2922182,        14.40,,RSP Ltd,86341,,Children's Services,Staff Public Transport Costs,35420,,,,Revenue
http://statistics.data.gov.uk/doc/local-authority/33,Norfolk County Council,1-Mar-2011,2922190,       219.00,,RSP Ltd,86341,,Children's Services,Staff Public Transport Costs,35420,,,,Revenue
http://statistics.data.gov.uk/doc/local-authority/33,Norfolk County Council,1-Mar-2011,2922190,       116.80,,RSP Ltd,86341,,Children's Services,Staff Public Transport Costs,35420,,,,Revenue
http://statistics.data.gov.uk/doc/local-authority/33,Norfolk County Council,1-Mar-2011,2922190,       109.10,,RSP Ltd,86341,,Children's Services,Staff Public Transport Costs,35420,,,,Revenue
http://statistics.data.gov.uk/doc/local-authority/33,Norfolk County Council,1-Mar-2011,2922190,        10.00,,RSP Ltd,86341,,Children's Services,Staff Public Transport Costs,35420,,,,Revenue
http://statistics.data.gov.uk/doc/local-authority/33,Norfolk County Council,1-Mar-2011,2922190,        27.50,,RSP Ltd,86341,,Children's Services,Staff Public Transport Costs,35420,,,,Revenue
http://statistics.data.gov.uk/doc/local-authority/33,Norfolk County Council,1-Mar-2011,2922190,       100.90,,RSP Ltd,86341,,Children's Services,Staff Public Transport Costs,35420,,,,Revenue
http://statistics.data.gov.uk/doc/local-authority/33,Norfolk County Council,1-Mar-2011,2922190,        99.10,,RSP Ltd,86341,,Children's Services,Staff Public Transport Costs,35420,,,,Revenue
http://statistics.data.gov.uk/doc/local-authority/33,Norfolk County Council,1-Mar-2011,2922190,       396.40,,RSP Ltd,86341,,Children's Services,Staff Public Transport Costs,35420,,,,Revenue
http://statistics.data.gov.uk/doc/local-authority/33,Norfolk County Council,1-Mar-2011,2922190,        71.70,,RSP Ltd,86341,,Children's Services,Staff Public Transport Costs,35420,,,,Revenue
http://statistics.data.gov.uk/doc/local-authority/33,Norfolk County Council,1-Mar-2011,2922190,       240.60,,RSP Ltd,86341,,Children's Services,Staff Public Transport Costs,35420,,,,Revenue
http://statistics.data.gov.uk/doc/local-authority/33,Norfolk County Council,1-Mar-2011,2922190,       232.30,,RSP Ltd,86341,,Children's Services,Staff Public Transport Costs,35420,,,,Revenue
http://statistics.data.gov.uk/doc/local-authority/33,Norfolk County Council,1-Mar-2011,2922190,        88.00,,RSP Ltd,86341,,Children's Services,Staff Public Transport Costs,35420,,,,Revenue
http://statistics.data.gov.uk/doc/local-authority/33,Norfolk County Council,1-Mar-2011,2922190,       190.30,,RSP Ltd,86341,,Children's Services,Staff Public Transport Costs,35420,,,,Revenue
http://statistics.data.gov.uk/doc/local-authority/33,Norfolk County Council,1-Mar-2011,2922190,        73.00,,RSP Ltd,86341,,Children's Services,Staff Public Transport Costs,35420,,,,Revenue
http://statistics.data.gov.uk/doc/local-authority/33,Norfolk County Council,1-Mar-2011,2922190,        39.60,,RSP Ltd,86341,,Children's Services,Staff Public Transport Costs,35420,,,,Revenue
http://statistics.data.gov.uk/doc/local-authority/33,Norfolk County Council,1-Mar-2011,2922190,       120.00,,RSP Ltd,86341,,Children's Services,Staff Public Transport Costs,35420,,,,Revenue
http://statistics.data.gov.uk/doc/local-authority/33,Norfolk County Council,1-Mar-2011,2922190,        30.60,,RSP Ltd,86341,,Children's Services,Staff Public Transport Costs,35420,,,,Revenue
http://statistics.data.gov.uk/doc/local-authority/33,Norfolk County Council,1-Mar-2011,2925622,    -26418.33,,Norfolk Env Waste Services Ltd,72492,,Environment Transport & Development,Landfill Leachate Costs,22920,,,,Revenue
http://statistics.data.gov.uk/doc/local-authority/33,Norfolk County Council,1-Mar-2011,2928013,      1386.32,,Norfolk Env Waste Services Ltd,72492,,Environment Transport & Development,Electricity,24340,,,,Revenue
http://statistics.data.gov.uk/doc/local-authority/33,Norfolk County Council,1-Mar-2011,2928128,      1180.80,,NORSE Commercial Services,179148,,Community Services,Domiciliary Care,51610,,,,Revenue
http://statistics.data.gov.uk/doc/local-authority/33,Norfolk County Council,1-Mar-2011,2928132,       590.40,,NORSE Commercial Services,179148,,Community Services,Domiciliary Care,51610,,,,Revenue
http://statistics.data.gov.uk/doc/local-authority/33,Norfolk County Council,1-Mar-2011,2928138,       508.40,,NORSE Commercial Services,179148,,Community Services,Domiciliary Care,51610,,,,Revenue
http://statistics.data.gov.uk/doc/local-authority/33,Norfolk County Council,1-Mar-2011,2928141,       541.20,,NORSE Commercial Services,179148,,Community Services,Domiciliary Care,51610,,,,Revenue
http://statistics.data.gov.uk/doc/local-authority/33,Norfolk County Council,1-Mar-2011,2928148,       688.80,,NORSE Commercial Services,179148,,Community Services,Domiciliary Care,51610,,,,Revenue
http://statistics.data.gov.uk/doc/local-authority/33,Norfolk County Council,1-Mar-2011,2928149,      1410.40,,NORSE Commercial Services,179148,,Community Services,Domiciliary Care,51610,,,,Revenue
http://statistics.data.gov.uk/doc/local-authority/33,Norfolk County Council,1-Mar-2011,2928155,       934.80,,NORSE Commercial Services,179148,,Community Services,Domiciliary Care,51610,,,,Revenue
http://statistics.data.gov.uk/doc/local-authority/33,Norfolk County Council,1-Mar-2011,2928157,       574.00,,NORSE Commercial Services,179148,,Community Services,Domiciliary Care,51610,,,,Revenue
http://statistics.data.gov.uk/doc/local-authority/33,Norfolk County Council,1-Mar-2011,2928162,       574.00,,NORSE Commercial Services,179148,,Community Services,Domiciliary Care,51610,,,,Revenue
http://statistics.data.gov.uk/doc/local-authority/33,Norfolk County Council,1-Mar-2011,2928167,       672.40,,NORSE Commercial Services,179148,,Community Services,Domiciliary Care,51610,,,,Revenue
http://statistics.data.gov.uk/doc/local-authority/33,Norfolk County Council,1-Mar-2011,2928168,      1008.60,,NORSE Commercial Services,179148,,Community Services,Domiciliary Care,51610,,,,Revenue
http://statistics.data.gov.uk/doc/local-authority/33,Norfolk County Council,1-Mar-2011,2928174,      1016.80,,NORSE Commercial Services,179148,,Community Services,Domiciliary Care,51610,,,,Revenue
http://statistics.data.gov.uk/doc/local-authority/33,Norfolk County Council,1-Mar-2011,2928175,       639.67,,NORSE Commercial Services,179148,,Community Services,Domiciliary Care,51610,,,,Revenue
http://statistics.data.gov.uk/doc/local-authority/33,Norfolk County Council,1-Mar-2011,2928179,       590.40,,NORSE Commercial Services,179148,,Community Services,Domiciliary Care,51610,,,,Revenue
http://statistics.data.gov.uk/doc/local-authority/33,Norfolk County Council,1-Mar-2011,2928181,       770.80,,NORSE Commercial Services,179148,,Community Services,Domiciliary Care,51610,,,,Revenue
http://statistics.data.gov.uk/doc/local-authority/33,Norfolk County Council,1-Mar-2011,2934280,       865.91,,Reliance Employment Ltd,187549,,Community Services,Operational - Manual,08800,,,,Revenue
http://statistics.data.gov.uk/doc/local-authority/33,Norfolk County Council,1-Mar-2011,2934439,       514.13,,Arval UK Ltd,80697,,Environment Transport & Development,Vehicle Fuel,33420,,,,Revenue
http://statistics.data.gov.uk/doc/local-authority/33,Norfolk County Council,1-Mar-2011,2934463,       972.00,,RSP Ltd,86341,,Fire & Rescue,Staff Public Transport Costs,35420,,,,Revenue
http://statistics.data.gov.uk/doc/local-authority/33,Norfolk County Council,1-Mar-2011,2934814,        21.50,,RSP Ltd,86341,,Community Services,Staff Public Transport Costs,35420,,,,Revenue
http://statistics.data.gov.uk/doc/local-authority/33,Norfolk County Council,1-Mar-2011,2934814,       249.50,,RSP Ltd,86341,,Community Services,Staff Public Transport Costs,35420,,,,Revenue
http://statistics.data.gov.uk/doc/local-authority/33,Norfolk County Council,1-Mar-2011,2934814,       129.00,,RSP Ltd,86341,,Community Services,Staff Public Transport Costs,35420,,,,Revenue
http://statistics.data.gov.uk/doc/local-authority/33,Norfolk County Council,1-Mar-2011,2934814,        50.60,,RSP Ltd,86341,,Community Services,Staff Public Transport Costs,35420,,,,Revenue
http://statistics.data.gov.uk/doc/local-authority/33,Norfolk County Council,1-Mar-2011,2934814,       127.50,,RSP Ltd,86341,,Community Services,Staff Public Transport Costs,35420,,,,Revenue
http://statistics.data.gov.uk/doc/local-authority/33,Norfolk County Council,1-Mar-2011,2934814,        84.00,,RSP Ltd,86341,,Community Services,Staff Public Transport Costs,35420,,,,Revenue
http://statistics.data.gov.uk/doc/local-authority/33,Norfolk County Council,1-Mar-2011,2934814,       389.00,,RSP Ltd,86341,,Community Services,Staff Public Transport Costs,35420,,,,Revenue
http://statistics.data.gov.uk/doc/local-authority/33,Norfolk County Council,1-Mar-2011,2934814,        59.00,,RSP Ltd,86341,,Community Services,Staff Public Transport Costs,35420,,,,Revenue
http://statistics.data.gov.uk/doc/local-authority/33,Norfolk County Council,1-Mar-2011,2934814,        20.00,,RSP Ltd,86341,,Community Services,Staff Public Transport Costs,35420,,,,Revenue
http://statistics.data.gov.uk/doc/local-authority/33,Norfolk County Council,1-Mar-2011,2934814,        96.50,,RSP Ltd,86341,,Community Services,Staff Public Transport Costs,35420,,,,Revenue
http://statistics.data.gov.uk/doc/local-authority/33,Norfolk County Council,1-Mar-2011,2934814,        72.40,,RSP Ltd,86341,,Community Services,Staff Public Transport Costs,35420,,,,Revenue
http://statistics.data.gov.uk/doc/local-authority/33,Norfolk County Council,1-Mar-2011,2934814,        44.50,,RSP Ltd,86341,,Community Services,Staff Public Transport Costs,35420,,,,Revenue
http://statistics.data.gov.uk/doc/local-authority/33,Norfolk County Council,1-Mar-2011,2934814,        51.00,,RSP Ltd,86341,,Community Services,Staff Public Transport Costs,35420,,,,Revenue
http://statistics.data.gov.uk/doc/local-authority/33,Norfolk County Council,1-Mar-2011,2934814,        72.40,,RSP Ltd,86341,,Community Services,Staff Public Transport Costs,35420,,,,Revenue
http://statistics.data.gov.uk/doc/local-authority/33,Norfolk County Council,1-Mar-2011,2934814,        48.00,,RSP Ltd,86341,,Community Services,Staff Public Transport Costs,35420,,,,Revenue
http://statistics.data.gov.uk/doc/local-authority/33,Norfolk County Council,1-Mar-2011,2934814,        59.00,,RSP Ltd,86341,,Community Services,Staff Public Transport Costs,35420,,,,Revenue
http://statistics.data.gov.uk/doc/local-authority/33,Norfolk County Council,1-Mar-2011,2934814,        91.80,,RSP Ltd,86341,,Community Services,Staff Public Transport Costs,35420,,,,Revenue
http://statistics.data.gov.uk/doc/local-authority/33,Norfolk County Council,1-Mar-2011,2934814,        50.50,,RSP Ltd,86341,,Community Services,Staff Public Transport Costs,35420,,,,Revenue
http://statistics.data.gov.uk/doc/local-authority/33,Norfolk County Council,1-Mar-2011,2934849,     10792.32,,Lovells Hall,84530,,Children's Services,Payments to Organisations Providing Services To NCC,52000,,,,Revenue
http://statistics.data.gov.uk/doc/local-authority/33,Norfolk County Council,1-Mar-2011,2935348,     20245.64,,Norfolk Env Waste Services Ltd,72492,,Environment Transport & Development,Private Contractor Site Operation Payments,52550,,,,Revenue
http://statistics.data.gov.uk/doc/local-authority/33,Norfolk County Council,1-Mar-2011,2935350,      2984.69,,Norfolk Env Waste Services Ltd,72492,,Environment Transport & Development,Private Contractor Site Operation Payments,52550,,,,Revenue
http://statistics.data.gov.uk/doc/local-authority/33,Norfolk County Council,1-Mar-2011,2935351,      6676.56,,Norfolk Env Waste Services Ltd,72492,,Environment Transport & Development,Private Contractor Site Operation Payments,52550,,,,Revenue
http://statistics.data.gov.uk/doc/local-authority/33,Norfolk County Council,1-Mar-2011,2935359,      5275.26,,Norfolk Env Waste Services Ltd,72492,,Environment Transport & Development,Private Contractor Site Operation Payments,52550,,,,Revenue
http://statistics.data.gov.uk/doc/local-authority/33,Norfolk County Council,1-Mar-2011,2935498,      4444.00,,Matrix Display Systems Ltd,84854,,Children's Services,ICT Equipment Purchases,43900,,,,Revenue
http://statistics.data.gov.uk/doc/local-authority/33,Norfolk County Council,1-Mar-2011,2938112,       732.00,,ADT Fire & Security plc,65831,,Fire & Rescue,Phone Rentals,43210,,,,Revenue
http://statistics.data.gov.uk/doc/local-authority/33,Norfolk County Council,1-Mar-2011,2938329,    246500.00,,NPS Property Consultants Ltd,72669,,Environment Transport & Development,Property Services DSO Charges,45290,,,,Revenue
http://statistics.data.gov.uk/doc/local-authority/33,Norfolk County Council,1-Mar-2011,2938472,       115.83,,Arval UK Ltd,80697,,Community Services,Vehicle Fuel,33420,,,,Revenue
http://statistics.data.gov.uk/doc/local-authority/33,Norfolk County Council,1-Mar-2011,2938472,       137.86,,Arval UK Ltd,80697,,Community Services,Vehicle Fuel,33420,,,,Revenue
http://statistics.data.gov.uk/doc/local-authority/33,Norfolk County Council,1-Mar-2011,2938472,       131.57,,Arval UK Ltd,80697,,Community Services,Vehicle Fuel,33420,,,,Revenue
http://statistics.data.gov.uk/doc/local-authority/33,Norfolk County Council,1-Mar-2011,2938472,        38.33,,Arval UK Ltd,80697,,Community Services,Vehicle Fuel,33420,,,,Revenue
http://statistics.data.gov.uk/doc/local-authority/33,Norfolk County Council,1-Mar-2011,2938472,        85.13,,Arval UK Ltd,80697,,Community Services,Vehicle Fuel,33420,,,,Revenue
http://statistics.data.gov.uk/doc/local-authority/33,Norfolk County Council,1-Mar-2011,2938472,        74.87,,Arval UK Ltd,80697,,Community Services,Vehicle Fuel,33420,,,,Revenue
http://statistics.data.gov.uk/doc/local-authority/33,Norfolk County Council,1-Mar-2011,2938472,        92.41,,Arval UK Ltd,80697,,Community Services,Vehicle Fuel,33420,,,,Revenue
http://statistics.data.gov.uk/doc/local-authority/33,Norfolk County Council,1-Mar-2011,2938472,        89.92,,Arval UK Ltd,80697,,Community Services,Vehicle Fuel,33420,,,,Revenue
http://statistics.data.gov.uk/doc/local-authority/33,Norfolk County Council,1-Mar-2011,2938472,        87.12,,Arval UK Ltd,80697,,Community Services,Vehicle Fuel,33420,,,,Revenue
http://statistics.data.gov.uk/doc/local-authority/33,Norfolk County Council,1-Mar-2011,2938472,        68.89,,Arval UK Ltd,80697,,Community Services,Vehicle Fuel,33420,,,,Revenue
http://statistics.data.gov.uk/doc/local-authority/33,Norfolk County Council,1-Mar-2011,2938472,       104.17,,Arval UK Ltd,80697,,Community Services,Vehicle Fuel,33420,,,,Revenue
http://statistics.data.gov.uk/doc/local-authority/33,Norfolk County Council,1-Mar-2011,2938472,        67.37,,Arval UK Ltd,80697,,Community Services,Vehicle Fuel,33420,,,,Revenue
http://statistics.data.gov.uk/doc/local-authority/33,Norfolk County Council,1-Mar-2011,2938472,       152.69,,Arval UK Ltd,80697,,Community Services,Vehicle Fuel,33420,,,,Revenue
http://statistics.data.gov.uk/doc/local-authority/33,Norfolk County Council,1-Mar-2011,2938472,        66.07,,Arval UK Ltd,80697,,Community Services,Vehicle Fuel,33420,,,,Revenue
http://statistics.data.gov.uk/doc/local-authority/33,Norfolk County Council,1-Mar-2011,2938472,       111.52,,Arval UK Ltd,80697,,Community Services,Vehicle Fuel,33420,,,,Revenue
http://statistics.data.gov.uk/doc/local-authority/33,Norfolk County Council,1-Mar-2011,2938472,        85.92,,Arval UK Ltd,80697,,Community Services,Vehicle Fuel,33420,,,,Revenue
http://statistics.data.gov.uk/doc/local-authority/33,Norfolk County Council,1-Mar-2011,2938472,        73.82,,Arval UK Ltd,80697,,Community Services,Vehicle Fuel,33420,,,,Revenue
http://statistics.data.gov.uk/doc/local-authority/33,Norfolk County Council,1-Mar-2011,2938472,       108.52,,Arval UK Ltd,80697,,Community Services,Vehicle Fuel,33420,,,,Revenue
http://statistics.data.gov.uk/doc/local-authority/33,Norfolk County Council,1-Mar-2011,2938472,        81.97,,Arval UK Ltd,80697,,Community Services,Vehicle Fuel,33420,,,,Revenue
http://statistics.data.gov.uk/doc/local-authority/33,Norfolk County Council,1-Mar-2011,2938472,        76.54,,Arval UK Ltd,80697,,Community Services,Vehicle Fuel,33420,,,,Revenue
http://statistics.data.gov.uk/doc/local-authority/33,Norfolk County Council,1-Mar-2011,2938472,        89.27,,Arval UK Ltd,80697,,Community Services,Vehicle Fuel,33420,,,,Revenue
http://statistics.data.gov.uk/doc/local-authority/33,Norfolk County Council,1-Mar-2011,2939991,     31230.40,,Norfolk Env Waste Services Ltd,72492,,Environment Transport & Development,Private Contractor Site Operation Payments,52550,,,,Revenue
http://statistics.data.gov.uk/doc/local-authority/33,Norfolk County Council,1-Mar-2011,2940044,       799.00,,Redacted - Personal Data,Redacted,,Children's Services,Foster Care Child In Care Holiday Allowance,53870,,,,Revenue
http://statistics.data.gov.uk/doc/local-authority/33,Norfolk County Council,1-Mar-2011,2940048,      -739.25,,Espo,68527,,Community Services,Gas (mains supplied),24360,,,,Revenue
http://statistics.data.gov.uk/doc/local-authority/33,Norfolk County Council,1-Mar-2011,2940051,      -476.00,,Espo,68527,,Community Services,Gas (mains supplied),24360,,,,Revenue
http://statistics.data.gov.uk/doc/local-authority/33,Norfolk County Council,1-Mar-2011,2940054,       739.25,,Espo,68527,,Community Services,Gas (mains supplied),24360,,,,Revenue
http://statistics.data.gov.uk/doc/local-authority/33,Norfolk County Council,1-Mar-2011,2940055,       993.49,,Waste Recycling Group Limited,76094,,Environment Transport & Development,Private Contractor Site Operation Payments,52550,,,,Revenue
http://statistics.data.gov.uk/doc/local-authority/33,Norfolk County Council,1-Mar-2011,2940056,       739.25,,Espo,68527,,Community Services,Gas (mains supplied),24360,,,,Revenue
http://statistics.data.gov.uk/doc/local-authority/33,Norfolk County Council,1-Mar-2011,2940061,       476.00,,Espo,68527,,Community Services,Gas (mains supplied),24360,,,,Revenue
http://statistics.data.gov.uk/doc/local-authority/33,Norfolk County Council,1-Mar-2011,2940063,       480.21,,Espo,68527,,Community Services,Gas (mains supplied),24360,,,,Revenue
http://statistics.data.gov.uk/doc/local-authority/33,Norfolk County Council,1-Mar-2011,2940073,      1238.59,,Espo,68527,,Community Services,Gas (mains supplied),24360,,,,Revenue
http://statistics.data.gov.uk/doc/local-authority/33,Norfolk County Council,1-Mar-2011,2940075,     -1129.06,,Southern Electric,74726,,Community Services,Electricity,24340,,,,Revenue
http://statistics.data.gov.uk/doc/local-authority/33,Norfolk County Council,1-Mar-2011,2940078,     24083.00,,Audit Commission,80763,,Resources,Audit Fees - Accounts,72500,,,,Revenue
http://statistics.data.gov.uk/doc/local-authority/33,Norfolk County Council,1-Mar-2011,2940078,      1487.50,,Audit Commission,80763,,Resources,Audit Fees - Grants,72510,,,,Revenue
http://statistics.data.gov.uk/doc/local-authority/33,Norfolk County Council,1-Mar-2011,2940080,      1397.56,,Southern Electric,74726,,Community Services,Electricity,24340,,,,Revenue
http://statistics.data.gov.uk/doc/local-authority/33,Norfolk County Council,1-Mar-2011,2940083,      8400.00,,Renovo Employment Group Ltd,485480,,Resources,Staff Training Costs,17450,,,,Revenue
http://statistics.data.gov.uk/doc/local-authority/33,Norfolk County Council,1-Mar-2011,2940084,      1592.32,,Southern Electric,74726,,Community Services,Electricity,24340,,,,Revenue
http://statistics.data.gov.uk/doc/local-authority/33,Norfolk County Council,1-Mar-2011,2940087,      3472.00,,Nexus Fostering Ltd,91708,,Children's Services,Payments to Organisations Providing Services To NCC,52000,,,,Revenue
http://statistics.data.gov.uk/doc/local-authority/33,Norfolk County Council,1-Mar-2011,2940092,     -1166.57,,Southern Electric,74726,,Community Services,Electricity,24340,,,,Revenue
http://statistics.data.gov.uk/doc/local-authority/33,Norfolk County Council,1-Mar-2011,2940097,      3278.77,,Southern Electric,74726,,Community Services,Electricity,24340,,,,Revenue
http://statistics.data.gov.uk/doc/local-authority/33,Norfolk County Council,1-Mar-2011,2940105,       540.63,,Southern Electric,74726,,Community Services,Electricity,24340,,,,Revenue
http://statistics.data.gov.uk/doc/local-authority/33,Norfolk County Council,1-Mar-2011,2940110,       266.43,,Anglian Water Services Ltd,80641,,Community Services,Water and Sewerage Costs,24810,,,,Revenue
http://statistics.data.gov.uk/doc/local-authority/33,Norfolk County Council,1-Mar-2011,2940110,       330.41,,Anglian Water Services Ltd,80641,,Community Services,Sewerage & Environmental Services,24880,,,,Revenue
http://statistics.data.gov.uk/doc/local-authority/33,Norfolk County Council,1-Mar-2011,2940126,      2082.61,,Redacted - Personal Data,Redacted,,Children's Services,Sessional Fees,44560,,,,Revenue
http://statistics.data.gov.uk/doc/local-authority/33,Norfolk County Council,1-Mar-2011,2940132,      3900.00,,Sanders Coaches Ltd,74414,,Environment Transport & Development,Contract Transport  Hire,34900,,,,Revenue
http://statistics.data.gov.uk/doc/local-authority/33,Norfolk County Council,1-Mar-2011,2940132,       440.00,,Sanders Coaches Ltd,74414,,Environment Transport & Development,Private Contractor Subsidy Payments,52500,,,,Revenue
http://statistics.data.gov.uk/doc/local-authority/33,Norfolk County Council,1-Mar-2011,2940133,      1452.00,,Sanders Coaches Ltd,74414,,Environment Transport & Development,Private Contractor Subsidy Payments,52500,,,,Revenue
http://statistics.data.gov.uk/doc/local-authority/33,Norfolk County Council,1-Mar-2011,2940134,      3000.00,,Sanders Coaches Ltd,74414,,Environment Transport & Development,Private Contractor Subsidy Payments,52500,,,,Revenue
http://statistics.data.gov.uk/doc/local-authority/33,Norfolk County Council,1-Mar-2011,2940135,      2460.00,,Sanders Coaches Ltd,74414,,Environment Transport & Development,Private Contractor Subsidy Payments,52500,,,,Revenue
http://statistics.data.gov.uk/doc/local-authority/33,Norfolk County Council,1-Mar-2011,2940136,      1388.00,,NORSE Commercial Services,85259,,Environment Transport & Development,Private Contractor Subsidy Payments,52500,,,,Revenue
http://statistics.data.gov.uk/doc/local-authority/33,Norfolk County Council,1-Mar-2011,2940141,      1740.00,,Redacted - Personal Data,Redacted,,Environment Transport & Development,Contract Transport  Hire,34900,,,,Revenue
http://statistics.data.gov.uk/doc/local-authority/33,Norfolk County Council,1-Mar-2011,2940147,       547.59,,Southern Electric,74726,,Community Services,Electricity,24340,,,,Revenue
http://statistics.data.gov.uk/doc/local-authority/33,Norfolk County Council,1-Mar-2011,2940155,       840.00,,Redacted - Personal Data,Redacted,,Environment Transport & Development,Purchase Of Equipment,C3100,,,,Capital
http://statistics.data.gov.uk/doc/local-authority/33,Norfolk County Council,1-Mar-2011,2940161,      2077.52,,The Care Company UK Ltd,197447,,Community Services,Domiciliary Care,51610,,,,Revenue
http://statistics.data.gov.uk/doc/local-authority/33,Norfolk County Council,1-Mar-2011,2940163,       651.00,,The Care Company UK Ltd,197447,,Community Services,Domiciliary Care,51610,,,,Revenue
http://statistics.data.gov.uk/doc/local-authority/33,Norfolk County Council,1-Mar-2011,2940168,      1348.64,,The Care Company UK Ltd,197447,,Community Services,Domiciliary Care,51610,,,,Revenue
http://statistics.data.gov.uk/doc/local-authority/33,Norfolk County Council,1-Mar-2011,2940171,      1302.00,,The Care Company UK Ltd,197447,,Community Services,Domiciliary Care,51610,,,,Revenue
http://statistics.data.gov.uk/doc/local-authority/33,Norfolk County Council,1-Mar-2011,2940172,      6037.10,,Royal Mail,86310,,Resources,Postage & Postal Services,43050,,,,Revenue
http://statistics.data.gov.uk/doc/local-authority/33,Norfolk County Council,1-Mar-2011,2940177,      1381.08,,The Care Company UK Ltd,197447,,Community Services,Domiciliary Care,51610,,,,Revenue
http://statistics.data.gov.uk/doc/local-authority/33,Norfolk County Council,1-Mar-2011,2940179,      8856.12,,The Care Company UK Ltd,197447,,Community Services,Domiciliary Care,51610,,,,Revenue
http://statistics.data.gov.uk/doc/local-authority/33,Norfolk County Council,1-Mar-2011,2940183,      1968.82,,The Care Company UK Ltd,197447,,Community Services,Domiciliary Care,51610,,,,Revenue
http://statistics.data.gov.uk/doc/local-authority/33,Norfolk County Council,1-Mar-2011,2940185,      1054.00,,The Care Company UK Ltd,197447,,Community Services,Domiciliary Care,51610,,,,Revenue
http://statistics.data.gov.uk/doc/local-authority/33,Norfolk County Council,1-Mar-2011,2940187,       542.64,,The Care Company UK Ltd,197447,,Community Services,Domiciliary Care,51610,,,,Revenue
http://statistics.data.gov.uk/doc/local-authority/33,Norfolk County Council,1-Mar-2011,2940188,       588.95,,Winslow,87674,,Children's Services,General Equipment/Tools/Materials-Purchase,41490,,,,Revenue
http://statistics.data.gov.uk/doc/local-authority/33,Norfolk County Council,1-Mar-2011,2940189,       868.00,,The Care Company UK Ltd,197447,,Community Services,Domiciliary Care,51610,,,,Revenue
http://statistics.data.gov.uk/doc/local-authority/33,Norfolk County Council,1-Mar-2011,2940191,       992.15,,The Care Company UK Ltd,197447,,Community Services,Domiciliary Care,51610,,,,Revenue
http://statistics.data.gov.uk/doc/local-authority/33,Norfolk County Council,1-Mar-2011,2940196,     37895.00,,Claimar Care Ltd,179205,,Community Services,Domiciliary Care,51610,,,,Revenue
http://statistics.data.gov.uk/doc/local-authority/33,Norfolk County Council,1-Mar-2011,2940196,      5726.50,,Claimar Care Ltd,179205,,Community Services,Domiciliary Care,51610,,,,Revenue
http://statistics.data.gov.uk/doc/local-authority/33,Norfolk County Council,1-Mar-2011,2940206,       868.99,,Allied Healthcare Group Ltd,104517,,Community Services,Domiciliary Care,51610,,,,Revenue
http://statistics.data.gov.uk/doc/local-authority/33,Norfolk County Council,1-Mar-2011,2940217,       586.00,,A1 Cabs & Travel Company,65820,,Environment Transport & Development,Contract Transport  Hire,34900,,,,Revenue
http://statistics.data.gov.uk/doc/local-authority/33,Norfolk County Council,1-Mar-2011,2940219,      1709.00,,Redacted - Personal Data,Redacted,,Environment Transport & Development,Contract Transport  Hire,34900,,,,Revenue
http://statistics.data.gov.uk/doc/local-authority/33,Norfolk County Council,1-Mar-2011,2940223,      4575.60,,A1 Cabs & Travel Company,65820,,Environment Transport & Development,Contract Transport  Hire,34900,,,,Revenue
http://statistics.data.gov.uk/doc/local-authority/33,Norfolk County Council,1-Mar-2011,2940224,      2821.84,,Allied Healthcare Group Ltd,104517,,Community Services,Domiciliary Care,51610,,,,Revenue
http://statistics.data.gov.uk/doc/local-authority/33,Norfolk County Council,1-Mar-2011,2940226,       637.84,,Allied Healthcare Group Ltd,104517,,Community Services,Domiciliary Care,51610,,,,Revenue
http://statistics.data.gov.uk/doc/local-authority/33,Norfolk County Council,1-Mar-2011,2940227,      1813.14,,Allied Healthcare Group Ltd,104517,,Community Services,Domiciliary Care,51610,,,,Revenue
http://statistics.data.gov.uk/doc/local-authority/33,Norfolk County Council,1-Mar-2011,2940229,      1787.53,,Allied Healthcare Group Ltd,104517,,Community Services,Domiciliary Care,51610,,,,Revenue
http://statistics.data.gov.uk/doc/local-authority/33,Norfolk County Council,1-Mar-2011,2940239,      7151.56,,Dimensions (NSO) Ltd,144113,,Community Services,Supported Living,52140,,,,Revenue
http://statistics.data.gov.uk/doc/local-authority/33,Norfolk County Council,1-Mar-2011,2940259,      6480.00,,Barnardiston Hall School,165243,,Children's Services,Private Voluntary Independent School Pre-school & Playgroup,52200,,,,Revenue
http://statistics.data.gov.uk/doc/local-authority/33,Norfolk County Council,1-Mar-2011,2940259,     19638.00,,Barnardiston Hall School,165243,,Children's Services,Placement Cost - Agency Fee,54430,,,,Revenue
http://statistics.data.gov.uk/doc/local-authority/33,Norfolk County Council,1-Mar-2011,2940301,      2602.94,,Anglian Water Services Ltd,80641,,Children's Services,Water and Sewerage Costs,24810,,,,Revenue
http://statistics.data.gov.uk/doc/local-authority/33,Norfolk County Council,1-Mar-2011,2940554,        70.08,,Redacted - Personal Data,Redacted,,Children's Services,Voluntary Driver Payments,35700,,,,Revenue
http://statistics.data.gov.uk/doc/local-authority/33,Norfolk County Council,1-Mar-2011,2940554,      1236.00,,Redacted - Personal Data,Redacted,,Children's Services,Other Expenses,46970,,,,Revenue
http://statistics.data.gov.uk/doc/local-authority/33,Norfolk County Council,1-Mar-2011,2940563,       701.58,,Redacted - Personal Data,Redacted,,Fire & Rescue,Minor Building Repairs,A1800,,,,Revenue
http://statistics.data.gov.uk/doc/local-authority/33,Norfolk County Council,1-Mar-2011,2940575,       775.53,,Redacted - Personal Data,Redacted,,Fire & Rescue,Minor Building Repairs,A1800,,,,Revenue
http://statistics.data.gov.uk/doc/local-authority/33,Norfolk County Council,1-Mar-2011,2940594,        18.98,,Redacted - Personal Data,Redacted,,Children's Services,Voluntary Driver Payments,35700,,,,Revenue
http://statistics.data.gov.uk/doc/local-authority/33,Norfolk County Council,1-Mar-2011,2940594,       700.40,,Redacted - Personal Data,Redacted,,Children's Services,Other Expenses,46970,,,,Revenue
http://statistics.data.gov.uk/doc/local-authority/33,Norfolk County Council,1-Mar-2011,2940653,       599.97,,B A Yeomans & Son Ltd,80797,,Community Services,Supported Living,52140,,,,Revenue
http://statistics.data.gov.uk/doc/local-authority/33,Norfolk County Council,1-Mar-2011,2940741,       507.00,,Keystone Development Trust,84230,,Children's Services,Hire Of Premises,24540,,,,Revenue
http://statistics.data.gov.uk/doc/local-authority/33,Norfolk County Council,1-Mar-2011,2940757,      -579.14,,Southern Electric,74726,,Community Services,Electricity,24340,,,,Revenue
http://statistics.data.gov.uk/doc/local-authority/33,Norfolk County Council,1-Mar-2011,2940763,        43.80,,Redacted - Personal Data,Redacted,,Children's Services,Voluntary Driver Payments,35700,,,,Revenue
http://statistics.data.gov.uk/doc/local-authority/33,Norfolk County Council,1-Mar-2011,2940763,       710.70,,Redacted - Personal Data,Redacted,,Children's Services,Other Expenses,46970,,,,Revenue
http://statistics.data.gov.uk/doc/local-authority/33,Norfolk County Council,1-Mar-2011,2940805,      1165.85,,Vodafone Corporate Limited,75986,,Environment Transport & Development,Mobile Phone Other,43470,,,,Revenue
http://statistics.data.gov.uk/doc/local-authority/33,Norfolk County Council,1-Mar-2011,2940809,       534.15,,Vodafone Corporate Limited,75986,,Environment Transport & Development,Mobile Phone Other,43470,,,,Revenue
http://statistics.data.gov.uk/doc/local-authority/33,Norfolk County Council,1-Mar-2011,2940833,      2239.29,,Anglian Water Services Ltd,80641,,Resources,Water and Sewerage Costs,24810,,,,Revenue
http://statistics.data.gov.uk/doc/local-authority/33,Norfolk County Council,1-Mar-2011,2940837,       692.42,,Anglian Water Services Ltd,80641,,Resources,Water and Sewerage Costs,24810,,,,Revenue
http://statistics.data.gov.uk/doc/local-authority/33,Norfolk County Council,1-Mar-2011,2940838,      2105.44,,Anglian Water Services Ltd,80641,,Resources,Water and Sewerage Costs,24810,,,,Revenue
http://statistics.data.gov.uk/doc/local-authority/33,Norfolk County Council,1-Mar-2011,2940845,       799.00,,EDI Plc,82577,,Children's Services,Educational Materials,40860,,,,Revenue
http://statistics.data.gov.uk/doc/local-authority/33,Norfolk County Council,1-Mar-2011,2940847,      1808.38,,Anglian Water Services Ltd,80641,,Resources,Water and Sewerage Costs,24810,,,,Revenue
http://statistics.data.gov.uk/doc/local-authority/33,Norfolk County Council,1-Mar-2011,2940852,      1861.22,,Espo,68527,,Resources,Gas (mains supplied),24360,,,,Revenue
http://statistics.data.gov.uk/doc/local-authority/33,Norfolk County Council,1-Mar-2011,2940854,     12153.17,,Espo,68527,,Resources,Gas (mains supplied),24360,,,,Revenue
http://statistics.data.gov.uk/doc/local-authority/33,Norfolk County Council,1-Mar-2011,2940854,      2029.71,,Espo,68527,,Resources,Gas (mains supplied),24360,,,,Revenue
http://statistics.data.gov.uk/doc/local-authority/33,Norfolk County Council,1-Mar-2011,2940858,       770.00,,Mary Hare School,84845,,Children's Services,Staff Training Costs,17450,,,,Revenue
http://statistics.data.gov.uk/doc/local-authority/33,Norfolk County Council,1-Mar-2011,2940861,       770.00,,Mary Hare School,84845,,Children's Services,Staff Training Costs,17450,,,,Revenue
http://statistics.data.gov.uk/doc/local-authority/33,Norfolk County Council,1-Mar-2011,2940875,     55969.45,,NPS Property Consultants Ltd,72669,,Children's Services,Architects Fees,C5120,,,,Capital
http://statistics.data.gov.uk/doc/local-authority/33,Norfolk County Council,1-Mar-2011,2940893,       950.00,,NPS South East Ltd,174955,,Children's Services,Architects Fees,C5120,,,,Capital
http://statistics.data.gov.uk/doc/local-authority/33,Norfolk County Council,1-Mar-2011,2940894,      2405.76,,Southern Electric,74726,,Children's Services,Electricity,24340,,,,Revenue
http://statistics.data.gov.uk/doc/local-authority/33,Norfolk County Council,1-Mar-2011,2940896,      3105.00,,NPS South East Ltd,174955,,Children's Services,Architects Fees,C5120,,,,Capital
http://statistics.data.gov.uk/doc/local-authority/33,Norfolk County Council,1-Mar-2011,2940897,      1520.00,,NPS South East Ltd,174955,,Children's Services,Architects Fees,C5120,,,,Capital
http://statistics.data.gov.uk/doc/local-authority/33,Norfolk County Council,1-Mar-2011,2940901,      1550.00,,NPS South East Ltd,174955,,Children's Services,Architects Fees,C5120,,,,Capital
http://statistics.data.gov.uk/doc/local-authority/33,Norfolk County Council,1-Mar-2011,2940902,       901.75,,Southern Electric,74726,,Resources,Electricity,24340,,,,Revenue
http://statistics.data.gov.uk/doc/local-authority/33,Norfolk County Council,1-Mar-2011,2940903,      2640.00,,NPS South East Ltd,174955,,Children's Services,Architects Fees,C5120,,,,Capital
http://statistics.data.gov.uk/doc/local-authority/33,Norfolk County Council,1-Mar-2011,2940904,       970.00,,NPS South East Ltd,174955,,Children's Services,Architects Fees,C5120,,,,Capital
http://statistics.data.gov.uk/doc/local-authority/33,Norfolk County Council,1-Mar-2011,2940912,      5850.00,,NPS Property Consultants Ltd,72669,,Children's Services,Architects Fees,C5120,,,,Capital
http://statistics.data.gov.uk/doc/local-authority/33,Norfolk County Council,1-Mar-2011,2940915,       860.00,,NPS South East Ltd,174955,,Children's Services,Architects Fees,C5120,,,,Capital
http://statistics.data.gov.uk/doc/local-authority/33,Norfolk County Council,1-Mar-2011,2940917,      1580.00,,NPS South East Ltd,174955,,Children's Services,Architects Fees,C5120,,,,Capital
http://statistics.data.gov.uk/doc/local-authority/33,Norfolk County Council,1-Mar-2011,2940918,      5516.00,,NPS South East Ltd,174955,,Children's Services,Architects Fees,C5120,,,,Capital
http://statistics.data.gov.uk/doc/local-authority/33,Norfolk County Council,1-Mar-2011,2940919,      2028.55,,NPS South East Ltd,174955,,Children's Services,Architects Fees,C5120,,,,Capital
http://statistics.data.gov.uk/doc/local-authority/33,Norfolk County Council,1-Mar-2011,2940921,      2121.35,,NPS South East Ltd,174955,,Children's Services,Architects Fees,C5120,,,,Capital
http://statistics.data.gov.uk/doc/local-authority/33,Norfolk County Council,1-Mar-2011,2940922,      1040.00,,NPS South East Ltd,174955,,Children's Services,Architects Fees,C5120,,,,Capital
http://statistics.data.gov.uk/doc/local-authority/33,Norfolk County Council,1-Mar-2011,2940924,       680.00,,NPS South East Ltd,174955,,Children's Services,Architects Fees,C5120,,,,Capital
http://statistics.data.gov.uk/doc/local-authority/33,Norfolk County Council,1-Mar-2011,2940957,       466.80,,Veolia ES (UK) Ltd,131626,,Resources,Refuse Collection Costs,25270,,,,Revenue
http://statistics.data.gov.uk/doc/local-authority/33,Norfolk County Council,1-Mar-2011,2940961,     66672.78,,T Gill & Son (Norwich) Ltd,75157,,Community Services,Construction Cost-Adoption/Improvement Building,C2450,,,,Capital
http://statistics.data.gov.uk/doc/local-authority/33,Norfolk County Council,1-Mar-2011,2940963,     11191.49,,NORSE Commercial Services,179148,,Children's Services,Construction Cost-Adoption/Improvement Building,C2450,,,,Capital
http://statistics.data.gov.uk/doc/local-authority/33,Norfolk County Council,2-Mar-2011,2888446,      1508.00,,Fine Line Communications (Ea) Ltd,68951,,Children's Services,ICT Equipment Purchases,43900,,,,Revenue
http://statistics.data.gov.uk/doc/local-authority/33,Norfolk County Council,2-Mar-2011,2892786,       581.18,,Dell Corporation Ltd,68158,,Children's Services,ICT Equipment Purchases,43900,,,,Revenue
http://statistics.data.gov.uk/doc/local-authority/33,Norfolk County Council,2-Mar-2011,2903421,       493.00,,Silk Group,99525,,Children's Services,Equipment Purchases,40850,,,,Revenue
http://statistics.data.gov.uk/doc/local-authority/33,Norfolk County Council,2-Mar-2011,2903613,       549.00,,Ergo Computing Uk Limited,68752,,Children's Services,Purchase Of IT,C3200,,,,Capital
http://statistics.data.gov.uk/doc/local-authority/33,Norfolk County Council,2-Mar-2011,2903617,       495.00,,Ergo Computing Uk Limited,68752,,Children's Services,Purchase Of IT,C3200,,,,Capital
http://statistics.data.gov.uk/doc/local-authority/33,Norfolk County Council,2-Mar-2011,2903879,       495.00,,Ergo Computing Uk Limited,68752,,Children's Services,Purchase Of IT,C3200,,,,Capital
http://statistics.data.gov.uk/doc/local-authority/33,Norfolk County Council,2-Mar-2011,2905134,       645.38,,Cemmex UK Operations,104398,,Environment Transport & Development,Materials Purchases,42160,,,,Revenue
http://statistics.data.gov.uk/doc/local-authority/33,Norfolk County Council,2-Mar-2011,2905136,      1333.79,,Cemmex UK Operations,104398,,Environment Transport & Development,Materials Purchases,42160,,,,Revenue
http://statistics.data.gov.uk/doc/local-authority/33,Norfolk County Council,2-Mar-2011,2905139,       462.52,,Cemmex UK Operations,104398,,Environment Transport & Development,Materials Purchases,42160,,,,Revenue
http://statistics.data.gov.uk/doc/local-authority/33,Norfolk County Council,2-Mar-2011,2906206,      8207.74,,Redacted - Personal Data,Redacted,,Children's Services,ICT Equipment Purchases,43900,,,,Revenue
http://statistics.data.gov.uk/doc/local-authority/33,Norfolk County Council,2-Mar-2011,2906292,       650.00,,Monthind Ltd,403024,,Resources,Contract Cleaning & Other Cleaning Services,25300,,,,Revenue
http://statistics.data.gov.uk/doc/local-authority/33,Norfolk County Council,2-Mar-2011,2906950,      4290.00,,Trojan Consultants Limited,75769,,Community Services,"ICT Software Purchases, Licenses & Maintenance",44170,,,,Revenue
http://statistics.data.gov.uk/doc/local-authority/33,Norfolk County Council,2-Mar-2011,2909725,       507.37,,Builders Equipment Limited,66929,,Environment Transport & Development,Materials Purchases,42160,,,,Revenue
http://statistics.data.gov.uk/doc/local-authority/33,Norfolk County Council,2-Mar-2011,2910100,      2005.19,,Prestige Nursing,73367,,Community Services,Domiciliary Care,51610,,,,Revenue
http://statistics.data.gov.uk/doc/local-authority/33,Norfolk County Council,2-Mar-2011,2910120,       724.80,,New Boundaries Ltd,72394,,Community Services,Day Care / Supported Activities,52160,,,,Revenue
http://statistics.data.gov.uk/doc/local-authority/33,Norfolk County Council,2-Mar-2011,2910570,       452.00,,Sicon Ltd,125633,,Environment Transport & Development,Support Services,45170,,,,Revenue
http://statistics.data.gov.uk/doc/local-authority/33,Norfolk County Council,2-Mar-2011,2910674,       148.73,,Anglia Freight Limited,66122,,Community Services,Delivery/Collection,32360,,,,Revenue
http://statistics.data.gov.uk/doc/local-authority/33,Norfolk County Council,2-Mar-2011,2910674,       409.81,,Anglia Freight Limited,66122,,Community Services,Delivery/Collection,32360,,,,Revenue
http://statistics.data.gov.uk/doc/local-authority/33,Norfolk County Council,2-Mar-2011,2910681,       448.33,,Anglia Freight Limited,66122,,Community Services,Delivery/Collection,32360,,,,Revenue
http://statistics.data.gov.uk/doc/local-authority/33,Norfolk County Council,2-Mar-2011,2910687,       102.72,,Anglia Freight Limited,66122,,Community Services,Delivery/Collection,32360,,,,Revenue
http://statistics.data.gov.uk/doc/local-authority/33,Norfolk County Council,2-Mar-2011,2910687,       435.49,,Anglia Freight Limited,66122,,Community Services,Delivery/Collection,32360,,,,Revenue
http://statistics.data.gov.uk/doc/local-authority/33,Norfolk County Council,2-Mar-2011,2910903,      1081.82,,NORSE Commercial Services,179148,,Resources,Contract Cleaning & Other Cleaning Services,25300,,,,Revenue
http://statistics.data.gov.uk/doc/local-authority/33,Norfolk County Council,2-Mar-2011,2912368,       435.47,,Supplies Team Ltd,116242,,Children's Services,Office Equipment & Supplies,40000,,,,Revenue
http://statistics.data.gov.uk/doc/local-authority/33,Norfolk County Council,2-Mar-2011,2912401,       464.12,,Supplies Team Ltd,116242,,Community Services,Stationery,46540,,,,Revenue
http://statistics.data.gov.uk/doc/local-authority/33,Norfolk County Council,2-Mar-2011,2912474,        48.25,,Konica Minolta Business Solutions East Ltd,70912,,Community Services,Photocopying - General,46520,,,,Revenue
http://statistics.data.gov.uk/doc/local-authority/33,Norfolk County Council,2-Mar-2011,2912474,        53.43,,Konica Minolta Business Solutions East Ltd,70912,,Community Services,Photocopying - General,46520,,,,Revenue
http://statistics.data.gov.uk/doc/local-authority/33,Norfolk County Council,2-Mar-2011,2912474,        29.79,,Konica Minolta Business Solutions East Ltd,70912,,Community Services,Photocopying - General,46520,,,,Revenue
http://statistics.data.gov.uk/doc/local-authority/33,Norfolk County Council,2-Mar-2011,2912474,       287.62,,Konica Minolta Business Solutions East Ltd,70912,,Community Services,Photocopying - General,46520,,,,Revenue
http://statistics.data.gov.uk/doc/local-authority/33,Norfolk County Council,2-Mar-2011,2912474,        80.95,,Konica Minolta Business Solutions East Ltd,70912,,Community Services,Photocopying - General,46520,,,,Revenue
http://statistics.data.gov.uk/doc/local-authority/33,Norfolk County Council,2-Mar-2011,2912493,       747.50,,Anglian Health & Safety Supplies,80639,,Community Services,Protective Clothing and Uniforms,46350,,,,Revenue
http://statistics.data.gov.uk/doc/local-authority/33,Norfolk County Council,2-Mar-2011,2912500,       558.00,,Anglian Health & Safety Supplies,80639,,Community Services,Protective Clothing and Uniforms,46350,,,,Revenue
http://statistics.data.gov.uk/doc/local-authority/33,Norfolk County Council,2-Mar-2011,2912503,       920.00,,Bottomline Technologies Europe Ltd,81046,,Resources,Office Equipment-Routine Maintenance,40030,,,,Revenue
http://statistics.data.gov.uk/doc/local-authority/33,Norfolk County Council,2-Mar-2011,2912553,       625.00,,Conservation By Design Ltd,81825,,Community Services,Materials Purchases,42160,,,,Revenue
http://statistics.data.gov.uk/doc/local-authority/33,Norfolk County Council,2-Mar-2011,2912553,        10.00,,Conservation By Design Ltd,81825,,Community Services,Postage & Postal Services,43050,,,,Revenue
http://statistics.data.gov.uk/doc/local-authority/33,Norfolk County Council,2-Mar-2011,2912696,      1027.93,,Province Building Services Ltd,171598,,Children's Services,Certificate - Building Fabric,C2560,,,,Capital
http://statistics.data.gov.uk/doc/local-authority/33,Norfolk County Council,2-Mar-2011,2912731,       596.15,,Pickfords Business Moving,113552,,Children's Services,Other Hired & Contracted Services,44810,,,,Revenue
http://statistics.data.gov.uk/doc/local-authority/33,Norfolk County Council,2-Mar-2011,2912731,       212.08,,Pickfords Business Moving,113552,,Children's Services,Other Hired & Contracted Services,44810,,,,Revenue
http://statistics.data.gov.uk/doc/local-authority/33,Norfolk County Council,2-Mar-2011,2912797,       295.00,,Childways,120028,,Children's Services,Staff Training Costs,17450,,,,Revenue
http://statistics.data.gov.uk/doc/local-authority/33,Norfolk County Council,2-Mar-2011,2912797,       298.33,,Childways,120028,,Children's Services,Staff Training Costs,17450,,,,Revenue
http://statistics.data.gov.uk/doc/local-authority/33,Norfolk County Council,2-Mar-2011,2912936,       509.00,,CR Safety Management,138599,,Children's Services,Fees/Expenses - Other Consultants,44530,,,,Revenue
http://statistics.data.gov.uk/doc/local-authority/33,Norfolk County Council,2-Mar-2011,2914015,       616.27,,Redacted - Personal Data,Redacted,,Children's Services,Minor Building Repairs,A3800,,,,Revenue
http://statistics.data.gov.uk/doc/local-authority/33,Norfolk County Council,2-Mar-2011,2914307,      7428.56,,Dimensions (NSO) Ltd,144113,,Community Services,Domiciliary Care,51610,,,,Revenue
http://statistics.data.gov.uk/doc/local-authority/33,Norfolk County Council,2-Mar-2011,2914410,        82.00,,Glazewing Ltd,69351,,Environment Transport & Development,Refuse Collection Costs,25270,,,,Revenue
http://statistics.data.gov.uk/doc/local-authority/33,Norfolk County Council,2-Mar-2011,2914410,       725.00,,Glazewing Ltd,69351,,Environment Transport & Development,Refuse Collection Costs,25270,,,,Revenue
http://statistics.data.gov.uk/doc/local-authority/33,Norfolk County Council,2-Mar-2011,2914453,      1876.00,,Stone Computers Ltd,91070,,Children's Services,ICT Equipment Purchases,43900,,,,Revenue
http://statistics.data.gov.uk/doc/local-authority/33,Norfolk County Council,2-Mar-2011,2914641,      2160.00,,Currie & Brown Group Ltd,188298,,Children's Services,Architects Fees,C5120,,,,Capital
http://statistics.data.gov.uk/doc/local-authority/33,Norfolk County Council,2-Mar-2011,2915284,         4.99,,Oakhill Publishing Ltd,112312,,Community Services,Books and Publications,40800,,,,Revenue
http://statistics.data.gov.uk/doc/local-authority/33,Norfolk County Council,2-Mar-2011,2915284,       542.00,,Oakhill Publishing Ltd,112312,,Community Services,Materials Purchases,42160,,,,Revenue
http://statistics.data.gov.uk/doc/local-authority/33,Norfolk County Council,2-Mar-2011,2915320,       683.42,,DX Network Services Ltd,69689,,Community Services,Postage & Postal Services,43050,,,,Revenue
http://statistics.data.gov.uk/doc/local-authority/33,Norfolk County Council,2-Mar-2011,2916985,       525.00,,Attain2Gain Ltd,468315,,Community Services,Teaching Support,45900,,,,Revenue
http://statistics.data.gov.uk/doc/local-authority/33,Norfolk County Council,2-Mar-2011,2917015,      1433.02,,Jark Healthcare Ltd,134618,,Community Services,Agency Staff - Operational - Manual,08810,,,,Revenue
http://statistics.data.gov.uk/doc/local-authority/33,Norfolk County Council,2-Mar-2011,2917155,       382.81,,Euro RSG Riley Ltd,82665,,Environment Transport & Development,Non Staff Advertising - Discretionary,47100,,,,Revenue
http://statistics.data.gov.uk/doc/local-authority/33,Norfolk County Council,2-Mar-2011,2917155,        76.56,,Euro RSG Riley Ltd,82665,,Environment Transport & Development,Construction Costs - Roads - Management,C2500,,,,Capital
http://statistics.data.gov.uk/doc/local-authority/33,Norfolk County Council,2-Mar-2011,2917155,        76.56,,Euro RSG Riley Ltd,82665,,Environment Transport & Development,Construction Costs - Roads - Management,C2500,,,,Capital
http://statistics.data.gov.uk/doc/local-authority/33,Norfolk County Council,2-Mar-2011,2917155,       153.12,,Euro RSG Riley Ltd,82665,,Environment Transport & Development,Construction Costs - Roads - Management,C2500,,,,Capital
http://statistics.data.gov.uk/doc/local-authority/33,Norfolk County Council,2-Mar-2011,2917169,       561.53,,Euro RSG Riley Ltd,82665,,Environment Transport & Development,Non Staff Advertising - Discretionary,47100,,,,Revenue
http://statistics.data.gov.uk/doc/local-authority/33,Norfolk County Council,2-Mar-2011,2917169,       187.17,,Euro RSG Riley Ltd,82665,,Environment Transport & Development,Construction Costs - Roads - Management,C2500,,,,Capital
http://statistics.data.gov.uk/doc/local-authority/33,Norfolk County Council,2-Mar-2011,2917169,       124.78,,Euro RSG Riley Ltd,82665,,Environment Transport & Development,Construction Costs - Roads - Management,C2500,,,,Capital
http://statistics.data.gov.uk/doc/local-authority/33,Norfolk County Council,2-Mar-2011,2917169,        62.39,,Euro RSG Riley Ltd,82665,,Environment Transport & Development,Construction Costs - Roads - Management,C2500,,,,Capital
http://statistics.data.gov.uk/doc/local-authority/33,Norfolk County Council,2-Mar-2011,2917169,        62.39,,Euro RSG Riley Ltd,82665,,Environment Transport & Development,Construction Costs - Roads - Management,C2500,,,,Capital
http://statistics.data.gov.uk/doc/local-authority/33,Norfolk County Council,2-Mar-2011,2917169,       124.78,,Euro RSG Riley Ltd,82665,,Environment Transport & Development,Construction Costs - Roads - Management,C2500,,,,Capital
http://statistics.data.gov.uk/doc/local-authority/33,Norfolk County Council,2-Mar-2011,2917204,       908.50,,Wordingham Plant Hire Ltd,134000,,Environment Transport & Development,Road Maintenance Contractor Payments,45070,,,,Revenue
http://statistics.data.gov.uk/doc/local-authority/33,Norfolk County Council,2-Mar-2011,2917225,       736.00,,Wordingham Plant Hire Ltd,134000,,Environment Transport & Development,Road Maintenance Contractor Payments,45070,,,,Revenue
http://statistics.data.gov.uk/doc/local-authority/33,Norfolk County Council,2-Mar-2011,2917225,       184.00,,Wordingham Plant Hire Ltd,134000,,Environment Transport & Development,Road Maintenance Contractor Payments,45070,,,,Revenue
http://statistics.data.gov.uk/doc/local-authority/33,Norfolk County Council,2-Mar-2011,2917251,       707.95,,Enco Energy Utilities Ltd,190395,,Environment Transport & Development,Electricity,24340,,,,Revenue
http://statistics.data.gov.uk/doc/local-authority/33,Norfolk County Council,2-Mar-2011,2917315,       455.00,,Stationery Office Ltd,86903,,Community Services,Official Legislation Documents,40110,,,,Revenue
http://statistics.data.gov.uk/doc/local-authority/33,Norfolk County Council,2-Mar-2011,2917490,      1914.03,,WOLSELEY UK LTD,76320,,Environment Transport & Development,Materials Purchases,42160,,,,Revenue
http://statistics.data.gov.uk/doc/local-authority/33,Norfolk County Council,2-Mar-2011,2917953,       707.39,,R G Carter Building Ltd,86043,,Resources,Grounds Maintenance Costs,22500,,,,Revenue
http://statistics.data.gov.uk/doc/local-authority/33,Norfolk County Council,2-Mar-2011,2918167,       637.39,,Vodafone Corporate Limited,75986,,Community Services,Telephone Rental & Calls,43200,,,,Revenue
http://statistics.data.gov.uk/doc/local-authority/33,Norfolk County Council,2-Mar-2011,2918169,      1840.00,,On Track Education Services Ltd,105893,,Children's Services,Sessional Fees,44560,,,,Revenue
http://statistics.data.gov.uk/doc/local-authority/33,Norfolk County Council,2-Mar-2011,2918171,       590.15,,Vodafone Corporate Limited,75986,,Community Services,Telephone Rental & Calls,43200,,,,Revenue
http://statistics.data.gov.uk/doc/local-authority/33,Norfolk County Council,2-Mar-2011,2918645,       457.66,,G Sides Electrical Ltd,69219,,Community Services,Minor Building Repairs,A1800,,,,Revenue
http://statistics.data.gov.uk/doc/local-authority/33,Norfolk County Council,2-Mar-2011,2918647,      2998.29,,T & P Fire Ltd,172967,,Community Services,Electrical Rewiring,A1760,,,,Revenue
http://statistics.data.gov.uk/doc/local-authority/33,Norfolk County Council,2-Mar-2011,2918657,       264.28,,T & P Fire Ltd,172967,,Children's Services,Fire Alarms,A1690,,,,Revenue
http://statistics.data.gov.uk/doc/local-authority/33,Norfolk County Council,2-Mar-2011,2918657,        98.64,,T & P Fire Ltd,172967,,Children's Services,Fire Alarms,A1690,,,,Revenue
http://statistics.data.gov.uk/doc/local-authority/33,Norfolk County Council,2-Mar-2011,2918657,        87.20,,T & P Fire Ltd,172967,,Children's Services,Fire Alarms,A1690,,,,Revenue
http://statistics.data.gov.uk/doc/local-authority/33,Norfolk County Council,2-Mar-2011,2918657,        39.03,,T & P Fire Ltd,172967,,Community Services,Fire Alarms,A1690,,,,Revenue
http://statistics.data.gov.uk/doc/local-authority/33,Norfolk County Council,2-Mar-2011,2918657,       159.47,,T & P Fire Ltd,172967,,Community Services,Fire Alarms,A1690,,,,Revenue
http://statistics.data.gov.uk/doc/local-authority/33,Norfolk County Council,2-Mar-2011,2918657,        51.94,,T & P Fire Ltd,172967,,Community Services,Fire Alarms,A1690,,,,Revenue
http://statistics.data.gov.uk/doc/local-authority/33,Norfolk County Council,2-Mar-2011,2918657,        90.22,,T & P Fire Ltd,172967,,Community Services,Fire Alarms,A1690,,,,Revenue
http://statistics.data.gov.uk/doc/local-authority/33,Norfolk County Council,2-Mar-2011,2918657,       283.99,,T & P Fire Ltd,172967,,Community Services,Fire Alarms,A1690,,,,Revenue
http://statistics.data.gov.uk/doc/local-authority/33,Norfolk County Council,2-Mar-2011,2918657,       115.86,,T & P Fire Ltd,172967,,Community Services,Fire Alarms,A1690,,,,Revenue
http://statistics.data.gov.uk/doc/local-authority/33,Norfolk County Council,2-Mar-2011,2918657,        13.07,,T & P Fire Ltd,172967,,Community Services,Fire Alarms,A1690,,,,Revenue
http://statistics.data.gov.uk/doc/local-authority/33,Norfolk County Council,2-Mar-2011,2918657,       316.40,,T & P Fire Ltd,172967,,Community Services,Fire Alarms,A1690,,,,Revenue
http://statistics.data.gov.uk/doc/local-authority/33,Norfolk County Council,2-Mar-2011,2918657,       504.93,,T & P Fire Ltd,172967,,Community Services,Fire Alarms,A1690,,,,Revenue
http://statistics.data.gov.uk/doc/local-authority/33,Norfolk County Council,2-Mar-2011,2918657,        94.88,,T & P Fire Ltd,172967,,Community Services,Fire Alarms,A1690,,,,Revenue
http://statistics.data.gov.uk/doc/local-authority/33,Norfolk County Council,2-Mar-2011,2918657,       426.94,,T & P Fire Ltd,172967,,Community Services,Fire Alarms,A1690,,,,Revenue
http://statistics.data.gov.uk/doc/local-authority/33,Norfolk County Council,2-Mar-2011,2918657,       225.58,,T & P Fire Ltd,172967,,Community Services,Fire Alarms,A1690,,,,Revenue
http://statistics.data.gov.uk/doc/local-authority/33,Norfolk County Council,2-Mar-2011,2918657,       327.85,,T & P Fire Ltd,172967,,Community Services,Fire Alarms,A1690,,,,Revenue
http://statistics.data.gov.uk/doc/local-authority/33,Norfolk County Council,2-Mar-2011,2918657,        82.23,,T & P Fire Ltd,172967,,Community Services,Fire Alarms,A1690,,,,Revenue
http://statistics.data.gov.uk/doc/local-authority/33,Norfolk County Council,2-Mar-2011,2918657,       166.54,,T & P Fire Ltd,172967,,Community Services,Fire Alarms,A1690,,,,Revenue
http://statistics.data.gov.uk/doc/local-authority/33,Norfolk County Council,2-Mar-2011,2918657,        98.35,,T & P Fire Ltd,172967,,Community Services,Fire Alarms,A1690,,,,Revenue
http://statistics.data.gov.uk/doc/local-authority/33,Norfolk County Council,2-Mar-2011,2918657,       155.74,,T & P Fire Ltd,172967,,Fire & Rescue,Fire Alarms,A1690,,,,Revenue
http://statistics.data.gov.uk/doc/local-authority/33,Norfolk County Council,2-Mar-2011,2918657,       180.31,,T & P Fire Ltd,172967,,Children's Services,Fire Alarms,A3690,,,,Revenue
http://statistics.data.gov.uk/doc/local-authority/33,Norfolk County Council,2-Mar-2011,2918657,       146.40,,T & P Fire Ltd,172967,,Children's Services,Fire Alarms,A3690,,,,Revenue
http://statistics.data.gov.uk/doc/local-authority/33,Norfolk County Council,2-Mar-2011,2918657,        98.35,,T & P Fire Ltd,172967,,Children's Services,Fire Alarms,A3690,,,,Revenue
http://statistics.data.gov.uk/doc/local-authority/33,Norfolk County Council,2-Mar-2011,2918657,        82.23,,T & P Fire Ltd,172967,,Children's Services,Fire Alarms,A3690,,,,Revenue
http://statistics.data.gov.uk/doc/local-authority/33,Norfolk County Council,2-Mar-2011,2918657,       171.31,,T & P Fire Ltd,172967,,Children's Services,Fire Alarms,A3690,,,,Revenue
http://statistics.data.gov.uk/doc/local-authority/33,Norfolk County Council,2-Mar-2011,2918657,        68.71,,T & P Fire Ltd,172967,,Children's Services,Fire Alarms,A3690,,,,Revenue
http://statistics.data.gov.uk/doc/local-authority/33,Norfolk County Council,2-Mar-2011,2918657,       150.45,,T & P Fire Ltd,172967,,Children's Services,Fire Alarms,A3690,,,,Revenue
http://statistics.data.gov.uk/doc/local-authority/33,Norfolk County Council,2-Mar-2011,2918657,       171.31,,T & P Fire Ltd,172967,,Children's Services,Fire Alarms,A3690,,,,Revenue
http://statistics.data.gov.uk/doc/local-authority/33,Norfolk County Council,2-Mar-2011,2918657,       103.88,,T & P Fire Ltd,172967,,Children's Services,Fire Alarms,A3690,,,,Revenue
http://statistics.data.gov.uk/doc/local-authority/33,Norfolk County Council,2-Mar-2011,2918657,       146.40,,T & P Fire Ltd,172967,,Children's Services,Fire Alarms,A3690,,,,Revenue
http://statistics.data.gov.uk/doc/local-authority/33,Norfolk County Council,2-Mar-2011,2918657,        90.22,,T & P Fire Ltd,172967,,Children's Services,Fire Alarms,A3690,,,,Revenue
http://statistics.data.gov.uk/doc/local-authority/33,Norfolk County Council,2-Mar-2011,2918657,       146.40,,T & P Fire Ltd,172967,,Children's Services,Fire Alarms,A3690,,,,Revenue
http://statistics.data.gov.uk/doc/local-authority/33,Norfolk County Council,2-Mar-2011,2918657,        15.98,,T & P Fire Ltd,172967,,Children's Services,Fire Alarms,A3690,,,,Revenue
http://statistics.data.gov.uk/doc/local-authority/33,Norfolk County Council,2-Mar-2011,2918689,        89.72,,T & P Fire Ltd,172967,,Children's Services,Fire Alarms,A3690,,,,Revenue
http://statistics.data.gov.uk/doc/local-authority/33,Norfolk County Council,2-Mar-2011,2918689,       670.11,,T & P Fire Ltd,172967,,Children's Services,Fire Alarms,A3690,,,,Revenue
http://statistics.data.gov.uk/doc/local-authority/33,Norfolk County Council,2-Mar-2011,2918689,       103.32,,T & P Fire Ltd,172967,,Children's Services,Fire Alarms,A3690,,,,Revenue
http://statistics.data.gov.uk/doc/local-authority/33,Norfolk County Council,2-Mar-2011,2921040,      -427.45,,Misco (Computer Supplies) Ltd,71935,,Community Services,ICT Other Running Costs,43980,,,,Revenue
http://statistics.data.gov.uk/doc/local-authority/33,Norfolk County Council,2-Mar-2011,2921045,      -816.00,,Misco (Computer Supplies) Ltd,71935,,Community Services,Computer Hardware Purchase,43910,,,,Revenue
http://statistics.data.gov.uk/doc/local-authority/33,Norfolk County Council,2-Mar-2011,2921273,       773.42,,OLM Professional Services Ltd,98470,,Community Services,Consultants Fees and Charges,44630,,,,Revenue
http://statistics.data.gov.uk/doc/local-authority/33,Norfolk County Council,2-Mar-2011,2921616,      1451.41,,Sense-Children & Adult Services,74507,,Community Services,Day Care / Supported Activities,52160,,,,Revenue
http://statistics.data.gov.uk/doc/local-authority/33,Norfolk County Council,2-Mar-2011,2921622,      2625.00,,Sense-Children & Adult Services,74507,,Community Services,Day Care / Supported Activities,52160,,,,Revenue
http://statistics.data.gov.uk/doc/local-authority/33,Norfolk County Council,2-Mar-2011,2921625,      1705.95,,Sense-Children & Adult Services,74507,,Community Services,Day Care / Supported Activities,52160,,,,Revenue
http://statistics.data.gov.uk/doc/local-authority/33,Norfolk County Council,2-Mar-2011,2921626,      2270.40,,Sense-Children & Adult Services,74507,,Community Services,Day Care / Supported Activities,52160,,,,Revenue
http://statistics.data.gov.uk/doc/local-authority/33,Norfolk County Council,2-Mar-2011,2921641,       608.25,,Westholme Ltd,76230,,Community Services,Equipment For Disabled People,41320,,,,Revenue
http://statistics.data.gov.uk/doc/local-authority/33,Norfolk County Council,2-Mar-2011,2921993,       633.35,,Randstad 1 Ltd,171892,,Community Services,Operational - Manual,08800,,,,Revenue
http://statistics.data.gov.uk/doc/local-authority/33,Norfolk County Council,2-Mar-2011,2922152,     29533.54,,Waste Recycling Group Limited,76094,,Environment Transport & Development,Private Contractor Site Operation Payments,52550,,,,Revenue
http://statistics.data.gov.uk/doc/local-authority/33,Norfolk County Council,2-Mar-2011,2922273,      1992.83,,Randstad 1 Ltd,171892,,Community Services,Agency Staff - Operational - Manual,08810,,,,Revenue
http://statistics.data.gov.uk/doc/local-authority/33,Norfolk County Council,2-Mar-2011,2922277,      1246.60,,Randstad 1 Ltd,171892,,Community Services,Agency Staff - Operational - Manual,08810,,,,Revenue
http://statistics.data.gov.uk/doc/local-authority/33,Norfolk County Council,2-Mar-2011,2922919,       447.00,,T & P Fire Ltd,172967,,Children's Services,Fire Alarms,A3690,,,,Revenue
http://statistics.data.gov.uk/doc/local-authority/33,Norfolk County Council,2-Mar-2011,2923098,       842.00,,Province Building Services Ltd,171598,,Children's Services,Building Repairs,A3780,,,,Revenue
http://statistics.data.gov.uk/doc/local-authority/33,Norfolk County Council,2-Mar-2011,2923160,       624.76,,R G Carter Building Ltd,86043,,Resources,Building Maintenance & Repairs,23300,,,,Revenue
http://statistics.data.gov.uk/doc/local-authority/33,Norfolk County Council,2-Mar-2011,2923236,      1736.44,,Sense-Children & Adult Services,74507,,Community Services,Day Care / Supported Activities,52160,,,,Revenue
http://statistics.data.gov.uk/doc/local-authority/33,Norfolk County Council,2-Mar-2011,2923236,      1736.43,,Sense-Children & Adult Services,74507,,Community Services,Day Care / Supported Activities,52160,,,,Revenue
http://statistics.data.gov.uk/doc/local-authority/33,Norfolk County Council,2-Mar-2011,2924760,       780.08,,Dimensions (NSO) Ltd,144113,,Community Services,Day Care / Supported Activities,52160,,,,Revenue
http://statistics.data.gov.uk/doc/local-authority/33,Norfolk County Council,2-Mar-2011,2924767,      1574.60,,Dimensions (NSO) Ltd,144113,,Community Services,Day Care / Supported Activities,52160,,,,Revenue
http://statistics.data.gov.uk/doc/local-authority/33,Norfolk County Council,2-Mar-2011,2924772,      1574.60,,Dimensions (NSO) Ltd,144113,,Community Services,Day Care / Supported Activities,52160,,,,Revenue
http://statistics.data.gov.uk/doc/local-authority/33,Norfolk County Council,2-Mar-2011,2924776,      2748.48,,Dimensions (NSO) Ltd,144113,,Community Services,Domiciliary Care,51610,,,,Revenue
http://statistics.data.gov.uk/doc/local-authority/33,Norfolk County Council,2-Mar-2011,2924779,       778.80,,Dimensions (NSO) Ltd,144113,,Community Services,Domiciliary Care,51610,,,,Revenue
http://statistics.data.gov.uk/doc/local-authority/33,Norfolk County Council,2-Mar-2011,2924790,      1477.20,,Dimensions (NSO) Ltd,144113,,Community Services,Day Care / Supported Activities,52160,,,,Revenue
http://statistics.data.gov.uk/doc/local-authority/33,Norfolk County Council,2-Mar-2011,2925150,       649.68,,Branch Out,66770,,Community Services,Day Care / Supported Activities,52160,,,,Revenue
http://statistics.data.gov.uk/doc/local-authority/33,Norfolk County Council,2-Mar-2011,2925154,       568.47,,Branch Out,66770,,Community Services,Day Care / Supported Activities,52160,,,,Revenue
http://statistics.data.gov.uk/doc/local-authority/33,Norfolk County Council,2-Mar-2011,2928070,       920.00,,Wordingham Plant Hire Ltd,134000,,Environment Transport & Development,Road Maintenance Contractor Payments,45070,,,,Revenue
http://statistics.data.gov.uk/doc/local-authority/33,Norfolk County Council,2-Mar-2011,2928070,       425.50,,Wordingham Plant Hire Ltd,134000,,Environment Transport & Development,Road Maintenance Contractor Payments,45070,,,,Revenue
http://statistics.data.gov.uk/doc/local-authority/33,Norfolk County Council,2-Mar-2011,2928070,       471.50,,Wordingham Plant Hire Ltd,134000,,Environment Transport & Development,Road Maintenance Contractor Payments,45070,,,,Revenue
http://statistics.data.gov.uk/doc/local-authority/33,Norfolk County Council,2-Mar-2011,2934531,      4896.76,,Great Yarmouth College,83141,,Environment Transport & Development,Temporary Staff Admin & Clerical,13750,,,,Revenue
http://statistics.data.gov.uk/doc/local-authority/33,Norfolk County Council,2-Mar-2011,2934545,      3500.00,,Rockland Associates Ltd,463320,,Environment Transport & Development,Other Hired & Contracted Services,44810,,,,Revenue
http://statistics.data.gov.uk/doc/local-authority/33,Norfolk County Council,2-Mar-2011,2934552,      5617.58,,Waste Recycling Group Limited,76094,,Environment Transport & Development,Private Contractor Site Operation Payments,52550,,,,Revenue
http://statistics.data.gov.uk/doc/local-authority/33,Norfolk County Council,2-Mar-2011,2934552,      5617.58,,Waste Recycling Group Limited,76094,,Environment Transport & Development,Private Contractor Site Operation Payments,52550,,,,Revenue
http://statistics.data.gov.uk/doc/local-authority/33,Norfolk County Council,2-Mar-2011,2934552,      5617.58,,Waste Recycling Group Limited,76094,,Environment Transport & Development,Private Contractor Site Operation Payments,52550,,,,Revenue
http://statistics.data.gov.uk/doc/local-authority/33,Norfolk County Council,2-Mar-2011,2934552,      5617.58,,Waste Recycling Group Limited,76094,,Environment Transport & Development,Private Contractor Site Operation Payments,52550,,,,Revenue
http://statistics.data.gov.uk/doc/local-authority/33,Norfolk County Council,2-Mar-2011,2934552,      1404.39,,Waste Recycling Group Limited,76094,,Environment Transport & Development,Private Contractor Site Operation Payments,52550,,,,Revenue
http://statistics.data.gov.uk/doc/local-authority/33,Norfolk County Council,2-Mar-2011,2934728,       826.31,,Province Building Services Ltd,171598,,Children's Services,Building Repairs,A3780,,,,Revenue
http://statistics.data.gov.uk/doc/local-authority/33,Norfolk County Council,2-Mar-2011,2939046,      4350.00,,Smitcare Ltd,74641,,Community Services,Equipment For Disabled People,41320,,,,Revenue
http://statistics.data.gov.uk/doc/local-authority/33,Norfolk County Council,2-Mar-2011,2939266,      -500.00,,Mervyn Lambert Plant Ltd,71849,,Environment Transport & Development,Materials Purchases,42160,,,,Revenue
http://statistics.data.gov.uk/doc/local-authority/33,Norfolk County Council,2-Mar-2011,2940111,     11659.92,,NORSE Commercial Services,179148,,Community Services,Private Contractor Catering Payments,52600,,,,Revenue
http://statistics.data.gov.uk/doc/local-authority/33,Norfolk County Council,2-Mar-2011,2940111,      8846.27,,NORSE Commercial Services,179148,,Community Services,Private Contractor Catering Payments,52600,,,,Revenue
http://statistics.data.gov.uk/doc/local-authority/33,Norfolk County Council,2-Mar-2011,2940111,      9569.88,,NORSE Commercial Services,179148,,Community Services,Private Contractor Catering Payments,52600,,,,Revenue
http://statistics.data.gov.uk/doc/local-authority/33,Norfolk County Council,2-Mar-2011,2940111,     12451.51,,NORSE Commercial Services,179148,,Community Services,Private Contractor Catering Payments,52600,,,,Revenue
http://statistics.data.gov.uk/doc/local-authority/33,Norfolk County Council,2-Mar-2011,2940111,      8674.40,,NORSE Commercial Services,179148,,Community Services,Private Contractor Catering Payments,52600,,,,Revenue
http://statistics.data.gov.uk/doc/local-authority/33,Norfolk County Council,2-Mar-2011,2940111,      9684.79,,NORSE Commercial Services,179148,,Community Services,Private Contractor Catering Payments,52600,,,,Revenue
http://statistics.data.gov.uk/doc/local-authority/33,Norfolk County Council,2-Mar-2011,2940111,      7615.94,,NORSE Commercial Services,179148,,Community Services,Private Contractor Catering Payments,52600,,,,Revenue
http://statistics.data.gov.uk/doc/local-authority/33,Norfolk County Council,2-Mar-2011,2940111,      8910.46,,NORSE Commercial Services,179148,,Community Services,Private Contractor Catering Payments,52600,,,,Revenue
http://statistics.data.gov.uk/doc/local-authority/33,Norfolk County Council,2-Mar-2011,2940111,      9508.52,,NORSE Commercial Services,179148,,Community Services,Private Contractor Catering Payments,52600,,,,Revenue
http://statistics.data.gov.uk/doc/local-authority/33,Norfolk County Council,2-Mar-2011,2940111,      9633.12,,NORSE Commercial Services,179148,,Community Services,Private Contractor Catering Payments,52600,,,,Revenue
http://statistics.data.gov.uk/doc/local-authority/33,Norfolk County Council,2-Mar-2011,2940111,      8830.55,,NORSE Commercial Services,179148,,Community Services,Private Contractor Catering Payments,52600,,,,Revenue
http://statistics.data.gov.uk/doc/local-authority/33,Norfolk County Council,2-Mar-2011,2940111,      7572.72,,NORSE Commercial Services,179148,,Community Services,Private Contractor Catering Payments,52600,,,,Revenue
http://statistics.data.gov.uk/doc/local-authority/33,Norfolk County Council,2-Mar-2011,2940111,     12046.88,,NORSE Commercial Services,179148,,Community Services,Private Contractor Catering Payments,52600,,,,Revenue
http://statistics.data.gov.uk/doc/local-authority/33,Norfolk County Council,2-Mar-2011,2940111,     12158.76,,NORSE Commercial Services,179148,,Community Services,Private Contractor Catering Payments,52600,,,,Revenue
http://statistics.data.gov.uk/doc/local-authority/33,Norfolk County Council,2-Mar-2011,2940111,      9108.21,,NORSE Commercial Services,179148,,Community Services,Private Contractor Catering Payments,52600,,,,Revenue
http://statistics.data.gov.uk/doc/local-authority/33,Norfolk County Council,2-Mar-2011,2940111,     11056.96,,NORSE Commercial Services,179148,,Community Services,Private Contractor Catering Payments,52600,,,,Revenue
http://statistics.data.gov.uk/doc/local-authority/33,Norfolk County Council,2-Mar-2011,2940111,     12846.01,,NORSE Commercial Services,179148,,Community Services,Private Contractor Catering Payments,52600,,,,Revenue
http://statistics.data.gov.uk/doc/local-authority/33,Norfolk County Council,2-Mar-2011,2940111,     11261.73,,NORSE Commercial Services,179148,,Community Services,Private Contractor Catering Payments,52600,,,,Revenue
http://statistics.data.gov.uk/doc/local-authority/33,Norfolk County Council,2-Mar-2011,2940111,      9617.27,,NORSE Commercial Services,179148,,Community Services,Private Contractor Catering Payments,52600,,,,Revenue
http://statistics.data.gov.uk/doc/local-authority/33,Norfolk County Council,2-Mar-2011,2940111,      8558.41,,NORSE Commercial Services,179148,,Community Services,Private Contractor Catering Payments,52600,,,,Revenue
http://statistics.data.gov.uk/doc/local-authority/33,Norfolk County Council,2-Mar-2011,2940111,      8720.68,,NORSE Commercial Services,179148,,Community Services,Private Contractor Catering Payments,52600,,,,Revenue
http://statistics.data.gov.uk/doc/local-authority/33,Norfolk County Council,2-Mar-2011,2940111,      9395.74,,NORSE Commercial Services,179148,,Community Services,Private Contractor Catering Payments,52600,,,,Revenue
http://statistics.data.gov.uk/doc/local-authority/33,Norfolk County Council,2-Mar-2011,2940111,     11397.08,,NORSE Commercial Services,179148,,Community Services,Private Contractor Catering Payments,52600,,,,Revenue
http://statistics.data.gov.uk/doc/local-authority/33,Norfolk County Council,2-Mar-2011,2940111,      5906.24,,NORSE Commercial Services,179148,,Community Services,Private Contractor Catering Payments,52600,,,,Revenue
http://statistics.data.gov.uk/doc/local-authority/33,Norfolk County Council,2-Mar-2011,2940111,     12034.39,,NORSE Commercial Services,179148,,Community Services,Private Contractor Catering Payments,52600,,,,Revenue
http://statistics.data.gov.uk/doc/local-authority/33,Norfolk County Council,2-Mar-2011,2940111,      7116.40,,NORSE Commercial Services,179148,,Community Services,Private Contractor Catering Payments,52600,,,,Revenue
http://statistics.data.gov.uk/doc/local-authority/33,Norfolk County Council,2-Mar-2011,2940111,      7335.97,,NORSE Commercial Services,179148,,Community Services,Private Contractor Catering Payments,52600,,,,Revenue
http://statistics.data.gov.uk/doc/local-authority/33,Norfolk County Council,2-Mar-2011,2940111,      5722.48,,NORSE Commercial Services,179148,,Community Services,Private Contractor Catering Payments,52600,,,,Revenue
http://statistics.data.gov.uk/doc/local-authority/33,Norfolk County Council,2-Mar-2011,2940111,      7505.93,,NORSE Commercial Services,179148,,Community Services,Private Contractor Catering Payments,52600,,,,Revenue
http://statistics.data.gov.uk/doc/local-authority/33,Norfolk County Council,2-Mar-2011,2940111,      3266.67,,NORSE Commercial Services,179148,,Community Services,Private Contractor Catering Payments,52600,,,,Revenue
http://statistics.data.gov.uk/doc/local-authority/33,Norfolk County Council,2-Mar-2011,2940111,      6595.98,,NORSE Commercial Services,179148,,Community Services,Private Contractor Catering Payments,52600,,,,Revenue
http://statistics.data.gov.uk/doc/local-authority/33,Norfolk County Council,2-Mar-2011,2940111,      8680.13,,NORSE Commercial Services,179148,,Community Services,Private Contractor Catering Payments,52600,,,,Revenue
http://statistics.data.gov.uk/doc/local-authority/33,Norfolk County Council,2-Mar-2011,2940116,      4090.00,,KINGS & BARNHAMS,66541,,Environment Transport & Development,Grounds Maintenance Costs,22500,,,,Revenue
http://statistics.data.gov.uk/doc/local-authority/33,Norfolk County Council,2-Mar-2011,2940116,       117.65,,KINGS & BARNHAMS,66541,,Environment Transport & Development,Grounds Maintenance Costs,22500,,,,Revenue
http://statistics.data.gov.uk/doc/local-authority/33,Norfolk County Council,2-Mar-2011,2940116,      1030.76,,KINGS & BARNHAMS,66541,,Environment Transport & Development,Grounds Maintenance Costs,22500,,,,Revenue
http://statistics.data.gov.uk/doc/local-authority/33,Norfolk County Council,2-Mar-2011,2940222,      2200.00,,Albies Taxis,66006,,Environment Transport & Development,Contract Transport  Hire,34900,,,,Revenue
http://statistics.data.gov.uk/doc/local-authority/33,Norfolk County Council,2-Mar-2011,2940305,      1479.00,,Pace Fuelcare Ltd,198157,,Community Services,Fuel Oil,24300,,,,Revenue
http://statistics.data.gov.uk/doc/local-authority/33,Norfolk County Council,2-Mar-2011,2940869,      1343.99,,Redacted - Personal Data,Redacted,,Children's Services,Minor Building Repairs,A3800,,,,Revenue
http://statistics.data.gov.uk/doc/local-authority/33,Norfolk County Council,2-Mar-2011,2941161,      1132.93,,Liquid Personnel,248576,,Children's Services,Operational Staff - Scale A to J,08600,,,,Revenue
http://statistics.data.gov.uk/doc/local-authority/33,Norfolk County Council,2-Mar-2011,2941178,      2192.00,,Elysian Associates,68699,,Resources,Cost of Licenses & Subscriptions,49020,,,,Revenue
http://statistics.data.gov.uk/doc/local-authority/33,Norfolk County Council,2-Mar-2011,2941204,      1488.58,,Southern Electric,74726,,Community Services,Electricity,24340,,,,Revenue
http://statistics.data.gov.uk/doc/local-authority/33,Norfolk County Council,2-Mar-2011,2941207,     -1560.81,,Southern Electric,74726,,Community Services,Electricity,24340,,,,Revenue
http://statistics.data.gov.uk/doc/local-authority/33,Norfolk County Council,2-Mar-2011,2941247,     -1097.39,,Westward Care Homes Ltd,406042,,Community Services,Long Term Residential Care,52070,,,,Revenue
http://statistics.data.gov.uk/doc/local-authority/33,Norfolk County Council,2-Mar-2011,2941248,     14623.21,,Westward Care Homes Ltd,406042,,Community Services,Long Term Residential Care,52070,,,,Revenue
http://statistics.data.gov.uk/doc/local-authority/33,Norfolk County Council,2-Mar-2011,2941256,      2401.43,,Homestead House,100208,,Community Services,Long Term Residential Care,52070,,,,Revenue
http://statistics.data.gov.uk/doc/local-authority/33,Norfolk County Council,2-Mar-2011,2941257,      7868.57,,County Healthcare Ltd - Carleton House No1,91693,,Community Services,Long Term Residential Care,52070,,,,Revenue
http://statistics.data.gov.uk/doc/local-authority/33,Norfolk County Council,2-Mar-2011,2941258,      2625.41,,Redacted - Personal Data,Redacted,,Community Services,Long Term Care with Nursing,51550,,,,Revenue
http://statistics.data.gov.uk/doc/local-authority/33,Norfolk County Council,2-Mar-2011,2941259,       574.56,,Redacted - Personal Data,Redacted,,Community Services,Free Nursing Care,55560,,,,Revenue
http://statistics.data.gov.uk/doc/local-authority/33,Norfolk County Council,2-Mar-2011,2941260,      -574.56,,Redacted - Personal Data,Redacted,,Community Services,Long Term Care with Nursing,51550,,,,Revenue
http://statistics.data.gov.uk/doc/local-authority/33,Norfolk County Council,2-Mar-2011,2941272,       713.73,,Hallmark Healthcare (Kings Lynn) Ltd,69612,,Community Services,Free Nursing Care,55560,,,,Revenue
http://statistics.data.gov.uk/doc/local-authority/33,Norfolk County Council,2-Mar-2011,2941273,      -713.73,,Hallmark Healthcare (Kings Lynn) Ltd,69612,,Community Services,Long Term Care with Nursing,51550,,,,Revenue
http://statistics.data.gov.uk/doc/local-authority/33,Norfolk County Council,2-Mar-2011,2941274,      3307.86,,Redacted - Personal Data,Redacted,,Community Services,Long Term Residential Care,52070,,,,Revenue
http://statistics.data.gov.uk/doc/local-authority/33,Norfolk County Council,2-Mar-2011,2941286,      9600.00,,Joseph House (Reedham) Ltd,70638,,Community Services,Long Term Residential Care,52070,,,,Revenue
http://statistics.data.gov.uk/doc/local-authority/33,Norfolk County Council,2-Mar-2011,2941294,       844.14,,Redacted - Personal Data,Redacted,,Community Services,Short Term Residential Care,50210,,,,Revenue
http://statistics.data.gov.uk/doc/local-authority/33,Norfolk County Council,2-Mar-2011,2941295,      2799.00,,Redacted - Personal Data,Redacted,,Community Services,Long Term Residential Care,52070,,,,Revenue
http://statistics.data.gov.uk/doc/local-authority/33,Norfolk County Council,2-Mar-2011,2941296,      1955.71,,Redacted - Personal Data,Redacted,,Community Services,Long Term Residential Care,52070,,,,Revenue
http://statistics.data.gov.uk/doc/local-authority/33,Norfolk County Council,2-Mar-2011,2941302,      3318.87,,Hallmark Healthcare (Kings Lynn) Ltd,69612,,Community Services,Long Term Care with Nursing,51550,,,,Revenue
http://statistics.data.gov.uk/doc/local-authority/33,Norfolk County Council,2-Mar-2011,2941306,      -802.71,,Dimensions (NSO) Ltd,144113,,Community Services,Supported Living,52140,,,,Revenue
http://statistics.data.gov.uk/doc/local-authority/33,Norfolk County Council,2-Mar-2011,2941309,      2352.86,,Abbeville  RCH Ltd,124609,,Community Services,Long Term Residential Care,52070,,,,Revenue
http://statistics.data.gov.uk/doc/local-authority/33,Norfolk County Council,2-Mar-2011,2941310,      1832.14,,Redacted - Personal Data,Redacted,,Children's Services,Accreditation Scheme Payments,53620,,,,Revenue
http://statistics.data.gov.uk/doc/local-authority/33,Norfolk County Council,2-Mar-2011,2941311,       546.00,,Redacted - Personal Data,Redacted,,Community Services,Long Term Residential Care,52070,,,,Revenue
http://statistics.data.gov.uk/doc/local-authority/33,Norfolk County Council,2-Mar-2011,2941312,     11396.56,,Ashbourne/Brundall Nursing Home,80706,,Community Services,Long Term Care with Nursing,51550,,,,Revenue
http://statistics.data.gov.uk/doc/local-authority/33,Norfolk County Council,2-Mar-2011,2941313,      2593.27,,Ashbourne/Brundall Nursing Home,80706,,Community Services,Free Nursing Care,55560,,,,Revenue
http://statistics.data.gov.uk/doc/local-authority/33,Norfolk County Council,2-Mar-2011,2941314,     -2593.27,,Ashbourne/Brundall Nursing Home,80706,,Community Services,Long Term Care with Nursing,51550,,,,Revenue
http://statistics.data.gov.uk/doc/local-authority/33,Norfolk County Council,2-Mar-2011,2941315,     12081.81,,Affinity Trust,185008,,Community Services,Supported Living,52140,,,,Revenue
http://statistics.data.gov.uk/doc/local-authority/33,Norfolk County Council,2-Mar-2011,2941316,     12684.00,,Affinity Trust,185008,,Community Services,Supported Living,52140,,,,Revenue
http://statistics.data.gov.uk/doc/local-authority/33,Norfolk County Council,2-Mar-2011,2941322,       666.00,,Redacted - Personal Data,Redacted,,Community Services,Short Term Residential Care,50210,,,,Revenue
http://statistics.data.gov.uk/doc/local-authority/33,Norfolk County Council,2-Mar-2011,2941324,      4161.86,,Inh - Holmwood Kings Lynn,94855,,Community Services,Long Term Residential Care,52070,,,,Revenue
http://statistics.data.gov.uk/doc/local-authority/33,Norfolk County Council,2-Mar-2011,2941325,      8075.00,,Ashbourne Homes Ltd T/A Alexander Court,80706,,Community Services,Long Term Residential Care,52070,,,,Revenue
http://statistics.data.gov.uk/doc/local-authority/33,Norfolk County Council,2-Mar-2011,2941326,       850.00,,Ashbourne Homes Ltd T/A Alexander Court,80706,,Community Services,Short Term Residential Care,50210,,,,Revenue
http://statistics.data.gov.uk/doc/local-authority/33,Norfolk County Council,2-Mar-2011,2941327,      6254.00,,Inh - Holmwood Kings Lynn,94855,,Community Services,Long Term Residential Care,52070,,,,Revenue
http://statistics.data.gov.uk/doc/local-authority/33,Norfolk County Council,2-Mar-2011,2941328,      4250.00,,Ashbourne Homes Ltd T/A Alexander Court,80706,,Community Services,Long Term Residential Care,52070,,,,Revenue
http://statistics.data.gov.uk/doc/local-authority/33,Norfolk County Council,2-Mar-2011,2941329,     -3921.43,,Inh - Holmwood Kings Lynn,94855,,Community Services,Long Term Residential Care,52070,,,,Revenue
http://statistics.data.gov.uk/doc/local-authority/33,Norfolk County Council,2-Mar-2011,2941330,      4235.14,,Ashbourne Homes Ltd T/A Alexander Court,80706,,Community Services,Long Term Residential Care,52070,,,,Revenue
http://statistics.data.gov.uk/doc/local-authority/33,Norfolk County Council,2-Mar-2011,2941331,     -2091.43,,Inh - Holmwood Kings Lynn,94855,,Community Services,Long Term Residential Care,52070,,,,Revenue
http://statistics.data.gov.uk/doc/local-authority/33,Norfolk County Council,2-Mar-2011,2941333,     10372.86,,Hassingham Ltd,111061,,Community Services,Long Term Care with Nursing,51550,,,,Revenue
http://statistics.data.gov.uk/doc/local-authority/33,Norfolk County Council,2-Mar-2011,2941334,      1646.03,,Hassingham Ltd,111061,,Community Services,Free Nursing Care,55560,,,,Revenue
http://statistics.data.gov.uk/doc/local-authority/33,Norfolk County Council,2-Mar-2011,2941335,     -1646.03,,Hassingham Ltd,111061,,Community Services,Long Term Care with Nursing,51550,,,,Revenue
http://statistics.data.gov.uk/doc/local-authority/33,Norfolk County Council,2-Mar-2011,2941336,      5742.86,,Hassingham Ltd,111061,,Community Services,Long Term Care with Nursing,51550,,,,Revenue
http://statistics.data.gov.uk/doc/local-authority/33,Norfolk County Council,2-Mar-2011,2941337,      1040.41,,Hassingham Ltd,111061,,Community Services,Free Nursing Care,55560,,,,Revenue
http://statistics.data.gov.uk/doc/local-authority/33,Norfolk County Council,2-Mar-2011,2941338,     -1040.41,,Hassingham Ltd,111061,,Community Services,Long Term Care with Nursing,51550,,,,Revenue
http://statistics.data.gov.uk/doc/local-authority/33,Norfolk County Council,2-Mar-2011,2941343,      1242.00,,Care Quality Commission,183307,,Community Services,National Care Standards Set-Ups,50030,,,,Revenue
http://statistics.data.gov.uk/doc/local-authority/33,Norfolk County Council,2-Mar-2011,2941350,      6800.70,,One To One Homecare Limited,72754,,Community Services,Domiciliary Care,51610,,,,Revenue
http://statistics.data.gov.uk/doc/local-authority/33,Norfolk County Council,2-Mar-2011,2941357,     57214.69,,One To One Homecare Limited,72754,,Community Services,Domiciliary Care,51610,,,,Revenue
http://statistics.data.gov.uk/doc/local-authority/33,Norfolk County Council,2-Mar-2011,2941360,     18183.00,,May Gurney Ltd,71794,,Environment Transport & Development,Agency Staff - Admin & Clerical - Scale A to J,13610,,,,Revenue
http://statistics.data.gov.uk/doc/local-authority/33,Norfolk County Council,2-Mar-2011,2941360,      2980.00,,May Gurney Ltd,71794,,Environment Transport & Development,Payments to Organisations Providing Services To NCC,52000,,,,Revenue
http://statistics.data.gov.uk/doc/local-authority/33,Norfolk County Council,2-Mar-2011,2941366,     20842.70,,May Gurney Ltd,71794,,Environment Transport & Development,Other Hired & Contracted Services,44810,,,,Revenue
http://statistics.data.gov.uk/doc/local-authority/33,Norfolk County Council,2-Mar-2011,2941383,      1400.00,,Redacted - Personal Data,Redacted,,Environment Transport & Development,Other Hired & Contracted Services,44810,,,,Revenue
http://statistics.data.gov.uk/doc/local-authority/33,Norfolk County Council,2-Mar-2011,2941388,       530.72,,Siemens Plc,74581,,Environment Transport & Development,Electricity,24340,,,,Revenue
http://statistics.data.gov.uk/doc/local-authority/33,Norfolk County Council,2-Mar-2011,2941391,     33198.62,,The Training Association (East),145641,,Environment Transport & Development,Cost of Licenses & Subscriptions,49020,,,,Revenue
http://statistics.data.gov.uk/doc/local-authority/33,Norfolk County Council,2-Mar-2011,2941425,      1160.00,,People 2 Keep Limited,195140,,Children's Services,Standard Fund Other Staff,16450,,,,Revenue
http://statistics.data.gov.uk/doc/local-authority/33,Norfolk County Council,2-Mar-2011,2941772,       629.00,,Keystone Development Trust,84230,,Community Services,Rents and Hire of Premises & Facilities,24500,,,,Revenue
http://statistics.data.gov.uk/doc/local-authority/33,Norfolk County Council,2-Mar-2011,2941788,      1755.05,,Province Building Services Ltd,171598,,Children's Services,Environmental Health Officer - Kitchen Improvements,A3110,,,,Revenue
http://statistics.data.gov.uk/doc/local-authority/33,Norfolk County Council,2-Mar-2011,2941793,       140.60,,Eyre (Electrical) Limited,68818,,Children's Services,Boiler Servicing,A1660,,,,Revenue
http://statistics.data.gov.uk/doc/local-authority/33,Norfolk County Council,2-Mar-2011,2941793,       187.84,,Eyre (Electrical) Limited,68818,,Community Services,Boiler Servicing,A1660,,,,Revenue
http://statistics.data.gov.uk/doc/local-authority/33,Norfolk County Council,2-Mar-2011,2941793,       241.32,,Eyre (Electrical) Limited,68818,,Community Services,Boiler Servicing,A1660,,,,Revenue
http://statistics.data.gov.uk/doc/local-authority/33,Norfolk County Council,2-Mar-2011,2941793,       108.97,,Eyre (Electrical) Limited,68818,,Children's Services,Boiler Servicing,A3660,,,,Revenue
http://statistics.data.gov.uk/doc/local-authority/33,Norfolk County Council,2-Mar-2011,2941793,       167.67,,Eyre (Electrical) Limited,68818,,Children's Services,Boiler Servicing,A3660,,,,Revenue
http://statistics.data.gov.uk/doc/local-authority/33,Norfolk County Council,2-Mar-2011,2941793,       221.37,,Eyre (Electrical) Limited,68818,,Children's Services,Boiler Servicing,A3660,,,,Revenue
http://statistics.data.gov.uk/doc/local-authority/33,Norfolk County Council,2-Mar-2011,2941793,        87.62,,Eyre (Electrical) Limited,68818,,Children's Services,Boiler Servicing,A3660,,,,Revenue
http://statistics.data.gov.uk/doc/local-authority/33,Norfolk County Council,2-Mar-2011,2941793,       184.52,,Eyre (Electrical) Limited,68818,,Children's Services,Boiler Servicing,A3660,,,,Revenue
http://statistics.data.gov.uk/doc/local-authority/33,Norfolk County Council,2-Mar-2011,2941793,       298.07,,Eyre (Electrical) Limited,68818,,Children's Services,Boiler Servicing,A3660,,,,Revenue
http://statistics.data.gov.uk/doc/local-authority/33,Norfolk County Council,2-Mar-2011,2941793,       122.40,,Eyre (Electrical) Limited,68818,,Children's Services,Boiler Servicing,A3660,,,,Revenue
http://statistics.data.gov.uk/doc/local-authority/33,Norfolk County Council,2-Mar-2011,2941793,       187.72,,Eyre (Electrical) Limited,68818,,Children's Services,Boiler Servicing,A3660,,,,Revenue
http://statistics.data.gov.uk/doc/local-authority/33,Norfolk County Council,2-Mar-2011,2941793,        82.12,,Eyre (Electrical) Limited,68818,,Children's Services,Boiler Servicing,A3660,,,,Revenue
http://statistics.data.gov.uk/doc/local-authority/33,Norfolk County Council,2-Mar-2011,2941793,       189.52,,Eyre (Electrical) Limited,68818,,Children's Services,Boiler Servicing,A3660,,,,Revenue
http://statistics.data.gov.uk/doc/local-authority/33,Norfolk County Council,2-Mar-2011,2941793,       174.32,,Eyre (Electrical) Limited,68818,,Children's Services,Boiler Servicing,A3660,,,,Revenue
http://statistics.data.gov.uk/doc/local-authority/33,Norfolk County Council,2-Mar-2011,2941793,       281.52,,Eyre (Electrical) Limited,68818,,Children's Services,Boiler Servicing,A3660,,,,Revenue
http://statistics.data.gov.uk/doc/local-authority/33,Norfolk County Council,2-Mar-2011,2941793,       120.82,,Eyre (Electrical) Limited,68818,,Children's Services,Boiler Servicing,A3660,,,,Revenue
http://statistics.data.gov.uk/doc/local-authority/33,Norfolk County Council,2-Mar-2011,2941793,        80.56,,Eyre (Electrical) Limited,68818,,Children's Services,Boiler Servicing,A3660,,,,Revenue
http://statistics.data.gov.uk/doc/local-authority/33,Norfolk County Council,2-Mar-2011,2941793,       281.64,,Eyre (Electrical) Limited,68818,,Children's Services,Boiler Servicing,A3660,,,,Revenue
http://statistics.data.gov.uk/doc/local-authority/33,Norfolk County Council,2-Mar-2011,2941793,       644.14,,Eyre (Electrical) Limited,68818,,Children's Services,Boiler Servicing,A3660,,,,Revenue
http://statistics.data.gov.uk/doc/local-authority/33,Norfolk County Council,2-Mar-2011,2941793,       381.50,,Eyre (Electrical) Limited,68818,,Children's Services,Generators & Repairs Arising,A3670,,,,Revenue
http://statistics.data.gov.uk/doc/local-authority/33,Norfolk County Council,2-Mar-2011,2941802,      1096.82,,Province Building Services Ltd,171598,,Children's Services,Building Repairs,A3780,,,,Revenue
http://statistics.data.gov.uk/doc/local-authority/33,Norfolk County Council,2-Mar-2011,2941804,      1223.28,,Redacted - Personal Data,Redacted,,Community Services,Fees & Charges,44500,,,,Revenue
http://statistics.data.gov.uk/doc/local-authority/33,Norfolk County Council,2-Mar-2011,2941811,       306.07,,Eyre (Electrical) Limited,68818,,Children's Services,Boiler Servicing,A1660,,,,Revenue
http://statistics.data.gov.uk/doc/local-authority/33,Norfolk County Council,2-Mar-2011,2941811,       126.44,,Eyre (Electrical) Limited,68818,,Children's Services,Boiler Servicing,A1660,,,,Revenue
http://statistics.data.gov.uk/doc/local-authority/33,Norfolk County Council,2-Mar-2011,2941811,        67.12,,Eyre (Electrical) Limited,68818,,Children's Services,Boiler Servicing,A1660,,,,Revenue
http://statistics.data.gov.uk/doc/local-authority/33,Norfolk County Council,2-Mar-2011,2941811,       187.45,,Eyre (Electrical) Limited,68818,,Community Services,Boiler Servicing,A1660,,,,Revenue
http://statistics.data.gov.uk/doc/local-authority/33,Norfolk County Council,2-Mar-2011,2941811,       286.63,,Eyre (Electrical) Limited,68818,,Community Services,Boiler Servicing,A1660,,,,Revenue
http://statistics.data.gov.uk/doc/local-authority/33,Norfolk County Council,2-Mar-2011,2941811,       105.95,,Eyre (Electrical) Limited,68818,,Children's Services,Boiler Servicing,A3660,,,,Revenue
http://statistics.data.gov.uk/doc/local-authority/33,Norfolk County Council,2-Mar-2011,2941811,       198.36,,Eyre (Electrical) Limited,68818,,Children's Services,Boiler Servicing,A3660,,,,Revenue
http://statistics.data.gov.uk/doc/local-authority/33,Norfolk County Council,2-Mar-2011,2941811,       224.41,,Eyre (Electrical) Limited,68818,,Children's Services,Boiler Servicing,A3660,,,,Revenue
http://statistics.data.gov.uk/doc/local-authority/33,Norfolk County Council,2-Mar-2011,2941811,       286.44,,Eyre (Electrical) Limited,68818,,Children's Services,Boiler Servicing,A3660,,,,Revenue
http://statistics.data.gov.uk/doc/local-authority/33,Norfolk County Council,2-Mar-2011,2941811,       251.37,,Eyre (Electrical) Limited,68818,,Children's Services,Boiler Servicing,A3660,,,,Revenue
http://statistics.data.gov.uk/doc/local-authority/33,Norfolk County Council,2-Mar-2011,2941811,       323.53,,Eyre (Electrical) Limited,68818,,Children's Services,Boiler Servicing,A3660,,,,Revenue
http://statistics.data.gov.uk/doc/local-authority/33,Norfolk County Council,2-Mar-2011,2941811,       108.77,,Eyre (Electrical) Limited,68818,,Children's Services,Boiler Servicing,A3660,,,,Revenue
http://statistics.data.gov.uk/doc/local-authority/33,Norfolk County Council,2-Mar-2011,2941811,       120.84,,Eyre (Electrical) Limited,68818,,Children's Services,Boiler Servicing,A3660,,,,Revenue
http://statistics.data.gov.uk/doc/local-authority/33,Norfolk County Council,2-Mar-2011,2941811,        53.70,,Eyre (Electrical) Limited,68818,,Children's Services,Boiler Servicing,A3660,,,,Revenue
http://statistics.data.gov.uk/doc/local-authority/33,Norfolk County Council,2-Mar-2011,2941811,       501.93,,Eyre (Electrical) Limited,68818,,Children's Services,Boiler Servicing,A3660,,,,Revenue
http://statistics.data.gov.uk/doc/local-authority/33,Norfolk County Council,2-Mar-2011,2941815,       569.72,,Westminster Homecare Ltd,116777,,Community Services,Domiciliary Care,51610,,,,Revenue
http://statistics.data.gov.uk/doc/local-authority/33,Norfolk County Council,2-Mar-2011,2941836,       388.77,,Eyre (Electrical) Limited,68818,,Community Services,Boiler Servicing,A1660,,,,Revenue
http://statistics.data.gov.uk/doc/local-authority/33,Norfolk County Council,2-Mar-2011,2941836,        67.13,,Eyre (Electrical) Limited,68818,,Resources,Boiler Servicing,A1660,,,,Revenue
http://statistics.data.gov.uk/doc/local-authority/33,Norfolk County Council,2-Mar-2011,2941836,        68.50,,Eyre (Electrical) Limited,68818,,Children's Services,Boiler Servicing,A3660,,,,Revenue
http://statistics.data.gov.uk/doc/local-authority/33,Norfolk County Council,2-Mar-2011,2941836,       221.37,,Eyre (Electrical) Limited,68818,,Children's Services,Boiler Servicing,A3660,,,,Revenue
http://statistics.data.gov.uk/doc/local-authority/33,Norfolk County Council,2-Mar-2011,2941836,       134.25,,Eyre (Electrical) Limited,68818,,Children's Services,Boiler Servicing,A3660,,,,Revenue
http://statistics.data.gov.uk/doc/local-authority/33,Norfolk County Council,2-Mar-2011,2941836,       122.39,,Eyre (Electrical) Limited,68818,,Children's Services,Boiler Servicing,A3660,,,,Revenue
http://statistics.data.gov.uk/doc/local-authority/33,Norfolk County Council,2-Mar-2011,2941836,       149.26,,Eyre (Electrical) Limited,68818,,Children's Services,Boiler Servicing,A3660,,,,Revenue
http://statistics.data.gov.uk/doc/local-authority/33,Norfolk County Council,2-Mar-2011,2941836,       161.11,,Eyre (Electrical) Limited,68818,,Children's Services,Boiler Servicing,A3660,,,,Revenue
http://statistics.data.gov.uk/doc/local-authority/33,Norfolk County Council,2-Mar-2011,2941836,       272.84,,Eyre (Electrical) Limited,68818,,Children's Services,Boiler Servicing,A3660,,,,Revenue
http://statistics.data.gov.uk/doc/local-authority/33,Norfolk County Council,2-Mar-2011,2941841,       151.00,,Eyre (Electrical) Limited,68818,,Resources,Building Maintenance & Repairs,23300,,,,Revenue
http://statistics.data.gov.uk/doc/local-authority/33,Norfolk County Council,2-Mar-2011,2941841,       312.00,,Eyre (Electrical) Limited,68818,,Resources,Building Maintenance & Repairs,23300,,,,Revenue
http://statistics.data.gov.uk/doc/local-authority/33,Norfolk County Council,2-Mar-2011,2941841,       517.00,,Eyre (Electrical) Limited,68818,,Community Services,Boiler Servicing,A1660,,,,Revenue
http://statistics.data.gov.uk/doc/local-authority/33,Norfolk County Council,2-Mar-2011,2941841,        38.00,,Eyre (Electrical) Limited,68818,,Fire & Rescue,Boiler Servicing,A1660,,,,Revenue
http://statistics.data.gov.uk/doc/local-authority/33,Norfolk County Council,2-Mar-2011,2941841,        48.50,,Eyre (Electrical) Limited,68818,,Resources,Boiler Servicing,A1660,,,,Revenue
http://statistics.data.gov.uk/doc/local-authority/33,Norfolk County Council,2-Mar-2011,2941841,       291.00,,Eyre (Electrical) Limited,68818,,Fire & Rescue,Generators & Repairs Arising,A1670,,,,Revenue
http://statistics.data.gov.uk/doc/local-authority/33,Norfolk County Council,2-Mar-2011,2941841,       291.00,,Eyre (Electrical) Limited,68818,,Fire & Rescue,Generators & Repairs Arising,A1670,,,,Revenue
http://statistics.data.gov.uk/doc/local-authority/33,Norfolk County Council,2-Mar-2011,2941841,       272.32,,Eyre (Electrical) Limited,68818,,Children's Services,Swimming Pool Plant,A3620,,,,Revenue
http://statistics.data.gov.uk/doc/local-authority/33,Norfolk County Council,2-Mar-2011,2941841,       517.00,,Eyre (Electrical) Limited,68818,,Children's Services,Boiler Servicing,A3660,,,,Revenue
http://statistics.data.gov.uk/doc/local-authority/33,Norfolk County Council,2-Mar-2011,2941841,       104.00,,Eyre (Electrical) Limited,68818,,Children's Services,Security Systems,A3710,,,,Revenue
http://statistics.data.gov.uk/doc/local-authority/33,Norfolk County Council,2-Mar-2011,2941841,       208.00,,Eyre (Electrical) Limited,68818,,Children's Services,Security Systems,A3710,,,,Revenue
http://statistics.data.gov.uk/doc/local-authority/33,Norfolk County Council,2-Mar-2011,2941841,       104.00,,Eyre (Electrical) Limited,68818,,Children's Services,Security Systems,A3710,,,,Revenue
http://statistics.data.gov.uk/doc/local-authority/33,Norfolk County Council,2-Mar-2011,2941852,        87.13,,Eyre (Electrical) Limited,68818,,Community Services,Boiler Servicing,A1660,,,,Revenue
http://statistics.data.gov.uk/doc/local-authority/33,Norfolk County Council,2-Mar-2011,2941852,       619.74,,Eyre (Electrical) Limited,68818,,Fire & Rescue,Boiler Servicing,A1660,,,,Revenue
http://statistics.data.gov.uk/doc/local-authority/33,Norfolk County Council,2-Mar-2011,2941852,       208.22,,Eyre (Electrical) Limited,68818,,Children's Services,Boiler Servicing,A3660,,,,Revenue
http://statistics.data.gov.uk/doc/local-authority/33,Norfolk County Council,2-Mar-2011,2941852,       265.50,,Eyre (Electrical) Limited,68818,,Children's Services,Boiler Servicing,A3660,,,,Revenue
http://statistics.data.gov.uk/doc/local-authority/33,Norfolk County Council,2-Mar-2011,2941852,       268.22,,Eyre (Electrical) Limited,68818,,Children's Services,Boiler Servicing,A3660,,,,Revenue
http://statistics.data.gov.uk/doc/local-authority/33,Norfolk County Council,2-Mar-2011,2941852,       266.29,,Eyre (Electrical) Limited,68818,,Children's Services,Boiler Servicing,A3660,,,,Revenue
http://statistics.data.gov.uk/doc/local-authority/33,Norfolk County Council,2-Mar-2011,2941852,       201.40,,Eyre (Electrical) Limited,68818,,Children's Services,Boiler Servicing,A3660,,,,Revenue
http://statistics.data.gov.uk/doc/local-authority/33,Norfolk County Council,2-Mar-2011,2941852,      1109.31,,Eyre (Electrical) Limited,68818,,Children's Services,Boiler Servicing,A3660,,,,Revenue
http://statistics.data.gov.uk/doc/local-authority/33,Norfolk County Council,2-Mar-2011,2941852,       177.94,,Eyre (Electrical) Limited,68818,,Children's Services,Boiler Servicing,A3660,,,,Revenue
http://statistics.data.gov.uk/doc/local-authority/33,Norfolk County Council,2-Mar-2011,2941852,        80.55,,Eyre (Electrical) Limited,68818,,Children's Services,Boiler Servicing,A3660,,,,Revenue
http://statistics.data.gov.uk/doc/local-authority/33,Norfolk County Council,2-Mar-2011,2941852,       301.72,,Eyre (Electrical) Limited,68818,,Children's Services,Boiler Servicing,A3660,,,,Revenue
http://statistics.data.gov.uk/doc/local-authority/33,Norfolk County Council,2-Mar-2011,2941852,       344.71,,Eyre (Electrical) Limited,68818,,Children's Services,Boiler Servicing,A3660,,,,Revenue
http://statistics.data.gov.uk/doc/local-authority/33,Norfolk County Council,2-Mar-2011,2941852,       624.07,,Eyre (Electrical) Limited,68818,,Children's Services,Boiler Servicing,A3660,,,,Revenue
http://statistics.data.gov.uk/doc/local-authority/33,Norfolk County Council,2-Mar-2011,2941859,      1639.14,,Westminster Homecare Ltd,116777,,Community Services,Domiciliary Care,51610,,,,Revenue
http://statistics.data.gov.uk/doc/local-authority/33,Norfolk County Council,2-Mar-2011,2941861,       658.94,,Westminster Homecare Ltd,116777,,Community Services,Domiciliary Care,51610,,,,Revenue
http://statistics.data.gov.uk/doc/local-authority/33,Norfolk County Council,2-Mar-2011,2941864,       848.80,,Westminster Homecare Ltd,116777,,Community Services,Domiciliary Care,51610,,,,Revenue
http://statistics.data.gov.uk/doc/local-authority/33,Norfolk County Council,2-Mar-2011,2941868,       771.28,,Westminster Homecare Ltd,116777,,Community Services,Domiciliary Care,51610,,,,Revenue
http://statistics.data.gov.uk/doc/local-authority/33,Norfolk County Council,2-Mar-2011,2941880,       647.13,,Westminster Homecare Ltd,116777,,Community Services,Domiciliary Care,51610,,,,Revenue
http://statistics.data.gov.uk/doc/local-authority/33,Norfolk County Council,2-Mar-2011,2941885,        35.00,,Imtech Aqua Maintenance Ltd,284255,,Children's Services,Boiler Servicing,A1660,,,,Revenue
http://statistics.data.gov.uk/doc/local-authority/33,Norfolk County Council,2-Mar-2011,2941885,        94.24,,Imtech Aqua Maintenance Ltd,284255,,Children's Services,Tank Clean/Water System Disinfection,A3630,,,,Revenue
http://statistics.data.gov.uk/doc/local-authority/33,Norfolk County Council,2-Mar-2011,2941885,       129.55,,Imtech Aqua Maintenance Ltd,284255,,Children's Services,Boiler Servicing,A3660,,,,Revenue
http://statistics.data.gov.uk/doc/local-authority/33,Norfolk County Council,2-Mar-2011,2941885,        35.00,,Imtech Aqua Maintenance Ltd,284255,,Children's Services,Boiler Servicing,A3660,,,,Revenue
http://statistics.data.gov.uk/doc/local-authority/33,Norfolk County Council,2-Mar-2011,2941885,        52.50,,Imtech Aqua Maintenance Ltd,284255,,Children's Services,Boiler Servicing,A3660,,,,Revenue
http://statistics.data.gov.uk/doc/local-authority/33,Norfolk County Council,2-Mar-2011,2941885,       275.69,,Imtech Aqua Maintenance Ltd,284255,,Children's Services,Boiler Servicing,A3660,,,,Revenue
http://statistics.data.gov.uk/doc/local-authority/33,Norfolk County Council,2-Mar-2011,2941885,       119.89,,Imtech Aqua Maintenance Ltd,284255,,Children's Services,Boiler Servicing,A3660,,,,Revenue
http://statistics.data.gov.uk/doc/local-authority/33,Norfolk County Council,2-Mar-2011,2941885,       224.68,,Imtech Aqua Maintenance Ltd,284255,,Children's Services,Minor Building Repairs,A3800,,,,Revenue
http://statistics.data.gov.uk/doc/local-authority/33,Norfolk County Council,2-Mar-2011,2941889,      6500.00,,Norfolk & Suffolk Care Support Ltd,72464,,Community Services,Agency Staff,13800,,,,Revenue
http://statistics.data.gov.uk/doc/local-authority/33,Norfolk County Council,2-Mar-2011,2941895,       523.17,,Westminster Homecare Ltd,116777,,Community Services,Domiciliary Care,51610,,,,Revenue
http://statistics.data.gov.uk/doc/local-authority/33,Norfolk County Council,2-Mar-2011,2941905,       961.25,,Westminster Homecare Ltd,116777,,Community Services,Domiciliary Care,51610,,,,Revenue
http://statistics.data.gov.uk/doc/local-authority/33,Norfolk County Council,2-Mar-2011,2941913,       705.53,,Westminster Homecare Ltd,116777,,Community Services,Domiciliary Care,51610,,,,Revenue
http://statistics.data.gov.uk/doc/local-authority/33,Norfolk County Council,2-Mar-2011,2941914,       573.50,,Westminster Homecare Ltd,116777,,Community Services,Domiciliary Care,51610,,,,Revenue
http://statistics.data.gov.uk/doc/local-authority/33,Norfolk County Council,2-Mar-2011,2941916,       631.64,,Westminster Homecare Ltd,116777,,Community Services,Domiciliary Care,51610,,,,Revenue
http://statistics.data.gov.uk/doc/local-authority/33,Norfolk County Council,2-Mar-2011,2941923,       806.00,,Westminster Homecare Ltd,116777,,Community Services,Domiciliary Care,51610,,,,Revenue
http://statistics.data.gov.uk/doc/local-authority/33,Norfolk County Council,2-Mar-2011,2941926,      1069.78,,Westminster Homecare Ltd,116777,,Community Services,Domiciliary Care,51610,,,,Revenue
http://statistics.data.gov.uk/doc/local-authority/33,Norfolk County Council,2-Mar-2011,2941943,      2073.55,,Westminster Homecare Ltd,116777,,Community Services,Domiciliary Care,51610,,,,Revenue
http://statistics.data.gov.uk/doc/local-authority/33,Norfolk County Council,2-Mar-2011,2941966,       976.64,,Westminster Homecare Ltd,116777,,Community Services,Domiciliary Care,51610,,,,Revenue
http://statistics.data.gov.uk/doc/local-authority/33,Norfolk County Council,2-Mar-2011,2941968,       639.65,,Westminster Homecare Ltd,116777,,Community Services,Domiciliary Care,51610,,,,Revenue
http://statistics.data.gov.uk/doc/local-authority/33,Norfolk County Council,2-Mar-2011,2941974,      1941.66,,Westminster Homecare Ltd,116777,,Community Services,Domiciliary Care,51610,,,,Revenue
http://statistics.data.gov.uk/doc/local-authority/33,Norfolk County Council,2-Mar-2011,2941976,       591.75,,Dimensions (NSO) Ltd,144113,,Community Services,Domiciliary Care,51610,,,,Revenue
http://statistics.data.gov.uk/doc/local-authority/33,Norfolk County Council,2-Mar-2011,2941984,       794.38,,Westminster Homecare Ltd,116777,,Community Services,Domiciliary Care,51610,,,,Revenue
http://statistics.data.gov.uk/doc/local-authority/33,Norfolk County Council,2-Mar-2011,2941986,       133.86,,Imtech Aqua Maintenance Ltd,284255,,Children's Services,Boiler Servicing,A1660,,,,Revenue
http://statistics.data.gov.uk/doc/local-authority/33,Norfolk County Council,2-Mar-2011,2941986,        31.50,,Imtech Aqua Maintenance Ltd,284255,,Children's Services,Boiler Servicing,A1660,,,,Revenue
http://statistics.data.gov.uk/doc/local-authority/33,Norfolk County Council,2-Mar-2011,2941986,       149.61,,Imtech Aqua Maintenance Ltd,284255,,Community Services,Boiler Servicing,A1660,,,,Revenue
http://statistics.data.gov.uk/doc/local-authority/33,Norfolk County Council,2-Mar-2011,2941986,       189.56,,Imtech Aqua Maintenance Ltd,284255,,Children's Services,Security Systems,A1710,,,,Revenue
http://statistics.data.gov.uk/doc/local-authority/33,Norfolk County Council,2-Mar-2011,2941986,       383.33,,Imtech Aqua Maintenance Ltd,284255,,Children's Services,Environmental Health Officer - Kitchen Improvements,A3110,,,,Revenue
http://statistics.data.gov.uk/doc/local-authority/33,Norfolk County Council,2-Mar-2011,2941986,       566.92,,Imtech Aqua Maintenance Ltd,284255,,Children's Services,Tank Clean/Water System Disinfection,A3630,,,,Revenue
http://statistics.data.gov.uk/doc/local-authority/33,Norfolk County Council,2-Mar-2011,2941986,       220.47,,Imtech Aqua Maintenance Ltd,284255,,Children's Services,Tank Clean/Water System Disinfection,A3630,,,,Revenue
http://statistics.data.gov.uk/doc/local-authority/33,Norfolk County Council,2-Mar-2011,2941986,       566.91,,Imtech Aqua Maintenance Ltd,284255,,Children's Services,Boiler Servicing,A3660,,,,Revenue
http://statistics.data.gov.uk/doc/local-authority/33,Norfolk County Council,2-Mar-2011,2941986,       236.22,,Imtech Aqua Maintenance Ltd,284255,,Children's Services,Boiler Servicing,A3660,,,,Revenue
http://statistics.data.gov.uk/doc/local-authority/33,Norfolk County Council,2-Mar-2011,2941986,       614.23,,Imtech Aqua Maintenance Ltd,284255,,Children's Services,Boiler Servicing,A3660,,,,Revenue
http://statistics.data.gov.uk/doc/local-authority/33,Norfolk County Council,2-Mar-2011,2941986,       196.85,,Imtech Aqua Maintenance Ltd,284255,,Children's Services,Boiler Servicing,A3660,,,,Revenue
http://statistics.data.gov.uk/doc/local-authority/33,Norfolk County Council,2-Mar-2011,2941986,      1346.45,,Imtech Aqua Maintenance Ltd,284255,,Children's Services,Boiler Servicing,A3660,,,,Revenue
http://statistics.data.gov.uk/doc/local-authority/33,Norfolk County Council,2-Mar-2011,2941986,       113.90,,Imtech Aqua Maintenance Ltd,284255,,Children's Services,Security Systems,A3710,,,,Revenue
http://statistics.data.gov.uk/doc/local-authority/33,Norfolk County Council,2-Mar-2011,2941986,       183.00,,Imtech Aqua Maintenance Ltd,284255,,Children's Services,Security Systems,A3710,,,,Revenue
http://statistics.data.gov.uk/doc/local-authority/33,Norfolk County Council,2-Mar-2011,2941996,       992.28,,Westminster Homecare Ltd,116777,,Community Services,Domiciliary Care,51610,,,,Revenue
http://statistics.data.gov.uk/doc/local-authority/33,Norfolk County Council,2-Mar-2011,2941998,       534.89,,Westminster Homecare Ltd,116777,,Community Services,Domiciliary Care,51610,,,,Revenue
http://statistics.data.gov.uk/doc/local-authority/33,Norfolk County Council,2-Mar-2011,2942000,       616.78,,Imtech Aqua Maintenance Ltd,284255,,Community Services,Boiler Servicing,A1660,,,,Revenue
http://statistics.data.gov.uk/doc/local-authority/33,Norfolk County Council,2-Mar-2011,2942000,        70.00,,Imtech Aqua Maintenance Ltd,284255,,Community Services,Boiler Servicing,A1660,,,,Revenue
http://statistics.data.gov.uk/doc/local-authority/33,Norfolk County Council,2-Mar-2011,2942000,       450.50,,Imtech Aqua Maintenance Ltd,284255,,Community Services,Boiler Servicing,A1660,,,,Revenue
http://statistics.data.gov.uk/doc/local-authority/33,Norfolk County Council,2-Mar-2011,2942000,       127.72,,Imtech Aqua Maintenance Ltd,284255,,Community Services,Boiler Servicing,A1660,,,,Revenue
http://statistics.data.gov.uk/doc/local-authority/33,Norfolk County Council,2-Mar-2011,2942000,        55.00,,Imtech Aqua Maintenance Ltd,284255,,Children's Services,Security Systems,A1710,,,,Revenue
http://statistics.data.gov.uk/doc/local-authority/33,Norfolk County Council,2-Mar-2011,2942000,       438.36,,Imtech Aqua Maintenance Ltd,284255,,Children's Services,Boiler Servicing,A3660,,,,Revenue
http://statistics.data.gov.uk/doc/local-authority/33,Norfolk County Council,2-Mar-2011,2942000,      1052.58,,Imtech Aqua Maintenance Ltd,284255,,Children's Services,Boiler Servicing,A3660,,,,Revenue
http://statistics.data.gov.uk/doc/local-authority/33,Norfolk County Council,2-Mar-2011,2942000,        55.00,,Imtech Aqua Maintenance Ltd,284255,,Children's Services,Security Systems,A3710,,,,Revenue
http://statistics.data.gov.uk/doc/local-authority/33,Norfolk County Council,2-Mar-2011,2942001,       534.78,,Westminster Homecare Ltd,116777,,Community Services,Domiciliary Care,51610,,,,Revenue
http://statistics.data.gov.uk/doc/local-authority/33,Norfolk County Council,2-Mar-2011,2942003,      2249.27,,Westminster Homecare Ltd,116777,,Community Services,Domiciliary Care,51610,,,,Revenue
http://statistics.data.gov.uk/doc/local-authority/33,Norfolk County Council,2-Mar-2011,2942009,      3060.00,,Westminster Homecare Ltd,116777,,Community Services,Domiciliary Care,51610,,,,Revenue
http://statistics.data.gov.uk/doc/local-authority/33,Norfolk County Council,2-Mar-2011,2942012,      2940.00,,Westminster Homecare Ltd,116777,,Community Services,Domiciliary Care,51610,,,,Revenue
http://statistics.data.gov.uk/doc/local-authority/33,Norfolk County Council,2-Mar-2011,2942015,       600.66,,Westminster Homecare Ltd,116777,,Community Services,Domiciliary Care,51610,,,,Revenue
http://statistics.data.gov.uk/doc/local-authority/33,Norfolk County Council,2-Mar-2011,2942024,      1986.30,,Mannpower Electrical Services Limited,71699,,Children's Services,"Certificate - Electricity, Power & Light",C2780,,,,Capital
http://statistics.data.gov.uk/doc/local-authority/33,Norfolk County Council,2-Mar-2011,2942025,       488.93,,Cintra Ltd,81669,,Environment Transport & Development,Other Hired & Contracted Services,44810,,,,Revenue
http://statistics.data.gov.uk/doc/local-authority/33,Norfolk County Council,2-Mar-2011,2942037,     11464.58,,Mannpower Electrical Services Limited,71699,,Children's Services,"Certificate - Electricity, Power & Light",C2780,,,,Capital
http://statistics.data.gov.uk/doc/local-authority/33,Norfolk County Council,2-Mar-2011,2942040,     50023.82,,Elm Contracts (Contracting) Limited,68692,,Children's Services,Construction Cost-Adoption/Improvement Building,C2450,,,,Capital
http://statistics.data.gov.uk/doc/local-authority/33,Norfolk County Council,2-Mar-2011,2942041,     14000.00,,G W Gooch & Sons Limited,69227,,Community Services,Construction Cost-Adoption/Improvement Building,C2450,,,,Capital
http://statistics.data.gov.uk/doc/local-authority/33,Norfolk County Council,2-Mar-2011,2942043,     20000.00,,G W Gooch & Sons Limited,69227,,Community Services,Construction Cost-Adoption/Improvement Building,C2450,,,,Capital
http://statistics.data.gov.uk/doc/local-authority/33,Norfolk County Council,2-Mar-2011,2942053,       682.76,,NPS Property Consultants Ltd,72669,,Environment Transport & Development,Fees & Charges,44500,,,,Revenue
http://statistics.data.gov.uk/doc/local-authority/33,Norfolk County Council,2-Mar-2011,2942053,        20.41,,NPS Property Consultants Ltd,72669,,Environment Transport & Development,Fees & Charges,44500,,,,Revenue
http://statistics.data.gov.uk/doc/local-authority/33,Norfolk County Council,2-Mar-2011,2942053,       504.17,,NPS Property Consultants Ltd,72669,,Environment Transport & Development,Valuers Fees,C0220,,,,Capital
http://statistics.data.gov.uk/doc/local-authority/33,Norfolk County Council,2-Mar-2011,2942053,        14.45,,NPS Property Consultants Ltd,72669,,Environment Transport & Development,Valuers Fees,C0220,,,,Capital
http://statistics.data.gov.uk/doc/local-authority/33,Norfolk County Council,2-Mar-2011,2942053,         4.06,,NPS Property Consultants Ltd,72669,,Environment Transport & Development,Valuers Fees,C0220,,,,Capital
http://statistics.data.gov.uk/doc/local-authority/33,Norfolk County Council,2-Mar-2011,2942053,       289.27,,NPS Property Consultants Ltd,72669,,Environment Transport & Development,Valuers Fees,C0220,,,,Capital
http://statistics.data.gov.uk/doc/local-authority/33,Norfolk County Council,2-Mar-2011,2942053,        46.07,,NPS Property Consultants Ltd,72669,,Environment Transport & Development,Valuers Fees,C0220,,,,Capital
http://statistics.data.gov.uk/doc/local-authority/33,Norfolk County Council,2-Mar-2011,2942053,       340.84,,NPS Property Consultants Ltd,72669,,Environment Transport & Development,Valuers Fees,C0220,,,,Capital
http://statistics.data.gov.uk/doc/local-authority/33,Norfolk County Council,2-Mar-2011,2942053,        24.39,,NPS Property Consultants Ltd,72669,,Environment Transport & Development,Valuers Fees,C0220,,,,Capital
http://statistics.data.gov.uk/doc/local-authority/33,Norfolk County Council,2-Mar-2011,2942065,       777.60,,NPS Property Consultants Ltd,72669,,Environment Transport & Development,Fees & Charges,44500,,,,Revenue
http://statistics.data.gov.uk/doc/local-authority/33,Norfolk County Council,2-Mar-2011,2942065,        61.11,,NPS Property Consultants Ltd,72669,,Environment Transport & Development,Highway Rechargeable Works Payments,54700,,,,Revenue
http://statistics.data.gov.uk/doc/local-authority/33,Norfolk County Council,2-Mar-2011,2942065,       963.83,,NPS Property Consultants Ltd,72669,,Environment Transport & Development,Valuers Fees,C0220,,,,Capital
http://statistics.data.gov.uk/doc/local-authority/33,Norfolk County Council,2-Mar-2011,2942065,       508.71,,NPS Property Consultants Ltd,72669,,Environment Transport & Development,Valuers Fees,C0220,,,,Capital
http://statistics.data.gov.uk/doc/local-authority/33,Norfolk County Council,2-Mar-2011,2942065,       138.36,,NPS Property Consultants Ltd,72669,,Environment Transport & Development,Valuers Fees,C0220,,,,Capital
http://statistics.data.gov.uk/doc/local-authority/33,Norfolk County Council,2-Mar-2011,2942065,        81.43,,NPS Property Consultants Ltd,72669,,Environment Transport & Development,Valuers Fees,C0220,,,,Capital
http://statistics.data.gov.uk/doc/local-authority/33,Norfolk County Council,2-Mar-2011,2942065,       447.81,,NPS Property Consultants Ltd,72669,,Environment Transport & Development,Valuers Fees,C0220,,,,Capital
http://statistics.data.gov.uk/doc/local-authority/33,Norfolk County Council,2-Mar-2011,2942065,       779.41,,NPS Property Consultants Ltd,72669,,Environment Transport & Development,Valuers Fees,C0220,,,,Capital
http://statistics.data.gov.uk/doc/local-authority/33,Norfolk County Council,2-Mar-2011,2942065,        20.33,,NPS Property Consultants Ltd,72669,,Environment Transport & Development,Valuers Fees,C0220,,,,Capital
http://statistics.data.gov.uk/doc/local-authority/33,Norfolk County Council,2-Mar-2011,2942065,        89.43,,NPS Property Consultants Ltd,72669,,Environment Transport & Development,Valuers Fees,C0220,,,,Capital
http://statistics.data.gov.uk/doc/local-authority/33,Norfolk County Council,2-Mar-2011,2942065,       313.71,,NPS Property Consultants Ltd,72669,,Environment Transport & Development,Valuers Fees,C0220,,,,Capital
http://statistics.data.gov.uk/doc/local-authority/33,Norfolk County Council,2-Mar-2011,2942065,        16.26,,NPS Property Consultants Ltd,72669,,Environment Transport & Development,Valuers Fees,C0220,,,,Capital
http://statistics.data.gov.uk/doc/local-authority/33,Norfolk County Council,2-Mar-2011,2942065,      2218.52,,NPS Property Consultants Ltd,72669,,Environment Transport & Development,Valuers Fees,C0220,,,,Capital
http://statistics.data.gov.uk/doc/local-authority/33,Norfolk County Council,2-Mar-2011,2942065,       737.43,,NPS Property Consultants Ltd,72669,,Environment Transport & Development,Valuers Fees,C0220,,,,Capital
http://statistics.data.gov.uk/doc/local-authority/33,Norfolk County Council,2-Mar-2011,2942065,       410.62,,NPS Property Consultants Ltd,72669,,Environment Transport & Development,Valuers Fees,C0220,,,,Capital
http://statistics.data.gov.uk/doc/local-authority/33,Norfolk County Council,2-Mar-2011,2942065,        44.73,,NPS Property Consultants Ltd,72669,,Environment Transport & Development,Valuers Fees,C0220,,,,Capital
http://statistics.data.gov.uk/doc/local-authority/33,Norfolk County Council,2-Mar-2011,2942070,     12191.38,,Mas Services East Anglia Ltd,84846,,Community Services,Construction Cost-Adoption/Improvement Building,C2450,,,,Capital
http://statistics.data.gov.uk/doc/local-authority/33,Norfolk County Council,2-Mar-2011,2942074,       638.35,,Mas Services East Anglia Ltd,84846,,Community Services,Building Repairs,A1780,,,,Revenue
http://statistics.data.gov.uk/doc/local-authority/33,Norfolk County Council,2-Mar-2011,2942074,      9015.27,,Mas Services East Anglia Ltd,84846,,Community Services,Adaptation/Improvement-Existing Buildings,C5320,,,,Capital
http://statistics.data.gov.uk/doc/local-authority/33,Norfolk County Council,2-Mar-2011,2942078,       669.04,,Mas Services East Anglia Ltd,84846,,Community Services,Building Repairs,A1780,,,,Revenue
http://statistics.data.gov.uk/doc/local-authority/33,Norfolk County Council,2-Mar-2011,2942078,      5005.83,,Mas Services East Anglia Ltd,84846,,Community Services,Adaptation/Improvement-Existing Buildings,C5320,,,,Capital
http://statistics.data.gov.uk/doc/local-authority/33,Norfolk County Council,2-Mar-2011,2942092,      3000.00,,Lloyds TSB Commercial Finance,74440,,Children's Services,"Certificate - Electricity, Power & Light",C2780,,,,Capital
http://statistics.data.gov.uk/doc/local-authority/33,Norfolk County Council,2-Mar-2011,2942095,     11000.00,,Eyre (Electrical) Limited,68818,,Children's Services,"Certificate - Electricity, Power & Light",C2780,,,,Capital
http://statistics.data.gov.uk/doc/local-authority/33,Norfolk County Council,2-Mar-2011,2942101,     86489.88,,NORSE Commercial Services,179148,,Resources,Estate / Site Management Costs,22550,,,,Revenue
http://statistics.data.gov.uk/doc/local-authority/33,Norfolk County Council,2-Mar-2011,2942105,     18000.00,,Eyre (Electrical) Limited,68818,,Children's Services,"Certificate - Electricity, Power & Light",C2780,,,,Capital
http://statistics.data.gov.uk/doc/local-authority/33,Norfolk County Council,2-Mar-2011,2942107,      1000.00,,Lloyds TSB Commercial Finance,74440,,Children's Services,"Certificate - Electricity, Power & Light",C2780,,,,Capital
http://statistics.data.gov.uk/doc/local-authority/33,Norfolk County Council,2-Mar-2011,2942109,       604.16,,GSL Dardan Limited,186178,,Resources,Estate / Site Management Costs,22550,,,,Revenue
http://statistics.data.gov.uk/doc/local-authority/33,Norfolk County Council,2-Mar-2011,2942111,      3085.50,,Mannpower Electrical Services Limited,71699,,Community Services,"Certificate - Electricity, Power & Light",C2780,,,,Capital
http://statistics.data.gov.uk/doc/local-authority/33,Norfolk County Council,2-Mar-2011,2942114,      3500.00,,Alan R Cross & Son,65998,,Children's Services,"Certificate - Electricity, Power & Light",C2780,,,,Capital
http://statistics.data.gov.uk/doc/local-authority/33,Norfolk County Council,2-Mar-2011,2942117,      6500.00,,Alan R Cross & Son,65998,,Children's Services,"Certificate - Electricity, Power & Light",C2780,,,,Capital
http://statistics.data.gov.uk/doc/local-authority/33,Norfolk County Council,2-Mar-2011,2942119,      4430.00,,Alan R Cross & Son,65998,,Community Services,"Certificate - Electricity, Power & Light",C2780,,,,Capital
http://statistics.data.gov.uk/doc/local-authority/33,Norfolk County Council,2-Mar-2011,2942124,      5000.00,,Admiral Civil Engineering Ltd,132632,,Children's Services,Construction Cost-Adoption/Improvement Building,C2450,,,,Capital
http://statistics.data.gov.uk/doc/local-authority/33,Norfolk County Council,2-Mar-2011,2942125,       589.28,,Westminster Homecare Ltd,116777,,Community Services,Domiciliary Care,51610,,,,Revenue
http://statistics.data.gov.uk/doc/local-authority/33,Norfolk County Council,2-Mar-2011,2942128,     20012.21,,R G Carter Building Ltd,86043,,Children's Services,Architects Fees,C5120,,,,Capital
http://statistics.data.gov.uk/doc/local-authority/33,Norfolk County Council,2-Mar-2011,2942129,      4461.86,,Knights Warner (Kings Lynn) Ltd,84272,,Children's Services,Plant Replacements,A3720,,,,Revenue
http://statistics.data.gov.uk/doc/local-authority/33,Norfolk County Council,2-Mar-2011,2942132,     13799.13,,Eyre (Electrical) Limited,68818,,Community Services,Plant Replacements,A1720,,,,Revenue
http://statistics.data.gov.uk/doc/local-authority/33,Norfolk County Council,2-Mar-2011,2942134,     11337.73,,Lusher Contracts Ltd,188750,,Children's Services,Construction Cost-Adoption/Improvement Building,C2450,,,,Capital
http://statistics.data.gov.uk/doc/local-authority/33,Norfolk County Council,2-Mar-2011,2942136,      2762.28,,Mas Services East Anglia Ltd,84846,,Children's Services,Plant Replacements,A3720,,,,Revenue
http://statistics.data.gov.uk/doc/local-authority/33,Norfolk County Council,2-Mar-2011,2942136,      2220.45,,Mas Services East Anglia Ltd,84846,,Children's Services,Construction Cost-Adoption/Improvement Building,C2450,,,,Capital
http://statistics.data.gov.uk/doc/local-authority/33,Norfolk County Council,2-Mar-2011,2942140,    106642.18,,Morgan Sindall (Cionstruction) Plc,308778,,Children's Services,Construction Cost-Adoption/Improvement Building,C2450,,,,Capital
http://statistics.data.gov.uk/doc/local-authority/33,Norfolk County Council,2-Mar-2011,2942145,     66530.23,,Farrans (Construction) Ltd,397024,,Children's Services,Construction Cost-Adoption/Improvement Building,C2450,,,,Capital
http://statistics.data.gov.uk/doc/local-authority/33,Norfolk County Council,2-Mar-2011,2942185,       680.82,,Ormerod Home Trust Limited,72785,,Community Services,Day Care / Supported Activities,52160,,,,Revenue
http://statistics.data.gov.uk/doc/local-authority/33,Norfolk County Council,2-Mar-2011,2942224,       448.50,,Glazewing Ltd,69351,,Community Services,Consumable Stores,40660,,,,Revenue
http://statistics.data.gov.uk/doc/local-authority/33,Norfolk County Council,2-Mar-2011,2942233,       946.00,,BENELL CARE SERVICES LTD,79508,,Community Services,Day Care / Supported Activities,52160,,,,Revenue
http://statistics.data.gov.uk/doc/local-authority/33,Norfolk County Council,2-Mar-2011,2942244,       597.28,,Southern Electric,74726,,Environment Transport & Development,Electricity,24340,,,,Revenue
http://statistics.data.gov.uk/doc/local-authority/33,Norfolk County Council,2-Mar-2011,2942258,       743.47,,BT Global Services,81223,,Community Services,Software Maintenance,44180,,,,Revenue
http://statistics.data.gov.uk/doc/local-authority/33,Norfolk County Council,2-Mar-2011,2942329,       604.50,,Electronic System Services,141539,,Environment Transport & Development,Building Maintenance & Repairs,23300,,,,Revenue
http://statistics.data.gov.uk/doc/local-authority/33,Norfolk County Council,2-Mar-2011,2942340,      4948.05,,NW Textiles Ltd,154448,,Community Services,Work Centre Materials,41630,,,,Revenue
http://statistics.data.gov.uk/doc/local-authority/33,Norfolk County Council,2-Mar-2011,2942344,      2265.00,,NW Textiles Ltd,154448,,Community Services,Work Centre Materials,41630,,,,Revenue
http://statistics.data.gov.uk/doc/local-authority/33,Norfolk County Council,2-Mar-2011,2942346,      1403.10,,NW Textiles Ltd,154448,,Community Services,Work Centre Materials,41630,,,,Revenue
http://statistics.data.gov.uk/doc/local-authority/33,Norfolk County Council,2-Mar-2011,2942351,      2532.50,,NW Textiles Ltd,154448,,Community Services,Work Centre Materials,41630,,,,Revenue
http://statistics.data.gov.uk/doc/local-authority/33,Norfolk County Council,2-Mar-2011,2942377,      1188.00,,Southern Electric,74726,,Community Services,Electricity,24340,,,,Revenue
http://statistics.data.gov.uk/doc/local-authority/33,Norfolk County Council,2-Mar-2011,2942382,       603.02,,Southern Electric,74726,,Children's Services,Electricity,24340,,,,Revenue
http://statistics.data.gov.uk/doc/local-authority/33,Norfolk County Council,2-Mar-2011,2942402,       145.50,,Arval UK Ltd,80697,,Community Services,Vehicle Fuel,33420,,,,Revenue
http://statistics.data.gov.uk/doc/local-authority/33,Norfolk County Council,2-Mar-2011,2942402,       152.49,,Arval UK Ltd,80697,,Community Services,Vehicle Fuel,33420,,,,Revenue
http://statistics.data.gov.uk/doc/local-authority/33,Norfolk County Council,2-Mar-2011,2942402,       147.09,,Arval UK Ltd,80697,,Community Services,Vehicle Fuel,33420,,,,Revenue
http://statistics.data.gov.uk/doc/local-authority/33,Norfolk County Council,2-Mar-2011,2942402,        70.87,,Arval UK Ltd,80697,,Community Services,Vehicle Fuel,33420,,,,Revenue
http://statistics.data.gov.uk/doc/local-authority/33,Norfolk County Council,2-Mar-2011,2942402,        86.46,,Arval UK Ltd,80697,,Community Services,Vehicle Fuel,33420,,,,Revenue
http://statistics.data.gov.uk/doc/local-authority/33,Norfolk County Council,2-Mar-2011,2942402,        85.33,,Arval UK Ltd,80697,,Community Services,Vehicle Fuel,33420,,,,Revenue
http://statistics.data.gov.uk/doc/local-authority/33,Norfolk County Council,2-Mar-2011,2942402,        70.32,,Arval UK Ltd,80697,,Community Services,Vehicle Fuel,33420,,,,Revenue
http://statistics.data.gov.uk/doc/local-authority/33,Norfolk County Council,2-Mar-2011,2942402,        89.78,,Arval UK Ltd,80697,,Community Services,Vehicle Fuel,33420,,,,Revenue
http://statistics.data.gov.uk/doc/local-authority/33,Norfolk County Council,2-Mar-2011,2942402,       123.92,,Arval UK Ltd,80697,,Community Services,Vehicle Fuel,33420,,,,Revenue
http://statistics.data.gov.uk/doc/local-authority/33,Norfolk County Council,2-Mar-2011,2942402,       157.76,,Arval UK Ltd,80697,,Community Services,Vehicle Fuel,33420,,,,Revenue
http://statistics.data.gov.uk/doc/local-authority/33,Norfolk County Council,2-Mar-2011,2942402,        71.69,,Arval UK Ltd,80697,,Community Services,Vehicle Fuel,33420,,,,Revenue
http://statistics.data.gov.uk/doc/local-authority/33,Norfolk County Council,2-Mar-2011,2942402,        70.78,,Arval UK Ltd,80697,,Community Services,Vehicle Fuel,33420,,,,Revenue
http://statistics.data.gov.uk/doc/local-authority/33,Norfolk County Council,2-Mar-2011,2942402,        81.47,,Arval UK Ltd,80697,,Community Services,Vehicle Fuel,33420,,,,Revenue
http://statistics.data.gov.uk/doc/local-authority/33,Norfolk County Council,2-Mar-2011,2942402,       181.67,,Arval UK Ltd,80697,,Community Services,Vehicle Fuel,33420,,,,Revenue
http://statistics.data.gov.uk/doc/local-authority/33,Norfolk County Council,2-Mar-2011,2942402,        83.28,,Arval UK Ltd,80697,,Community Services,Vehicle Fuel,33420,,,,Revenue
http://statistics.data.gov.uk/doc/local-authority/33,Norfolk County Council,2-Mar-2011,2942402,       109.08,,Arval UK Ltd,80697,,Community Services,Vehicle Fuel,33420,,,,Revenue
http://statistics.data.gov.uk/doc/local-authority/33,Norfolk County Council,2-Mar-2011,2942402,        83.08,,Arval UK Ltd,80697,,Community Services,Vehicle Fuel,33420,,,,Revenue
http://statistics.data.gov.uk/doc/local-authority/33,Norfolk County Council,2-Mar-2011,2942402,       147.08,,Arval UK Ltd,80697,,Community Services,Vehicle Fuel,33420,,,,Revenue
http://statistics.data.gov.uk/doc/local-authority/33,Norfolk County Council,3-Mar-2011,2903437,      1125.40,,Phoenix Software Limited,73240,,Children's Services,Purchase Of IT,C3200,,,,Capital
http://statistics.data.gov.uk/doc/local-authority/33,Norfolk County Council,3-Mar-2011,2904376,      5925.00,,Ecology Consultancy Ltd,184184,,Environment Transport & Development,Other Hired & Contracted Services,44810,,,,Revenue
http://statistics.data.gov.uk/doc/local-authority/33,Norfolk County Council,3-Mar-2011,2904705,      1299.59,,Dell Corporation Ltd,68158,,Children's Services,Purchase Of IT,C3200,,,,Capital
http://statistics.data.gov.uk/doc/local-authority/33,Norfolk County Council,3-Mar-2011,2904709,      1743.54,,Dell Corporation Ltd,68158,,Children's Services,Purchase Of IT,C3200,,,,Capital
http://statistics.data.gov.uk/doc/local-authority/33,Norfolk County Council,3-Mar-2011,2908584,      1031.94,,Fostering Solutions Ltd,141049,,Children's Services,Payments to Organisations Providing Services To NCC,52000,,,,Revenue
http://statistics.data.gov.uk/doc/local-authority/33,Norfolk County Council,3-Mar-2011,2908857,      2200.00,,Dell Corporation Ltd,68158,,Children's Services,Purchase Of IT,C3200,,,,Capital
http://statistics.data.gov.uk/doc/local-authority/33,Norfolk County Council,3-Mar-2011,2908934,       581.18,,Dell Corporation Ltd,68158,,Children's Services,ICT Equipment Purchases,43900,,,,Revenue
http://statistics.data.gov.uk/doc/local-authority/33,Norfolk County Council,3-Mar-2011,2909568,      1183.95,,WOLSELEY UK LTD,76320,,Environment Transport & Development,Materials Purchases,42160,,,,Revenue
http://statistics.data.gov.uk/doc/local-authority/33,Norfolk County Council,3-Mar-2011,2909574,       398.30,,WOLSELEY UK LTD,76320,,Environment Transport & Development,Materials Purchases,42160,,,,Revenue
http://statistics.data.gov.uk/doc/local-authority/33,Norfolk County Council,3-Mar-2011,2909574,       170.70,,WOLSELEY UK LTD,76320,,Environment Transport & Development,Materials Purchases,42160,,,,Revenue
http://statistics.data.gov.uk/doc/local-authority/33,Norfolk County Council,3-Mar-2011,2909581,      1449.76,,Instarmac Group Plc,70120,,Environment Transport & Development,Materials Purchases,42160,,,,Revenue
http://statistics.data.gov.uk/doc/local-authority/33,Norfolk County Council,3-Mar-2011,2909582,      2148.64,,Instarmac Group Plc,70120,,Environment Transport & Development,Materials Purchases,42160,,,,Revenue
http://statistics.data.gov.uk/doc/local-authority/33,Norfolk County Council,3-Mar-2011,2909588,       860.94,,IRS Limited,70031,,Environment Transport & Development,Materials Purchases,42160,,,,Revenue
http://statistics.data.gov.uk/doc/local-authority/33,Norfolk County Council,3-Mar-2011,2909591,       787.25,,Instarmac Group Plc,70120,,Environment Transport & Development,Materials Purchases,42160,,,,Revenue
http://statistics.data.gov.uk/doc/local-authority/33,Norfolk County Council,3-Mar-2011,2909591,      1191.27,,Instarmac Group Plc,70120,,Environment Transport & Development,Materials Purchases,42160,,,,Revenue
http://statistics.data.gov.uk/doc/local-authority/33,Norfolk County Council,3-Mar-2011,2909593,       266.20,,Tarmac Ltd,75281,,Environment Transport & Development,Materials Purchases,42160,,,,Revenue
http://statistics.data.gov.uk/doc/local-authority/33,Norfolk County Council,3-Mar-2011,2909593,       725.57,,Tarmac Ltd,75281,,Environment Transport & Development,Materials Purchases,42160,,,,Revenue
http://statistics.data.gov.uk/doc/local-authority/33,Norfolk County Council,3-Mar-2011,2909594,       611.82,,Tarmac Ltd,75281,,Environment Transport & Development,Materials Purchases,42160,,,,Revenue
http://statistics.data.gov.uk/doc/local-authority/33,Norfolk County Council,3-Mar-2011,2909595,       175.31,,Tarmac Ltd,75281,,Environment Transport & Development,Materials Purchases,42160,,,,Revenue
http://statistics.data.gov.uk/doc/local-authority/33,Norfolk County Council,3-Mar-2011,2909595,       982.04,,Tarmac Ltd,75281,,Environment Transport & Development,Materials Purchases,42160,,,,Revenue
http://statistics.data.gov.uk/doc/local-authority/33,Norfolk County Council,3-Mar-2011,2909596,       449.48,,Tarmac Ltd,75281,,Environment Transport & Development,Materials Purchases,42160,,,,Revenue
http://statistics.data.gov.uk/doc/local-authority/33,Norfolk County Council,3-Mar-2011,2909598,      1645.00,,K Plant Ltd,70746,,Environment Transport & Development,Contract Plant & Machinery Hire,34930,,,,Revenue
http://statistics.data.gov.uk/doc/local-authority/33,Norfolk County Council,3-Mar-2011,2909599,      1274.00,,K Plant Ltd,70746,,Environment Transport & Development,Contract Plant & Machinery Hire,34930,,,,Revenue
http://statistics.data.gov.uk/doc/local-authority/33,Norfolk County Council,3-Mar-2011,2909600,       859.95,,K Plant Ltd,70746,,Environment Transport & Development,Contract Plant & Machinery Hire,34930,,,,Revenue
http://statistics.data.gov.uk/doc/local-authority/33,Norfolk County Council,3-Mar-2011,2909601,       880.00,,Glen Bishop Builders Ltd,69355,,Environment Transport & Development,Contract Plant & Machinery Hire,34930,,,,Revenue
http://statistics.data.gov.uk/doc/local-authority/33,Norfolk County Council,3-Mar-2011,2909602,      1274.00,,K Plant Ltd,70746,,Environment Transport & Development,Contract Plant & Machinery Hire,34930,,,,Revenue
http://statistics.data.gov.uk/doc/local-authority/33,Norfolk County Council,3-Mar-2011,2909604,       809.25,,Bure Valley Plant Hire Limited,66943,,Environment Transport & Development,Contract Plant & Machinery Hire,34930,,,,Revenue
http://statistics.data.gov.uk/doc/local-authority/33,Norfolk County Council,3-Mar-2011,2909605,      1937.00,,Instarmac Group Plc,70120,,Environment Transport & Development,Materials Purchases,42160,,,,Revenue
http://statistics.data.gov.uk/doc/local-authority/33,Norfolk County Council,3-Mar-2011,2910334,      5728.67,,Alpheus Environmental Ltd,66071,,Environment Transport & Development,Landfill Leachate Costs,22920,,,,Revenue
http://statistics.data.gov.uk/doc/local-authority/33,Norfolk County Council,3-Mar-2011,2910335,       495.83,,Alpheus Environmental Ltd,66071,,Environment Transport & Development,Landfill Leachate Costs,22920,,,,Revenue
http://statistics.data.gov.uk/doc/local-authority/33,Norfolk County Council,3-Mar-2011,2910457,       337.50,,Redacted - Personal Data,Redacted,,Environment Transport & Development,Road Maintenance Contractor Payments,45070,,,,Revenue
http://statistics.data.gov.uk/doc/local-authority/33,Norfolk County Council,3-Mar-2011,2910457,       101.25,,Redacted - Personal Data,Redacted,,Environment Transport & Development,Road Maintenance Contractor Payments,45070,,,,Revenue
http://statistics.data.gov.uk/doc/local-authority/33,Norfolk County Council,3-Mar-2011,2910457,       450.00,,Redacted - Personal Data,Redacted,,Environment Transport & Development,Road Maintenance Contractor Payments,45070,,,,Revenue
http://statistics.data.gov.uk/doc/local-authority/33,Norfolk County Council,3-Mar-2011,2910499,       573.75,,Redacted - Personal Data,Redacted,,Environment Transport & Development,Road Maintenance Contractor Payments,45070,,,,Revenue
http://statistics.data.gov.uk/doc/local-authority/33,Norfolk County Council,3-Mar-2011,2910499,      1863.00,,Redacted - Personal Data,Redacted,,Environment Transport & Development,Road Maintenance Contractor Payments,45070,,,,Revenue
http://statistics.data.gov.uk/doc/local-authority/33,Norfolk County Council,3-Mar-2011,2910499,       138.00,,Redacted - Personal Data,Redacted,,Environment Transport & Development,Road Maintenance Contractor Payments,45070,,,,Revenue
http://statistics.data.gov.uk/doc/local-authority/33,Norfolk County Council,3-Mar-2011,2910695,      1313.96,,Xma Ltd,87736,,Children's Services,Purchase Of IT,C3200,,,,Capital
http://statistics.data.gov.uk/doc/local-authority/33,Norfolk County Council,3-Mar-2011,2910917,      1985.00,,Ergo Computing Uk Limited,68752,,Children's Services,ICT Equipment Purchases,43900,,,,Revenue
http://statistics.data.gov.uk/doc/local-authority/33,Norfolk County Council,3-Mar-2011,2910922,       507.30,,Phoenix Software Limited,73240,,Children's Services,"ICT Software Purchases, Licenses & Maintenance",44170,,,,Revenue
http://statistics.data.gov.uk/doc/local-authority/33,Norfolk County Council,3-Mar-2011,2912610,      6600.00,,Great Yarmouth Port Company,149191,,Environment Transport & Development,Construction Costs - Roads - Management,C2500,,,,Capital
http://statistics.data.gov.uk/doc/local-authority/33,Norfolk County Council,3-Mar-2011,2912611,      6035.22,,Great Yarmouth Port Company,149191,,Environment Transport & Development,Construction Costs - Roads - Management,C2500,,,,Capital
http://statistics.data.gov.uk/doc/local-authority/33,Norfolk County Council,3-Mar-2011,2912652,      4200.00,,Eastern Leadership Centre,93971,,Children's Services,Cost of Licenses & Subscriptions,49020,,,,Revenue
http://statistics.data.gov.uk/doc/local-authority/33,Norfolk County Council,3-Mar-2011,2912663,      8370.00,,CIPFA Business Ltd,187115,,Children's Services,Admin/ Chief Officers - Scale K and Above,13650,,,,Revenue
http://statistics.data.gov.uk/doc/local-authority/33,Norfolk County Council,3-Mar-2011,2912727,      1797.28,,NORSE Commercial Services,179148,,Children's Services,"Non Staff Course, Conference & Subsistence Expenses",46730,,,,Revenue
http://statistics.data.gov.uk/doc/local-authority/33,Norfolk County Council,3-Mar-2011,2912759,      1872.94,,PLB Projects Ltd,420279,,Community Services,Display Materials,41840,,,,Revenue
http://statistics.data.gov.uk/doc/local-authority/33,Norfolk County Council,3-Mar-2011,2912774,      1158.95,,Demco Interiors,135770,,Community Services,Purchase Of Furniture,C3000,,,,Capital
http://statistics.data.gov.uk/doc/local-authority/33,Norfolk County Council,3-Mar-2011,2912789,      2730.00,,Capita Business Services Ltd,148696,,Children's Services,Staff Training Costs,17450,,,,Revenue
http://statistics.data.gov.uk/doc/local-authority/33,Norfolk County Council,3-Mar-2011,2912803,       492.00,,Apex Signs and Engraving Ltd,92448,,Community Services,Non Staff Advertising - Discretionary,47100,,,,Revenue
http://statistics.data.gov.uk/doc/local-authority/33,Norfolk County Council,3-Mar-2011,2912827,     14999.48,,Great Yarmouth Port Company,149191,,Environment Transport & Development,Construction Costs - Roads - Management,C2500,,,,Capital
http://statistics.data.gov.uk/doc/local-authority/33,Norfolk County Council,3-Mar-2011,2912829,      2841.00,,NORSE Commercial Services,179148,,Resources,Martineau Management Consultancy & Training - Catering & Hotel Cost,49510,,,,Revenue
http://statistics.data.gov.uk/doc/local-authority/33,Norfolk County Council,3-Mar-2011,2912833,       795.15,,E-Voice Speech Recognition Ltd,160115,,Children's Services,ICT Equipment Purchases,43900,,,,Revenue
http://statistics.data.gov.uk/doc/local-authority/33,Norfolk County Council,3-Mar-2011,2912835,      1519.70,,NORSE Commercial Services,179148,,Resources,Martineau Management Consultancy & Training - Catering & Hotel Cost,49510,,,,Revenue
http://statistics.data.gov.uk/doc/local-authority/33,Norfolk County Council,3-Mar-2011,2912837,      3800.75,,NORSE Commercial Services,179148,,Resources,Martineau Management Consultancy & Training - Catering & Hotel Cost,49510,,,,Revenue
http://statistics.data.gov.uk/doc/local-authority/33,Norfolk County Council,3-Mar-2011,2912840,      3260.50,,NORSE Commercial Services,179148,,Resources,Martineau Management Consultancy & Training - Catering & Hotel Cost,49510,,,,Revenue
http://statistics.data.gov.uk/doc/local-authority/33,Norfolk County Council,3-Mar-2011,2912844,      3537.70,,NORSE Commercial Services,179148,,Resources,Martineau Management Consultancy & Training - Catering & Hotel Cost,49510,,,,Revenue
http://statistics.data.gov.uk/doc/local-authority/33,Norfolk County Council,3-Mar-2011,2912864,      1051.60,,Findel Education Ltd,74941,,Children's Services,Equipment Purchases,40850,,,,Revenue
http://statistics.data.gov.uk/doc/local-authority/33,Norfolk County Council,3-Mar-2011,2912911,       750.00,,Redacted - Personal Data,Redacted,,Community Services,Fees & Charges,44500,,,,Revenue
http://statistics.data.gov.uk/doc/local-authority/33,Norfolk County Council,3-Mar-2011,2913037,      1398.25,,K Plant Ltd,70746,,Environment Transport & Development,Contract Plant & Machinery Hire,34930,,,,Revenue
http://statistics.data.gov.uk/doc/local-authority/33,Norfolk County Council,3-Mar-2011,2913037,       180.95,,K Plant Ltd,70746,,Environment Transport & Development,Contract Plant & Machinery Hire,34930,,,,Revenue
http://statistics.data.gov.uk/doc/local-authority/33,Norfolk County Council,3-Mar-2011,2913037,       164.50,,K Plant Ltd,70746,,Environment Transport & Development,Contract Plant & Machinery Hire,34930,,,,Revenue
http://statistics.data.gov.uk/doc/local-authority/33,Norfolk County Council,3-Mar-2011,2913038,      1431.15,,K Plant Ltd,70746,,Environment Transport & Development,Contract Plant & Machinery Hire,34930,,,,Revenue
http://statistics.data.gov.uk/doc/local-authority/33,Norfolk County Council,3-Mar-2011,2913038,        98.70,,K Plant Ltd,70746,,Environment Transport & Development,Contract Plant & Machinery Hire,34930,,,,Revenue
http://statistics.data.gov.uk/doc/local-authority/33,Norfolk County Council,3-Mar-2011,2913218,       857.73,,Konica Minolta Business Solutions East Ltd,70912,,Environment Transport & Development,"Printing, Stationery and Photocopying",46500,,,,Revenue
http://statistics.data.gov.uk/doc/local-authority/33,Norfolk County Council,3-Mar-2011,2913227,      1517.03,,Konica Minolta Business Solutions East Ltd,70912,,Environment Transport & Development,"Printing, Stationery and Photocopying",46500,,,,Revenue
http://statistics.data.gov.uk/doc/local-authority/33,Norfolk County Council,3-Mar-2011,2913232,       524.64,,Konica Minolta Business Solutions East Ltd,70912,,Environment Transport & Development,"Printing, Stationery and Photocopying",46500,,,,Revenue
http://statistics.data.gov.uk/doc/local-authority/33,Norfolk County Council,3-Mar-2011,2913241,       790.33,,Konica Minolta Business Solutions East Ltd,70912,,Environment Transport & Development,"Printing, Stationery and Photocopying",46500,,,,Revenue
http://statistics.data.gov.uk/doc/local-authority/33,Norfolk County Council,3-Mar-2011,2913247,       924.07,,Konica Minolta Business Solutions East Ltd,70912,,Environment Transport & Development,"Printing, Stationery and Photocopying",46500,,,,Revenue
http://statistics.data.gov.uk/doc/local-authority/33,Norfolk County Council,3-Mar-2011,2913249,       638.38,,Konica Minolta Business Solutions East Ltd,70912,,Environment Transport & Development,"Printing, Stationery and Photocopying",46500,,,,Revenue
http://statistics.data.gov.uk/doc/local-authority/33,Norfolk County Council,3-Mar-2011,2913253,      1028.05,,Konica Minolta Business Solutions East Ltd,70912,,Environment Transport & Development,"Printing, Stationery and Photocopying",46500,,,,Revenue
http://statistics.data.gov.uk/doc/local-authority/33,Norfolk County Council,3-Mar-2011,2913278,      1193.75,,Redacted - Personal Data,Redacted,,Children's Services,Fees & Charges,44500,,,,Revenue
http://statistics.data.gov.uk/doc/local-authority/33,Norfolk County Council,3-Mar-2011,2913691,       674.05,,Redacted - Personal Data,Redacted,,Children's Services,Providing Financial Assistance to Service Users,45650,,,,Revenue
http://statistics.data.gov.uk/doc/local-authority/33,Norfolk County Council,3-Mar-2011,2913693,      3549.00,,Cyber Media Solutions Ltd,67856,,Children's Services,ICT System Improvements,44000,,,,Revenue
http://statistics.data.gov.uk/doc/local-authority/33,Norfolk County Council,3-Mar-2011,2913979,       592.50,,Matchtech Group Ltd,84853,,Environment Transport & Development,Other Hired & Contracted Services,44810,,,,Revenue
http://statistics.data.gov.uk/doc/local-authority/33,Norfolk County Council,3-Mar-2011,2914101,     18333.58,,May Gurney Ltd,71794,,Environment Transport & Development,Private Contractor Site Operation Payments,52550,,,,Revenue
http://statistics.data.gov.uk/doc/local-authority/33,Norfolk County Council,3-Mar-2011,2914101,     24774.76,,May Gurney Ltd,71794,,Environment Transport & Development,Private Contractor Site Operation Payments,52550,,,,Revenue
http://statistics.data.gov.uk/doc/local-authority/33,Norfolk County Council,3-Mar-2011,2914101,     11300.28,,May Gurney Ltd,71794,,Environment Transport & Development,Private Contractor Site Operation Payments,52550,,,,Revenue
http://statistics.data.gov.uk/doc/local-authority/33,Norfolk County Council,3-Mar-2011,2914101,     21857.01,,May Gurney Ltd,71794,,Environment Transport & Development,Private Contractor Site Operation Payments,52550,,,,Revenue
http://statistics.data.gov.uk/doc/local-authority/33,Norfolk County Council,3-Mar-2011,2914101,     10685.48,,May Gurney Ltd,71794,,Environment Transport & Development,Private Contractor Site Operation Payments,52550,,,,Revenue
http://statistics.data.gov.uk/doc/local-authority/33,Norfolk County Council,3-Mar-2011,2914101,     18776.11,,May Gurney Ltd,71794,,Environment Transport & Development,Private Contractor Site Operation Payments,52550,,,,Revenue
http://statistics.data.gov.uk/doc/local-authority/33,Norfolk County Council,3-Mar-2011,2914101,     35278.17,,May Gurney Ltd,71794,,Environment Transport & Development,Private Contractor Site Operation Payments,52550,,,,Revenue
http://statistics.data.gov.uk/doc/local-authority/33,Norfolk County Council,3-Mar-2011,2914101,     15717.47,,May Gurney Ltd,71794,,Environment Transport & Development,Private Contractor Site Operation Payments,52550,,,,Revenue
http://statistics.data.gov.uk/doc/local-authority/33,Norfolk County Council,3-Mar-2011,2914101,     24594.64,,May Gurney Ltd,71794,,Environment Transport & Development,Private Contractor Site Operation Payments,52550,,,,Revenue
http://statistics.data.gov.uk/doc/local-authority/33,Norfolk County Council,3-Mar-2011,2914101,     12924.10,,May Gurney Ltd,71794,,Environment Transport & Development,Private Contractor Site Operation Payments,52550,,,,Revenue
http://statistics.data.gov.uk/doc/local-authority/33,Norfolk County Council,3-Mar-2011,2914101,     27317.09,,May Gurney Ltd,71794,,Environment Transport & Development,Private Contractor Site Operation Payments,52550,,,,Revenue
http://statistics.data.gov.uk/doc/local-authority/33,Norfolk County Council,3-Mar-2011,2914101,     28926.39,,May Gurney Ltd,71794,,Environment Transport & Development,Private Contractor Site Operation Payments,52550,,,,Revenue
http://statistics.data.gov.uk/doc/local-authority/33,Norfolk County Council,3-Mar-2011,2914101,     17422.03,,May Gurney Ltd,71794,,Environment Transport & Development,Private Contractor Site Operation Payments,52550,,,,Revenue
http://statistics.data.gov.uk/doc/local-authority/33,Norfolk County Council,3-Mar-2011,2914101,     28452.44,,May Gurney Ltd,71794,,Environment Transport & Development,Private Contractor Site Operation Payments,52550,,,,Revenue
http://statistics.data.gov.uk/doc/local-authority/33,Norfolk County Council,3-Mar-2011,2914101,     13810.40,,May Gurney Ltd,71794,,Environment Transport & Development,Private Contractor Site Operation Payments,52550,,,,Revenue
http://statistics.data.gov.uk/doc/local-authority/33,Norfolk County Council,3-Mar-2011,2914101,     20080.84,,May Gurney Ltd,71794,,Environment Transport & Development,Private Contractor Site Operation Payments,52550,,,,Revenue
http://statistics.data.gov.uk/doc/local-authority/33,Norfolk County Council,3-Mar-2011,2914101,     15035.53,,May Gurney Ltd,71794,,Environment Transport & Development,Private Contractor Site Operation Payments,52550,,,,Revenue
http://statistics.data.gov.uk/doc/local-authority/33,Norfolk County Council,3-Mar-2011,2914101,     13178.44,,May Gurney Ltd,71794,,Environment Transport & Development,Private Contractor Site Operation Payments,52550,,,,Revenue
http://statistics.data.gov.uk/doc/local-authority/33,Norfolk County Council,3-Mar-2011,2914101,     31344.00,,May Gurney Ltd,71794,,Environment Transport & Development,Private Contractor Site Operation Payments,52550,,,,Revenue
http://statistics.data.gov.uk/doc/local-authority/33,Norfolk County Council,3-Mar-2011,2914406,      1817.00,,Wordingham Plant Hire Ltd,134000,,Environment Transport & Development,Road Maintenance Contractor Payments,45070,,,,Revenue
http://statistics.data.gov.uk/doc/local-authority/33,Norfolk County Council,3-Mar-2011,2914406,        46.00,,Wordingham Plant Hire Ltd,134000,,Environment Transport & Development,Road Maintenance Contractor Payments,45070,,,,Revenue
http://statistics.data.gov.uk/doc/local-authority/33,Norfolk County Council,3-Mar-2011,2914409,      3087.35,,Hedley Solutions Ltd,162789,,Children's Services,Purchase Of IT,C3200,,,,Capital
http://statistics.data.gov.uk/doc/local-authority/33,Norfolk County Council,3-Mar-2011,2914411,      2967.00,,Wordingham Plant Hire Ltd,134000,,Environment Transport & Development,Road Maintenance Contractor Payments,45070,,,,Revenue
http://statistics.data.gov.uk/doc/local-authority/33,Norfolk County Council,3-Mar-2011,2914411,       138.00,,Wordingham Plant Hire Ltd,134000,,Environment Transport & Development,Road Maintenance Contractor Payments,45070,,,,Revenue
http://statistics.data.gov.uk/doc/local-authority/33,Norfolk County Council,3-Mar-2011,2914413,      2760.00,,Wordingham Plant Hire Ltd,134000,,Environment Transport & Development,Road Maintenance Contractor Payments,45070,,,,Revenue
http://statistics.data.gov.uk/doc/local-authority/33,Norfolk County Council,3-Mar-2011,2914413,       759.00,,Wordingham Plant Hire Ltd,134000,,Environment Transport & Development,Road Maintenance Contractor Payments,45070,,,,Revenue
http://statistics.data.gov.uk/doc/local-authority/33,Norfolk County Council,3-Mar-2011,2914413,       368.00,,Wordingham Plant Hire Ltd,134000,,Environment Transport & Development,Road Maintenance Contractor Payments,45070,,,,Revenue
http://statistics.data.gov.uk/doc/local-authority/33,Norfolk County Council,3-Mar-2011,2914419,      1357.00,,Wordingham Plant Hire Ltd,134000,,Environment Transport & Development,Road Maintenance Contractor Payments,45070,,,,Revenue
http://statistics.data.gov.uk/doc/local-authority/33,Norfolk County Council,3-Mar-2011,2914419,      1512.00,,Wordingham Plant Hire Ltd,134000,,Environment Transport & Development,Road Maintenance Contractor Payments,45070,,,,Revenue
http://statistics.data.gov.uk/doc/local-authority/33,Norfolk County Council,3-Mar-2011,2914419,       195.50,,Wordingham Plant Hire Ltd,134000,,Environment Transport & Development,Road Maintenance Contractor Payments,45070,,,,Revenue
http://statistics.data.gov.uk/doc/local-authority/33,Norfolk County Council,3-Mar-2011,2914419,        80.50,,Wordingham Plant Hire Ltd,134000,,Environment Transport & Development,Road Maintenance Contractor Payments,45070,,,,Revenue
http://statistics.data.gov.uk/doc/local-authority/33,Norfolk County Council,3-Mar-2011,2914419,       391.00,,Wordingham Plant Hire Ltd,134000,,Environment Transport & Development,Road Maintenance Contractor Payments,45070,,,,Revenue
http://statistics.data.gov.uk/doc/local-authority/33,Norfolk County Council,3-Mar-2011,2914439,       625.00,,Dataday Technology Ltd,68109,,Children's Services,Other Hired & Contracted Services,44810,,,,Revenue
http://statistics.data.gov.uk/doc/local-authority/33,Norfolk County Council,3-Mar-2011,2914449,       625.00,,Dataday Technology Ltd,68109,,Children's Services,Other Hired & Contracted Services,44810,,,,Revenue
http://statistics.data.gov.uk/doc/local-authority/33,Norfolk County Council,3-Mar-2011,2914465,      1838.60,,NORSE Commercial Services,179148,,Resources,Hospitality Expenses,47970,,,,Revenue
http://statistics.data.gov.uk/doc/local-authority/33,Norfolk County Council,3-Mar-2011,2914675,       995.40,,Matchtech Group Ltd,84853,,Environment Transport & Development,Other Hired & Contracted Services,44810,,,,Revenue
http://statistics.data.gov.uk/doc/local-authority/33,Norfolk County Council,3-Mar-2011,2914701,      3500.00,,Risk Control & Environmental Services Ltd,176644,,Fire & Rescue,Staff Training Costs,17450,,,,Revenue
http://statistics.data.gov.uk/doc/local-authority/33,Norfolk County Council,3-Mar-2011,2915091,     11800.00,,IDE Contracting Ltd,338985,,Community Services,Other Support Costs,C4600,,,,Capital
http://statistics.data.gov.uk/doc/local-authority/33,Norfolk County Council,3-Mar-2011,2915124,     67420.45,,Broadland District Council,81171,,Environment Transport & Development,Other Local Authorities,50500,,,,Revenue
http://statistics.data.gov.uk/doc/local-authority/33,Norfolk County Council,3-Mar-2011,2915265,       641.54,,Espo,68527,,Children's Services,Gas (mains supplied),24360,,,,Revenue
http://statistics.data.gov.uk/doc/local-authority/33,Norfolk County Council,3-Mar-2011,2915326,       709.16,,Multichannel Solutions for Entertainment(MSE)Ltd,410151,,Community Services,Materials Purchases,42160,,,,Revenue
http://statistics.data.gov.uk/doc/local-authority/33,Norfolk County Council,3-Mar-2011,2915355,       881.40,,Choices Uk Group Ltd,187660,,Community Services,Materials Purchases,42160,,,,Revenue
http://statistics.data.gov.uk/doc/local-authority/33,Norfolk County Council,3-Mar-2011,2915593,       594.44,,Askews Library Services Ltd,91922,,Community Services,Books and Publications,40800,,,,Revenue
http://statistics.data.gov.uk/doc/local-authority/33,Norfolk County Council,3-Mar-2011,2916355,      2112.80,,Redacted - Personal Data,Redacted,,Community Services,Fees & Charges,44500,,,,Revenue
http://statistics.data.gov.uk/doc/local-authority/33,Norfolk County Council,3-Mar-2011,2917185,      2252.67,,Euro RSG Riley Ltd,82665,,Environment Transport & Development,Non Staff Advertising - Discretionary,47100,,,,Revenue
http://statistics.data.gov.uk/doc/local-authority/33,Norfolk County Council,3-Mar-2011,2917281,      1070.16,,Royal Mencap Society,74022,,Community Services,Day Care / Supported Activities,52160,,,,Revenue
http://statistics.data.gov.uk/doc/local-authority/33,Norfolk County Council,3-Mar-2011,2917285,      8790.60,,Royal Mencap Society,74022,,Community Services,Day Care / Supported Activities,52160,,,,Revenue
http://statistics.data.gov.uk/doc/local-authority/33,Norfolk County Council,3-Mar-2011,2917496,       674.45,,K Plant Ltd,70746,,Environment Transport & Development,Contract Plant & Machinery Hire,34930,,,,Revenue
http://statistics.data.gov.uk/doc/local-authority/33,Norfolk County Council,3-Mar-2011,2917496,      1464.05,,K Plant Ltd,70746,,Environment Transport & Development,Contract Plant & Machinery Hire,34930,,,,Revenue
http://statistics.data.gov.uk/doc/local-authority/33,Norfolk County Council,3-Mar-2011,2917497,      2043.50,,K Plant Ltd,70746,,Environment Transport & Development,Contract Plant & Machinery Hire,34930,,,,Revenue
http://statistics.data.gov.uk/doc/local-authority/33,Norfolk County Council,3-Mar-2011,2918234,     43229.30,,Deloitte LLP,196888,,Children's Services,Engineering Design Fees,C5140,,,,Capital
http://statistics.data.gov.uk/doc/local-authority/33,Norfolk County Council,3-Mar-2011,2918611,      1397.00,,Caretech UK Ltd,81532,,Community Services,Other Hired & Contracted Services,44810,,,,Revenue
http://statistics.data.gov.uk/doc/local-authority/33,Norfolk County Council,3-Mar-2011,2919017,       440.27,,Randstad 1 Ltd,171892,,Community Services,Operational - Manual,08800,,,,Revenue
http://statistics.data.gov.uk/doc/local-authority/33,Norfolk County Council,3-Mar-2011,2919026,      2421.93,,Randstad 1 Ltd,171892,,Community Services,Operational - Manual,08800,,,,Revenue
http://statistics.data.gov.uk/doc/local-authority/33,Norfolk County Council,3-Mar-2011,2920347,       301.95,,Staff Call Recruitment Specialists Ltd,74897,,Children's Services,Admin & Clerical - Scale A to J,13600,,,,Revenue
http://statistics.data.gov.uk/doc/local-authority/33,Norfolk County Council,3-Mar-2011,2920347,       385.36,,Staff Call Recruitment Specialists Ltd,74897,,Children's Services,Temporary Staff Admin & Clerical,13750,,,,Revenue
http://statistics.data.gov.uk/doc/local-authority/33,Norfolk County Council,3-Mar-2011,2920347,       190.13,,Staff Call Recruitment Specialists Ltd,74897,,Children's Services,Temporary Staff Admin & Clerical,13750,,,,Revenue
http://statistics.data.gov.uk/doc/local-authority/33,Norfolk County Council,3-Mar-2011,2920347,        82.58,,Staff Call Recruitment Specialists Ltd,74897,,Children's Services,Agency Staff,13800,,,,Revenue
http://statistics.data.gov.uk/doc/local-authority/33,Norfolk County Council,3-Mar-2011,2920347,       477.67,,Staff Call Recruitment Specialists Ltd,74897,,Children's Services,Standard Fund Other Staff,16450,,,,Revenue
http://statistics.data.gov.uk/doc/local-authority/33,Norfolk County Council,3-Mar-2011,2920347,        66.55,,Staff Call Recruitment Specialists Ltd,74897,,Children's Services,Staff Excess Travel Expenses,18120,,,,Revenue
http://statistics.data.gov.uk/doc/local-authority/33,Norfolk County Council,3-Mar-2011,2920347,       407.37,,Staff Call Recruitment Specialists Ltd,74897,,Children's Services,Agency Staff - Admin & Clerical - Scale A to J,13610,,,,Revenue
http://statistics.data.gov.uk/doc/local-authority/33,Norfolk County Council,3-Mar-2011,2921636,       477.00,,Aidapt Bathrooms Ltd,65985,,Community Services,Equipment For Disabled People,41320,,,,Revenue
http://statistics.data.gov.uk/doc/local-authority/33,Norfolk County Council,3-Mar-2011,2921668,       598.00,,G & S Smirthwaite Limited,69122,,Children's Services,Equipment For Disabled People,41320,,,,Revenue
http://statistics.data.gov.uk/doc/local-authority/33,Norfolk County Council,3-Mar-2011,2922851,      1290.00,,Environment Agency,90231,,Resources,Cost of Licenses & Subscriptions,49020,,,,Revenue
http://statistics.data.gov.uk/doc/local-authority/33,Norfolk County Council,3-Mar-2011,2923020,      2720.75,,White Light Ltd,481484,,Environment Transport & Development,Purchase Of Equipment,C3100,,,,Capital
http://statistics.data.gov.uk/doc/local-authority/33,Norfolk County Council,3-Mar-2011,2924770,       301.95,,Staff Call Recruitment Specialists Ltd,74897,,Children's Services,Admin & Clerical - Scale A to J,13600,,,,Revenue
http://statistics.data.gov.uk/doc/local-authority/33,Norfolk County Council,3-Mar-2011,2924770,       360.98,,Staff Call Recruitment Specialists Ltd,74897,,Children's Services,Temporary Staff Admin & Clerical,13750,,,,Revenue
http://statistics.data.gov.uk/doc/local-authority/33,Norfolk County Council,3-Mar-2011,2924770,       191.78,,Staff Call Recruitment Specialists Ltd,74897,,Children's Services,Temporary Staff Admin & Clerical,13750,,,,Revenue
http://statistics.data.gov.uk/doc/local-authority/33,Norfolk County Council,3-Mar-2011,2924770,       159.65,,Staff Call Recruitment Specialists Ltd,74897,,Children's Services,Agency Staff,13800,,,,Revenue
http://statistics.data.gov.uk/doc/local-authority/33,Norfolk County Council,3-Mar-2011,2924770,       477.67,,Staff Call Recruitment Specialists Ltd,74897,,Children's Services,Standard Fund Other Staff,16450,,,,Revenue
http://statistics.data.gov.uk/doc/local-authority/33,Norfolk County Council,3-Mar-2011,2924770,        37.51,,Staff Call Recruitment Specialists Ltd,74897,,Children's Services,Staff Excess Travel Expenses,18120,,,,Revenue
http://statistics.data.gov.uk/doc/local-authority/33,Norfolk County Council,3-Mar-2011,2924770,       882.82,,Staff Call Recruitment Specialists Ltd,74897,,Children's Services,Agency Staff - Admin & Clerical - Scale A to J,13610,,,,Revenue
http://statistics.data.gov.uk/doc/local-authority/33,Norfolk County Council,3-Mar-2011,2924770,         7.00,,Staff Call Recruitment Specialists Ltd,74897,,Children's Services,Non Staff Public Transport Costs,35510,,,,Revenue
http://statistics.data.gov.uk/doc/local-authority/33,Norfolk County Council,3-Mar-2011,2924770,       407.37,,Staff Call Recruitment Specialists Ltd,74897,,Children's Services,Agency Staff - Admin & Clerical - Scale A to J,13610,,,,Revenue
http://statistics.data.gov.uk/doc/local-authority/33,Norfolk County Council,3-Mar-2011,2924793,       702.73,,Staff Call Recruitment Specialists Ltd,74897,,Environment Transport & Development,Casual Labour,02100,,,,Revenue
http://statistics.data.gov.uk/doc/local-authority/33,Norfolk County Council,3-Mar-2011,2924793,       327.96,,Staff Call Recruitment Specialists Ltd,74897,,Environment Transport & Development,Agency Staff - Drivers,13060,,,,Revenue
http://statistics.data.gov.uk/doc/local-authority/33,Norfolk County Council,3-Mar-2011,2924793,       310.50,,Staff Call Recruitment Specialists Ltd,74897,,Environment Transport & Development,Admin & Clerical - Scale A to J,13600,,,,Revenue
http://statistics.data.gov.uk/doc/local-authority/33,Norfolk County Council,3-Mar-2011,2924793,       587.02,,Staff Call Recruitment Specialists Ltd,74897,,Environment Transport & Development,Agency Staff,13800,,,,Revenue
http://statistics.data.gov.uk/doc/local-authority/33,Norfolk County Council,3-Mar-2011,2924793,       735.64,,Staff Call Recruitment Specialists Ltd,74897,,Environment Transport & Development,Agency Staff,13800,,,,Revenue
http://statistics.data.gov.uk/doc/local-authority/33,Norfolk County Council,3-Mar-2011,2924793,       715.14,,Staff Call Recruitment Specialists Ltd,74897,,Environment Transport & Development,Agency Staff,13800,,,,Revenue
http://statistics.data.gov.uk/doc/local-authority/33,Norfolk County Council,3-Mar-2011,2924793,       556.11,,Staff Call Recruitment Specialists Ltd,74897,,Environment Transport & Development,Agency Staff,13800,,,,Revenue
http://statistics.data.gov.uk/doc/local-authority/33,Norfolk County Council,3-Mar-2011,2924982,      4900.42,,Broadland Flooring Ltd,66867,,Children's Services,Construction Cost-Adoption/Improvement Building,C2450,,,,Capital
http://statistics.data.gov.uk/doc/local-authority/33,Norfolk County Council,3-Mar-2011,2924993,       481.21,,Ian Pattingale & Son Ltd,83577,,Community Services,Building Repairs,A1780,,,,Revenue
http://statistics.data.gov.uk/doc/local-authority/33,Norfolk County Council,3-Mar-2011,2925728,      1486.39,,Abacus Care (Norfolk & Suffolk) Ltd,65849,,Community Services,Agency Staff - Operational APT&C,08610,,,,Revenue
http://statistics.data.gov.uk/doc/local-authority/33,Norfolk County Council,3-Mar-2011,2927910,       765.19,,Espo,68527,,Environment Transport & Development,Gas (mains supplied),24360,,,,Revenue
http://statistics.data.gov.uk/doc/local-authority/33,Norfolk County Council,3-Mar-2011,2935496,       736.60,,Involve P B Communication Services,73064,,Community Services,Day Care / Supported Activities,52160,,,,Revenue
http://statistics.data.gov.uk/doc/local-authority/33,Norfolk County Council,3-Mar-2011,2940824,      1263.63,,Southern Electric,74726,,Community Services,Electricity,24340,,,,Revenue
http://statistics.data.gov.uk/doc/local-authority/33,Norfolk County Council,3-Mar-2011,2941192,      1080.00,,Redacted - Personal Data,Redacted,,Environment Transport & Development,Highway Rechargeable Works Payments,54700,,,,Revenue
http://statistics.data.gov.uk/doc/local-authority/33,Norfolk County Council,3-Mar-2011,2942275,       850.00,,The Open University,85537,,Community Services,Staff Training Costs,17450,,,,Revenue
http://statistics.data.gov.uk/doc/local-authority/33,Norfolk County Council,3-Mar-2011,2942578,      1368.00,,NORSE Commercial Services,179148,,Children's Services,Contract Cleaning & Other Cleaning Services,25300,,,,Revenue
http://statistics.data.gov.uk/doc/local-authority/33,Norfolk County Council,3-Mar-2011,2942580,     44671.60,,May Gurney Limited,71794,,Environment Transport & Development,Highway Rechargeable Works Payments,54700,,,,Revenue
http://statistics.data.gov.uk/doc/local-authority/33,Norfolk County Council,3-Mar-2011,2942580,     12000.00,,May Gurney Limited,71794,,Environment Transport & Development,Highway Patching to Carriageway,57000,,,,Revenue
http://statistics.data.gov.uk/doc/local-authority/33,Norfolk County Council,3-Mar-2011,2942580,    213769.58,,May Gurney Limited,71794,,Environment Transport & Development,Construction Costs - Roads - Management,C2500,,,,Capital
http://statistics.data.gov.uk/doc/local-authority/33,Norfolk County Council,3-Mar-2011,2942580,    288897.71,,May Gurney Limited,71794,,Environment Transport & Development,Construction Costs - Roads - Management,C2500,,,,Capital
http://statistics.data.gov.uk/doc/local-authority/33,Norfolk County Council,3-Mar-2011,2942580,     11937.13,,May Gurney Limited,71794,,Environment Transport & Development,Construction Costs - Roads - Management,C2500,,,,Capital
http://statistics.data.gov.uk/doc/local-authority/33,Norfolk County Council,3-Mar-2011,2942580,     17216.04,,May Gurney Limited,71794,,Environment Transport & Development,Construction Costs - Roads - Management,C2500,,,,Capital
http://statistics.data.gov.uk/doc/local-authority/33,Norfolk County Council,3-Mar-2011,2942580,     41670.81,,May Gurney Limited,71794,,Environment Transport & Development,Construction Costs - Roads - Management,C2500,,,,Capital
http://statistics.data.gov.uk/doc/local-authority/33,Norfolk County Council,3-Mar-2011,2942580,     54858.81,,May Gurney Limited,71794,,Environment Transport & Development,Construction Costs - Roads - Management,C2500,,,,Capital
http://statistics.data.gov.uk/doc/local-authority/33,Norfolk County Council,3-Mar-2011,2942580,    259989.16,,May Gurney Limited,71794,,Environment Transport & Development,Construction Costs - Roads - Management,C2500,,,,Capital
http://statistics.data.gov.uk/doc/local-authority/33,Norfolk County Council,3-Mar-2011,2942580,     26597.57,,May Gurney Limited,71794,,Environment Transport & Development,Construction Costs - Roads - Management,C2500,,,,Capital
http://statistics.data.gov.uk/doc/local-authority/33,Norfolk County Council,3-Mar-2011,2942580,    171316.06,,May Gurney Limited,71794,,Environment Transport & Development,Construction Costs - Roads - Management,C2500,,,,Capital
http://statistics.data.gov.uk/doc/local-authority/33,Norfolk County Council,3-Mar-2011,2942580,     12500.00,,May Gurney Limited,71794,,Environment Transport & Development,Construction Costs - Roads - Management,C2500,,,,Capital
http://statistics.data.gov.uk/doc/local-authority/33,Norfolk County Council,3-Mar-2011,2942581,      3026.26,,May Gurney Limited,71794,,Environment Transport & Development,Highway Gulley Emptying,58300,,,,Revenue
http://statistics.data.gov.uk/doc/local-authority/33,Norfolk County Council,3-Mar-2011,2942582,     41325.59,,May Gurney Limited,71794,,Environment Transport & Development,Highway Patching to Carriageway,57000,,,,Revenue
http://statistics.data.gov.uk/doc/local-authority/33,Norfolk County Council,3-Mar-2011,2942582,      3590.40,,May Gurney Limited,71794,,Environment Transport & Development,Highway Patching to Footway,57050,,,,Revenue
http://statistics.data.gov.uk/doc/local-authority/33,Norfolk County Council,3-Mar-2011,2942583,       378.21,,May Gurney Limited,71794,,Environment Transport & Development,Highway Drainage Rodding and Jetting,58400,,,,Revenue
http://statistics.data.gov.uk/doc/local-authority/33,Norfolk County Council,3-Mar-2011,2942583,       162.09,,May Gurney Limited,71794,,Environment Transport & Development,Internal Recharge Pot Holes,73910,,,,Revenue
http://statistics.data.gov.uk/doc/local-authority/33,Norfolk County Council,3-Mar-2011,2942585,      1859.55,,May Gurney Limited,71794,,Environment Transport & Development,Construction Costs - Roads - Management,C2500,,,,Capital
http://statistics.data.gov.uk/doc/local-authority/33,Norfolk County Council,3-Mar-2011,2942585,     20417.60,,May Gurney Limited,71794,,Environment Transport & Development,Construction Costs - Roads - Management,C2500,,,,Capital
http://statistics.data.gov.uk/doc/local-authority/33,Norfolk County Council,3-Mar-2011,2942586,     12049.56,,May Gurney Limited,71794,,Environment Transport & Development,Highway Patching to Carriageway,57000,,,,Revenue
http://statistics.data.gov.uk/doc/local-authority/33,Norfolk County Council,3-Mar-2011,2942586,       953.66,,May Gurney Limited,71794,,Environment Transport & Development,Highway Drainage Repairs,58310,,,,Revenue
http://statistics.data.gov.uk/doc/local-authority/33,Norfolk County Council,3-Mar-2011,2942586,      1765.79,,May Gurney Limited,71794,,Environment Transport & Development,Highway Pothole Repairs,58740,,,,Revenue
http://statistics.data.gov.uk/doc/local-authority/33,Norfolk County Council,3-Mar-2011,2942586,      2645.87,,May Gurney Limited,71794,,Environment Transport & Development,Highway Road Sign Maintenance,59310,,,,Revenue
http://statistics.data.gov.uk/doc/local-authority/33,Norfolk County Council,3-Mar-2011,2942587,      3686.46,,May Gurney Limited,71794,,Environment Transport & Development,Highway Gulley Emptying,58300,,,,Revenue
http://statistics.data.gov.uk/doc/local-authority/33,Norfolk County Council,3-Mar-2011,2942589,     11468.47,,May Gurney Limited,71794,,Environment Transport & Development,Highway Patching to Carriageway,57000,,,,Revenue
http://statistics.data.gov.uk/doc/local-authority/33,Norfolk County Council,3-Mar-2011,2942589,      2719.94,,May Gurney Limited,71794,,Environment Transport & Development,Highway Patching to Footway,57050,,,,Revenue
http://statistics.data.gov.uk/doc/local-authority/33,Norfolk County Council,3-Mar-2011,2942590,      1296.72,,May Gurney Limited,71794,,Environment Transport & Development,Highway Drainage Rodding and Jetting,58400,,,,Revenue
http://statistics.data.gov.uk/doc/local-authority/33,Norfolk County Council,3-Mar-2011,2942592,      8142.75,,Norfolk Training Services Limited,72532,,Children's Services,Other Hired & Contracted Services,44810,,,,Revenue
http://statistics.data.gov.uk/doc/local-authority/33,Norfolk County Council,3-Mar-2011,2942593,      8456.21,,May Gurney Limited,71794,,Environment Transport & Development,Highway Bridge Maintenance,57700,,,,Revenue
http://statistics.data.gov.uk/doc/local-authority/33,Norfolk County Council,3-Mar-2011,2942593,       995.00,,May Gurney Limited,71794,,Environment Transport & Development,Construction Costs - Roads - Management,C2500,,,,Capital
http://statistics.data.gov.uk/doc/local-authority/33,Norfolk County Council,3-Mar-2011,2942593,      4056.56,,May Gurney Limited,71794,,Environment Transport & Development,Construction Costs - Roads - Management,C2500,,,,Capital
http://statistics.data.gov.uk/doc/local-authority/33,Norfolk County Council,3-Mar-2011,2942593,    183060.87,,May Gurney Limited,71794,,Environment Transport & Development,Construction Costs - Roads - Management,C2500,,,,Capital
http://statistics.data.gov.uk/doc/local-authority/33,Norfolk County Council,3-Mar-2011,2942593,     45931.06,,May Gurney Limited,71794,,Environment Transport & Development,Construction Costs - Roads - Management,C2500,,,,Capital
http://statistics.data.gov.uk/doc/local-authority/33,Norfolk County Council,3-Mar-2011,2942593,      5823.96,,May Gurney Limited,71794,,Environment Transport & Development,Construction Costs - Roads - Management,C2500,,,,Capital
http://statistics.data.gov.uk/doc/local-authority/33,Norfolk County Council,3-Mar-2011,2942593,      6770.54,,May Gurney Limited,71794,,Environment Transport & Development,Construction Costs - Roads - Management,C2500,,,,Capital
http://statistics.data.gov.uk/doc/local-authority/33,Norfolk County Council,3-Mar-2011,2942593,       179.40,,May Gurney Limited,71794,,Environment Transport & Development,Construction Costs - Roads - Management,C2500,,,,Capital
http://statistics.data.gov.uk/doc/local-authority/33,Norfolk County Council,3-Mar-2011,2942593,     40734.02,,May Gurney Limited,71794,,Environment Transport & Development,Construction Costs - Roads - Management,C2500,,,,Capital
http://statistics.data.gov.uk/doc/local-authority/33,Norfolk County Council,3-Mar-2011,2942593,      4040.91,,May Gurney Limited,71794,,Environment Transport & Development,Construction Costs - Roads - HOPS,C2530,,,,Capital
http://statistics.data.gov.uk/doc/local-authority/33,Norfolk County Council,3-Mar-2011,2942594,      3904.75,,May Gurney Limited,71794,,Environment Transport & Development,Highway Patching to Carriageway,57000,,,,Revenue
http://statistics.data.gov.uk/doc/local-authority/33,Norfolk County Council,3-Mar-2011,2942594,      2469.81,,May Gurney Limited,71794,,Environment Transport & Development,Highway Patching to Footway,57050,,,,Revenue
http://statistics.data.gov.uk/doc/local-authority/33,Norfolk County Council,3-Mar-2011,2942595,      6185.10,,May Gurney Limited,71794,,Environment Transport & Development,Construction Costs - Roads - Management,C2500,,,,Capital
http://statistics.data.gov.uk/doc/local-authority/33,Norfolk County Council,3-Mar-2011,2942595,     11372.85,,May Gurney Limited,71794,,Environment Transport & Development,Construction Costs - Roads - Management,C2500,,,,Capital
http://statistics.data.gov.uk/doc/local-authority/33,Norfolk County Council,3-Mar-2011,2942597,      4637.28,,May Gurney Limited,71794,,Environment Transport & Development,Highway Gulley Emptying,58300,,,,Revenue
http://statistics.data.gov.uk/doc/local-authority/33,Norfolk County Council,3-Mar-2011,2942598,      4330.89,,May Gurney Limited,71794,,Environment Transport & Development,Highway Gulley Emptying,58300,,,,Revenue
http://statistics.data.gov.uk/doc/local-authority/33,Norfolk County Council,3-Mar-2011,2942599,     55197.41,,May Gurney Limited,71794,,Environment Transport & Development,Construction Costs - Roads - Management,C2500,,,,Capital
http://statistics.data.gov.uk/doc/local-authority/33,Norfolk County Council,3-Mar-2011,2942601,      1360.53,,A C Leigh (Norwich) Ltd,80286,,Children's Services,Estate / Site Management Costs,22550,,,,Revenue
http://statistics.data.gov.uk/doc/local-authority/33,Norfolk County Council,3-Mar-2011,2942605,       813.10,,A C Leigh (Norwich) Ltd,80286,,Children's Services,Estate / Site Management Costs,22550,,,,Revenue
http://statistics.data.gov.uk/doc/local-authority/33,Norfolk County Council,3-Mar-2011,2942631,       582.25,,Redacted - Personal Data,Redacted,,Children's Services,Foster Carer Allowance Special Purposes,53910,,,,Revenue
http://statistics.data.gov.uk/doc/local-authority/33,Norfolk County Council,3-Mar-2011,2942657,      5339.00,,North Yorkshire County Council,85375,,Children's Services,Education (Schools) Recoupment Payments,50650,,,,Revenue
http://statistics.data.gov.uk/doc/local-authority/33,Norfolk County Council,3-Mar-2011,2942684,      3200.00,,NETwork Interventions,277224,,Children's Services,Other Hired & Contracted Services,44810,,,,Revenue
http://statistics.data.gov.uk/doc/local-authority/33,Norfolk County Council,3-Mar-2011,2942703,      2105.45,,OLM Professional Services Ltd,98470,,Community Services,Software Maintenance,44180,,,,Revenue
http://statistics.data.gov.uk/doc/local-authority/33,Norfolk County Council,3-Mar-2011,2942725,      1886.90,,NR11 Groundworks & Civil Engineering Ltd,126455,,Children's Services,Building Repairs,A3780,,,,Revenue
http://statistics.data.gov.uk/doc/local-authority/33,Norfolk County Council,3-Mar-2011,2942728,      3225.00,,City College Norwich,81683,,Children's Services,Staff Subsistence & Conference Expenses,46700,,,,Revenue
http://statistics.data.gov.uk/doc/local-authority/33,Norfolk County Council,3-Mar-2011,2942736,       484.88,,Espo,68527,,Community Services,Gas (mains supplied),24360,,,,Revenue
http://statistics.data.gov.uk/doc/local-authority/33,Norfolk County Council,3-Mar-2011,2942738,       803.41,,Espo,68527,,Community Services,Gas (mains supplied),24360,,,,Revenue
http://statistics.data.gov.uk/doc/local-authority/33,Norfolk County Council,3-Mar-2011,2942740,      7000.00,,OLM Systems Limited,98470,,Community Services,Software Maintenance,44180,,,,Revenue
http://statistics.data.gov.uk/doc/local-authority/33,Norfolk County Council,3-Mar-2011,2942742,      1000.00,,Dilham Pre-School,68238,,Children's Services,Staff Subsistence & Conference Expenses,46700,,,,Revenue
http://statistics.data.gov.uk/doc/local-authority/33,Norfolk County Council,3-Mar-2011,2942744,      1376.03,,OLM Systems Limited,98470,,Community Services,Software Maintenance,44180,,,,Revenue
http://statistics.data.gov.uk/doc/local-authority/33,Norfolk County Council,3-Mar-2011,2942748,       736.08,,NORSE Commercial Services,179148,,Children's Services,Contract Cleaning & Other Cleaning Services,25300,,,,Revenue
http://statistics.data.gov.uk/doc/local-authority/33,Norfolk County Council,3-Mar-2011,2942752,       726.91,,OLM Systems Limited,98470,,Community Services,Software Maintenance,44180,,,,Revenue
http://statistics.data.gov.uk/doc/local-authority/33,Norfolk County Council,3-Mar-2011,2942753,      2449.00,,The National Fostering Agency Ltd,134899,,Children's Services,Payments to Organisations Providing Services To NCC,52000,,,,Revenue
http://statistics.data.gov.uk/doc/local-authority/33,Norfolk County Council,3-Mar-2011,2942756,      2504.25,,The National Fostering Agency Ltd,134899,,Children's Services,Payments to Organisations Providing Services To NCC,52000,,,,Revenue
http://statistics.data.gov.uk/doc/local-authority/33,Norfolk County Council,3-Mar-2011,2942757,      1547.00,,Anglian Water Services Ltd,80641,,Community Services,Water and Sewerage Costs,24810,,,,Revenue
http://statistics.data.gov.uk/doc/local-authority/33,Norfolk County Council,3-Mar-2011,2942757,       820.00,,Anglian Water Services Ltd,80641,,Community Services,Sewerage & Environmental Services,24880,,,,Revenue
http://statistics.data.gov.uk/doc/local-authority/33,Norfolk County Council,3-Mar-2011,2942760,      1217.20,,Nemesis,106582,,Fire & Rescue,Wireless - Maintenance,43660,,,,Revenue
http://statistics.data.gov.uk/doc/local-authority/33,Norfolk County Council,3-Mar-2011,2942762,     10771.28,,BetterCare Keys ltd,152804,,Children's Services,Payments to Organisations Providing Services To NCC,52000,,,,Revenue
http://statistics.data.gov.uk/doc/local-authority/33,Norfolk County Council,3-Mar-2011,2942767,      1657.12,,BetterCare Keys ltd,152804,,Children's Services,Payments to Organisations Providing Services To NCC,52000,,,,Revenue
http://statistics.data.gov.uk/doc/local-authority/33,Norfolk County Council,3-Mar-2011,2942769,      2449.00,,The National Fostering Agency Ltd,134899,,Children's Services,Payments to Organisations Providing Services To NCC,52000,,,,Revenue
http://statistics.data.gov.uk/doc/local-authority/33,Norfolk County Council,3-Mar-2011,2942772,      3034.36,,Safehouses,173081,,Children's Services,Payments to Organisations Providing Services To NCC,52000,,,,Revenue
http://statistics.data.gov.uk/doc/local-authority/33,Norfolk County Council,3-Mar-2011,2942780,      3034.36,,Safehouses,173081,,Children's Services,Payments to Organisations Providing Services To NCC,52000,,,,Revenue
http://statistics.data.gov.uk/doc/local-authority/33,Norfolk County Council,3-Mar-2011,2942848,       505.71,,Redacted - Personal Data,Redacted,,Community Services,Personal Budget - Day Care,60120,,,,Revenue
http://statistics.data.gov.uk/doc/local-authority/33,Norfolk County Council,3-Mar-2011,2942861,      3034.36,,Safehouses,173081,,Children's Services,Payments to Organisations Providing Services To NCC,52000,,,,Revenue
http://statistics.data.gov.uk/doc/local-authority/33,Norfolk County Council,3-Mar-2011,2942866,      3472.00,,Nexus Fostering Ltd,91708,,Children's Services,Payments to Organisations Providing Services To NCC,52000,,,,Revenue
http://statistics.data.gov.uk/doc/local-authority/33,Norfolk County Council,3-Mar-2011,2942869,     78773.66,,Sheridan House School,74544,,Children's Services,Payments to Organisations Providing Services To NCC,52000,,,,Revenue
http://statistics.data.gov.uk/doc/local-authority/33,Norfolk County Council,3-Mar-2011,2942883,      3044.51,,The National Fostering Agency Ltd,134899,,Children's Services,Payments to Organisations Providing Services To NCC,52000,,,,Revenue
http://statistics.data.gov.uk/doc/local-authority/33,Norfolk County Council,3-Mar-2011,2942889,      3044.51,,The National Fostering Agency Ltd,134899,,Children's Services,Payments to Organisations Providing Services To NCC,52000,,,,Revenue
http://statistics.data.gov.uk/doc/local-authority/33,Norfolk County Council,3-Mar-2011,2942893,      6944.00,,Nexus Fostering Ltd,91708,,Children's Services,Payments to Organisations Providing Services To NCC,52000,,,,Revenue
http://statistics.data.gov.uk/doc/local-authority/33,Norfolk County Council,3-Mar-2011,2942894,      1959.20,,The National Fostering Agency Ltd,134899,,Children's Services,Payments to Organisations Providing Services To NCC,52000,,,,Revenue
http://statistics.data.gov.uk/doc/local-authority/33,Norfolk County Council,3-Mar-2011,2942899,      2504.25,,The National Fostering Agency Ltd,134899,,Children's Services,Payments to Organisations Providing Services To NCC,52000,,,,Revenue
http://statistics.data.gov.uk/doc/local-authority/33,Norfolk County Council,3-Mar-2011,2942900,      3472.00,,Nexus Fostering Ltd,91708,,Children's Services,Payments to Organisations Providing Services To NCC,52000,,,,Revenue
http://statistics.data.gov.uk/doc/local-authority/33,Norfolk County Council,3-Mar-2011,2942904,      2013.30,,Fostering Solutions Ltd,141049,,Children's Services,Payments to Organisations Providing Services To NCC,52000,,,,Revenue
http://statistics.data.gov.uk/doc/local-authority/33,Norfolk County Council,3-Mar-2011,2942906,      1327.14,,Fostering Solutions Ltd,141049,,Children's Services,Payments to Organisations Providing Services To NCC,52000,,,,Revenue
http://statistics.data.gov.uk/doc/local-authority/33,Norfolk County Council,3-Mar-2011,2942907,      2064.44,,Fostering Solutions Ltd,141049,,Children's Services,Payments to Organisations Providing Services To NCC,52000,,,,Revenue
http://statistics.data.gov.uk/doc/local-authority/33,Norfolk County Council,3-Mar-2011,2942908,     25512.92,,Atos Healthcare Ltd,230127,,Children's Services,Staff Medical & Eyesight  Fees,18290,,,,Revenue
http://statistics.data.gov.uk/doc/local-authority/33,Norfolk County Council,3-Mar-2011,2942908,      1786.81,,Atos Healthcare Ltd,230127,,Community Services,Staff Medical & Eyesight  Fees,18290,,,,Revenue
http://statistics.data.gov.uk/doc/local-authority/33,Norfolk County Council,3-Mar-2011,2942908,      4696.80,,Atos Healthcare Ltd,230127,,Community Services,Staff Medical & Eyesight  Fees,18290,,,,Revenue
http://statistics.data.gov.uk/doc/local-authority/33,Norfolk County Council,3-Mar-2011,2942908,      1153.46,,Atos Healthcare Ltd,230127,,Environment Transport & Development,Staff Medical & Eyesight  Fees,18290,,,,Revenue
http://statistics.data.gov.uk/doc/local-authority/33,Norfolk County Council,3-Mar-2011,2942908,      1204.81,,Atos Healthcare Ltd,230127,,Resources,Fees/Expenses - Other Consultants,44530,,,,Revenue
http://statistics.data.gov.uk/doc/local-authority/33,Norfolk County Council,3-Mar-2011,2942911,      1131.35,,Anglia Fostering Agency Ltd,302666,,Children's Services,Payments to Organisations Providing Services To NCC,52000,,,,Revenue
http://statistics.data.gov.uk/doc/local-authority/33,Norfolk County Council,3-Mar-2011,2942912,      3131.80,,Fostering Solutions Ltd,141049,,Children's Services,Payments to Organisations Providing Services To NCC,52000,,,,Revenue
http://statistics.data.gov.uk/doc/local-authority/33,Norfolk County Council,3-Mar-2011,2942913,      3472.00,,Nexus Fostering Ltd,91708,,Children's Services,Payments to Organisations Providing Services To NCC,52000,,,,Revenue
http://statistics.data.gov.uk/doc/local-authority/33,Norfolk County Council,3-Mar-2011,2942915,      3914.75,,Fostering Solutions Ltd,141049,,Children's Services,Payments to Organisations Providing Services To NCC,52000,,,,Revenue
http://statistics.data.gov.uk/doc/local-authority/33,Norfolk County Council,3-Mar-2011,2942916,      2580.55,,Fostering Solutions Ltd,141049,,Children's Services,Payments to Organisations Providing Services To NCC,52000,,,,Revenue
http://statistics.data.gov.uk/doc/local-authority/33,Norfolk County Council,3-Mar-2011,2942918,     12000.00,,Redacted - Commercial Confidentiality,Redacted,,Environment Transport & Development,General Disbursements,45100,,,,Revenue
http://statistics.data.gov.uk/doc/local-authority/33,Norfolk County Council,3-Mar-2011,2942921,      2586.95,,Siemens Plc,74581,,Environment Transport & Development,Engineering Design Fees,C5140,,,,Capital
http://statistics.data.gov.uk/doc/local-authority/33,Norfolk County Council,3-Mar-2011,2942928,      4173.75,,Fostering Solutions Ltd,141049,,Children's Services,Payments to Organisations Providing Services To NCC,52000,,,,Revenue
http://statistics.data.gov.uk/doc/local-authority/33,Norfolk County Council,3-Mar-2011,2942933,      4013.10,,Fostering Solutions Ltd,141049,,Children's Services,Payments to Organisations Providing Services To NCC,52000,,,,Revenue
http://statistics.data.gov.uk/doc/local-authority/33,Norfolk County Council,3-Mar-2011,2942936,       730.28,,Southern Electric,74726,,Community Services,Electricity,24340,,,,Revenue
http://statistics.data.gov.uk/doc/local-authority/33,Norfolk County Council,3-Mar-2011,2942937,      2224.27,,Vodafone Corporate Limited,75986,,Resources,Telephone Rental & Calls,43200,,,,Revenue
http://statistics.data.gov.uk/doc/local-authority/33,Norfolk County Council,3-Mar-2011,2942942,      -573.35,,Fostering Solutions Ltd,141049,,Children's Services,Payments to Organisations Providing Services To NCC,52000,,,,Revenue
http://statistics.data.gov.uk/doc/local-authority/33,Norfolk County Council,3-Mar-2011,2942949,       360.00,,Maestro Pressure Coolers,432269,,Community Services,Catering Supplies,42810,,,,Revenue
